Workbook

Sheet 2007 (hidden)
A1: DATE | B1: TIME | C1: SEX | D1: AGE | E1: POSITION | F1: FEE | G1: LOCATION | H1: MILEAGE | I1: COMMENTS
A2: 2007-08-25 | B2: 08:30:00 | C2: Boys | D2: U12 | E2: Center | F2: 25 | G2: Grandview | H2: 6
A3: 2007-08-25 | B3: 10:30:00 | C3: Boys | D3: U15 | E3: Line | F3: 16 | G3: Sertoma | H3: 5
A4: 2007-08-25 | B4: 12:30:00 | C4: Boys | D4: U18 | E4: Line | F4: 15 | G4: Sertoma | H4: 5
A5: 2007-08-27 | B5: 17:30:00 | C5: Boys | D5: U17 | E5: Line | F5: 20 | G5: Sertoma | H5: 5
A6: 2007-09-05 | B6: 18:30:00 | C6: Boys | D6: U14 | E6: Center | F6: 40 | G6: IHC | H6: 14
A7: 2007-09-08 | B7: 08:30:00 | C7: Boys | D7: U15 | E7: Center | F7: 40 | G7: IHC | H7: 14
A8: 2007-09-08 | B8: 10:30:00 | C8: Boys | D8: U16 | E8: Center | F8: 40 | G8: IHC | H8: 14
A9: 2007-09-08 | B9: 12:30:00 | C9: Boys | D9: U17 | E9: Line | F9: 20 | G9: IHC | H9: 14
A10: 2007-09-12 | B10: 17:30:00 | C10: Boys | D10: U16 | E10: Center | F10: 40 | G10: Sertoma | H10: 5
A11: 2007-09-13 | B11: 17:30:00 | C11: Girls | D11: U13 | E11: Center | F11: 30 | G11: Sertoma | H11: 5
A12: 2007-09-15 | B12: 08:30:00 | C12: Boys | D12: U16 | E12: Center | F12: 40 | G12: Sertoma | H12: 5
A13: 2007-09-15 | B13: 12:30:00 | C13: Boys | D13: U18 | E13: Line | F13: 20 | G13: Sertoma | H13: 5
A14: 2007-09-15 | B14: 14:30:00 | C14: Boys | D14: U12 | E14: Center | F14: 20 | G14: Sertoma | H14: 5
A15: 2007-09-22 | B15: 08:30:00 | C15: Girls | D15: U14 | E15: Center | F15: 30 | G15: Cemetery | H15: 16
A16: 2007-09-22 | B16: 12:00:00 | C16: Girls | D16: U13 | E16: Line | F16: 15 | G16: Grandview | H16: 6
A17: 2007-09-24 | B17: 17:30:00 | C17: Boys | D17: U18 | E17: Line | F17: 20 | G17: Sertoma | H17: 5
A18: 2007-09-27 | B18: 17:30:00 | C18: Girls | D18: U13 | E18: Center | F18: 30 | G18: Cemetery | H18: 16
A19: 2007-09-28 | B19: 17:30:00 | C19: Boys | D19: U11 | E19: Center | F19: 30 | G19: Sertoma | H19: 5
A20: 2007-09-29 | B20: 08:30:00 | C20: Boys | D20: U14 | E20: Center | F20: 30 | G20: Sertoma | H20: 5
A21: 2007-09-29 | B21: 10:30:00 | C21: Boys | D21: U16 | E21: Center | F21: 40 | G21: Sertoma | H21: 5
A22: 2007-09-29 | B22: 12:30:00 | C22: Boys | D22: U12 | E22: Center | F22: 30 | G22: Sertoma | H22: 5
A23: 2007-09-29 | B23: 14:30:00 | C23: Boys | D23: U11 | E23: Center | F23: 30 | G23: IHC | H23: 14
A24: 2007-09-29 | B24: 16:30:00 | C24: Boys | D24: U16 | E24: Line | F24: 20 | G24: IHC | H24: 14
A25: 2007-10-18 | B25: 17:30:00 | C25: Boys | D25: U14 | E25: Center | F25: 30 | G25: Westridge | H25: 6.5
A26: 2007-10-20 | B26: 08:30:00 | C26: Girls | D26: U10 | E26: Center | F26: 30 | G26: Westridge | H26: 6.5
A27: 2007-10-20 | B27: 10:00:00 | C27: Girls | D27: U13 | E27: Line | F27: 15 | G27: Grandview | H27: 6
A30: TOTALS
A31: CENTERS | B31: =COUNTIF(E2:E28,"Center") -> 17
A32: LINES | B32: =COUNTIF(E2:E28,"Line") -> 9
A33: TOTAL | B33: =SUM(B31:B32) -> 26
A34: MILEAGE | B34: =SUM(H2:H28) -> 212
A35: MONEY | B35: =SUM(F2:F28) -> 716
A37: August | B37: 120
A38: September | B38: 530
A39: October | B39: 66
A40: TOTAL | B40: =SUM(B37:B39) -> 716
A43: Expenses:
A44: Mileage | B44: 100 | E44: *I rounded up slightly since I also had to attend the three day certification clinic in Salt Lake.
A45: Registration | B45: 60
A46: H.S. Reg. | B46: 45
A47: Uniform | B47: 14.36

Sheet 2008 (hidden)
A1: DATE | B1: TIME | C1: SEX | D1: AGE | E1: POSITION | F1: FEE | G1: LOCATION | H1: MILEAGE | I1: COMMENTS | J1: HS LINES | K1: HS CENTERS | L1: MARCH | M1: APRIL | N1: MAY | O1: JUNE | P1: JULY | Q1: AUGUST | R1: SEPTEMBER | S1: OCTOBER | T1: NOVEMBER | U1: DECEMBER
A2: 2008-03-18 | B2: 17:00:00 | C2: Boys | D2: JV | E2: Dual | F2: 33 | G2: Timpview H.S. | H2: 8 | J2: =IF(E2="Line",IF(OR(D2="JV",D2="VS",D2 ="FS"),1,0),0) -> 0 | K2: =IF(E2="Center",IF(OR(D2="JV",D2="VS",D2="FS"),1,0),0) -> 0 | L2: =IF($A2>=(DATEVALUE("03/01/2008")),IF($A2<=(DATEVALUE("03/31/2008")),$F2,0),0) -> 33 | M2: =IF($A2>=(DATEVALUE("04/01/2008")),IF($A2<=(DATEVALUE("04/30/2008")),$F2,0),0) -> 0 | N2: =IF($A2>=(DATEVALUE("05/01/2008")),IF($A2<=(DATEVALUE("05/30/2008")),$F2,0),0) -> 0 | O2: =IF($A2>=(DATEVALUE("06/01/2008")),IF($A2<=(DATEVALUE("06/30/2008")),$F2,0),0) -> 0 | P2: =IF($A2>=(DATEVALUE("07/01/2008")),IF($A2<=(DATEVALUE("07/31/2008")),$F2,0),0) -> 0 | Q2: =IF($A2>=(DATEVALUE("08/01/2008")),IF($A2<=(DATEVALUE("08/31/2008")),$F2,0),0) -> 0 | R2: =IF($A2>=(DATEVALUE("09/01/2008")),IF($A2<=(DATEVALUE("09/30/2008")),$F2,0),0) -> 0 | S2: =IF($A2>=(DATEVALUE("10/01/2008")),IF($A2<=(DATEVALUE("10/31/2008")),$F2,0),0) -> 0 | T2: =IF($A2>=(DATEVALUE("11/01/2008")),IF($A2<=(DATEVALUE("11/30/2008")),$F2,0),0) -> 0 | U2: =IF($A2>=(DATEVALUE("12/01/2008")),IF($A2<=(DATEVALUE("12/31/2008")),$F2,0),0) -> 0
A3: 2008-03-18 | B3: 19:00:00 | C3: Boys | D3: VS | E3: Line | F3: 30 | G3: Timpview H.S. | H3: 0 | J3: 1 | K3: 0 | L3: 30 | M3: 0 | N3: 0 | O3: 0 | P3: 0 | Q3: 0 | R3: 0 | S3: 0 | T3: 0 | U3: 0
A4: 2008-03-25 | B4: 17:00:00 | C4: Boys | D4: JV | E4: Dual | F4: 33 | G4: Timpview H.S. | H4: 8 | J4: 0 | K4: 0 | L4: 33 | M4: 0 | N4: 0 | O4: 0 | P4: 0 | Q4: 0 | R4: 0 | S4: 0 | T4: 0 | U4: 0
A5: 2008-03-25 | B5: 19:00:00 | C5: Boys | D5: VS | E5: Line | F5: 30 | G5: Timpview H.S. | H5: 0 | J5: 1 | K5: 0 | L5: 30 | M5: 0 | N5: 0 | O5: 0 | P5: 0 | Q5: 0 | R5: 0 | S5: 0 | T5: 0 | U5: 0
A6: 2008-03-28 | B6: 18:00:00 | C6: Girls | D6: U16 | E6: Center | F6: 40 | G6: Cemetery | H6: 16 | J6: 0 | K6: 0 | L6: 40 | M6: 0 | N6: 0 | O6: 0 | P6: 0 | Q6: 0 | R6: 0 | S6: 0 | T6: 0 | U6: 0
A7: 2008-03-29 | B7: 13:30:00 | C7: Girls | D7: U11 | E7: Center | F7: 30 | G7: Canyon View JHS | H7: 16 | J7: 0 | K7: 0 | L7: 30 | M7: 0 | N7: 0 | O7: 0 | P7: 0 | Q7: 0 | R7: 0 | S7: 0 | T7: 0 | U7: 0
A8: 2008-04-08 | B8: 18:00:00 | C8: Girls | D8: U14 | E8: Center | F8: 30 | G8: Cemetery | H8: 16 | J8: 0 | K8: 0 | L8: 0 | M8: 30 | N8: 0 | O8: 0 | P8: 0 | Q8: 0 | R8: 0 | S8: 0 | T8: 0 | U8: 0
A9: 2008-04-09 | B9: 17:30:00 | C9: Girls | D9: U14 | E9: Line | F9: 15 | G9: Grandview | H9: 6 | J9: 0 | K9: 0 | L9: 0 | M9: 15 | N9: 0 | O9: 0 | P9: 0 | Q9: 0 | R9: 0 | S9: 0 | T9: 0 | U9: 0
A10: 2008-04-11 | B10: 17:30:00 | C10: Girls | D10: U17 | E10: Line | F10: 20 | G10: Sertoma | H10: 5 | J10: 0 | K10: 0 | L10: 0 | M10: 20 | N10: 0 | O10: 0 | P10: 0 | Q10: 0 | R10: 0 | S10: 0 | T10: 0 | U10: 0
A11: 2008-04-12 | B11: 08:30:00 | C11: Boys | D11: U12 | E11: Center | F11: 30 | G11: Grandview | H11: 6 | J11: 0 | K11: 0 | L11: 0 | M11: 30 | N11: 0 | O11: 0 | P11: 0 | Q11: 0 | R11: 0 | S11: 0 | T11: 0 | U11: 0
A12: 2008-04-12 | B12: 16:00:00 | C12: Girls | D12: U13 | E12: Line | F12: 15 | G12: Westridge | H12: 6.5 | J12: 0 | K12: 0 | L12: 0 | M12: 15 | N12: 0 | O12: 0 | P12: 0 | Q12: 0 | R12: 0 | S12: 0 | T12: 0 | U12: 0
A13: 2008-04-21 | B13: 18:00:00 | C13: Girls | D13: U15 | E13: Center | F13: 31 | G13: Sertoma | H13: 5 | J13: 0 | K13: 0 | L13: 0 | M13: 31 | N13: 0 | O13: 0 | P13: 0 | Q13: 0 | R13: 0 | S13: 0 | T13: 0 | U13: 0
A14: 2008-04-22 | B14: 18:00:00 | C14: Girls | D14: U16 | E14: Line | F14: 20 | G14: Sertoma | H14: 5 | J14: 0 | K14: 0 | L14: 0 | M14: 20 | N14: 0 | O14: 0 | P14: 0 | Q14: 0 | R14: 0 | S14: 0 | T14: 0 | U14: 0
A15: 2008-04-23 | B15: 18:00:00 | C15: Girls | D15: U15 | E15: Line | F15: 20 | G15: Sertoma | H15: 5 | J15: 0 | K15: 0 | L15: 0 | M15: 20 | N15: 0 | O15: 0 | P15: 0 | Q15: 0 | R15: 0 | S15: 0 | T15: 0 | U15: 0
A16: 2008-04-24 | B16: 18:00:00 | C16: Boys | D16: U14 | E16: Center | F16: 30 | G16: IHC Hospital | H16: 14 | J16: 0 | K16: 0 | L16: 0 | M16: 30 | N16: 0 | O16: 0 | P16: 0 | Q16: 0 | R16: 0 | S16: 0 | T16: 0 | U16: 0
A17: 2008-04-25 | B17: 18:00:00 | C17: Boys | D17: U13 | E17: Line | F17: 16 | G17: Footprinter's | H17: 6 | J17: 0 | K17: 0 | L17: 0 | M17: 16 | N17: 0 | O17: 0 | P17: 0 | Q17: 0 | R17: 0 | S17: 0 | T17: 0 | U17: 0
A18: 2008-04-26 | B18: 08:30:00 | C18: Girls | D18: U13 | E18: Center | F18: 30 | G18: Timpanogas H.S. | H18: 12 | J18: 0 | K18: 0 | L18: 0 | M18: 30 | N18: 0 | O18: 0 | P18: 0 | Q18: 0 | R18: 0 | S18: 0 | T18: 0 | U18: 0
A19: 2008-04-26 | B19: 10:30:00 | C19: Boys | D19: U12 | E19: Center | F19: 23 | G19: Sertoma | H19: 4 | J19: 0 | K19: 0 | L19: 0 | M19: 23 | N19: 0 | O19: 0 | P19: 0 | Q19: 0 | R19: 0 | S19: 0 | T19: 0 | U19: 0
A20: 2008-04-26 | B20: 13:00:00 | C20: Boys | D20: U14 | E20: Center | F20: 30 | G20: Grandview | H20: 0 | J20: 0 | K20: 0 | L20: 0 | M20: 30 | N20: 0 | O20: 0 | P20: 0 | Q20: 0 | R20: 0 | S20: 0 | T20: 0 | U20: 0
A21: 2008-04-26 | B21: 14:30:00 | C21: Girls | D21: U11 | E21: Center | F21: 30 | G21: Grandview | H21: 3 | J21: 0 | K21: 0 | L21: 0 | M21: 30 | N21: 0 | O21: 0 | P21: 0 | Q21: 0 | R21: 0 | S21: 0 | T21: 0 | U21: 0
A22: 2008-04-28 | B22: 18:00:00 | C22: Girls | D22: U14 | E22: Center | F22: 30 | G22: Cemetery | H22: 16 | J22: 0 | K22: 0 | L22: 0 | M22: 30 | N22: 0 | O22: 0 | P22: 0 | Q22: 0 | R22: 0 | S22: 0 | T22: 0 | U22: 0
A23: 2008-04-29 | B23: 18:00:00 | C23: Girls | D23: U13 | E23: Center | F23: 30 | G23: Cemetery | H23: 16 | J23: 0 | K23: 0 | L23: 0 | M23: 30 | N23: 0 | O23: 0 | P23: 0 | Q23: 0 | R23: 0 | S23: 0 | T23: 0 | U23: 0
A24: 2008-04-30 | B24: 18:00:00 | C24: Girls | D24: U14 | E24: Center | F24: 38 | G24: Cemetery | H24: 16 | J24: 0 | K24: 0 | L24: 0 | M24: 38 | N24: 0 | O24: 0 | P24: 0 | Q24: 0 | R24: 0 | S24: 0 | T24: 0 | U24: 0
A25: 2008-05-02 | B25: 18:00:00 | C25: Girls | D25: U16 | E25: Center | F25: 40 | G25: Cemetery | H25: 16 | J25: 0 | K25: 0 | L25: 0 | M25: 0 | N25: 40 | O25: 0 | P25: 0 | Q25: 0 | R25: 0 | S25: 0 | T25: 0 | U25: 0
A26: 2008-05-03 | B26: 12:30:00 | C26: Boys | D26: U12 | E26: Line | F26: 16 | G26: Sertoma | H26: 2 | J26: 0 | K26: 0 | L26: 0 | M26: 0 | N26: 16 | O26: 0 | P26: 0 | Q26: 0 | R26: 0 | S26: 0 | T26: 0 | U26: 0
A27: 2008-05-03 | B27: 14:30:00 | C27: Boys | D27: FS | E27: Line | F27: 20 | G27: Timpview H.S. | H27: 6 | J27: 1 | K27: 0 | L27: 0 | M27: 0 | N27: 20 | O27: 0 | P27: 0 | Q27: 0 | R27: 0 | S27: 0 | T27: 0 | U27: 0
A28: 2008-05-03 | B28: 16:30:00 | C28: Girls | D28: U14 | E28: Line | F28: 15 | G28: Westridge | H28: 3 | J28: 0 | K28: 0 | L28: 0 | M28: 0 | N28: 15 | O28: 0 | P28: 0 | Q28: 0 | R28: 0 | S28: 0 | T28: 0 | U28: 0
A29: 2008-05-06 | B29: 17:30:00 | C29: Girls | D29: U10 | E29: Center | F29: 20 | G29: Lakeside | H29: 10 | J29: 0 | K29: 0 | L29: 0 | M29: 0 | N29: 20 | O29: 0 | P29: 0 | Q29: 0 | R29: 0 | S29: 0 | T29: 0 | U29: 0
A30: 2008-05-06 | B30: 19:00:00 | C30: Boys | D30: U13 | E30: Center | F30: 30 | G30: Lakeside | H30: 10 | J30: 0 | K30: 0 | L30: 0 | M30: 0 | N30: 30 | O30: 0 | P30: 0 | Q30: 0 | R30: 0 | S30: 0 | T30: 0 | U30: 0
A31: 2008-05-07 | B31: 18:00:00 | C31: Boys | D31: U13 | E31: Center | F31: 0 | G31: Ira Allen Field | H31: 24 | I31: We lost the money. | J31: 0 | K31: 0 | L31: 0 | M31: 0 | N31: 0 | O31: 0 | P31: 0 | Q31: 0 | R31: 0 | S31: 0 | T31: 0 | U31: 0
A32: 2008-05-08 | B32: 17:30:00 | C32: Boys | D32: U14 | E32: Center | F32: 30 | G32: Lakeside | H32: 20 | J32: 0 | K32: 0 | L32: 0 | M32: 0 | N32: 30 | O32: 0 | P32: 0 | Q32: 0 | R32: 0 | S32: 0 | T32: 0 | U32: 0
A33: 2008-05-09 | B33: 18:00:00 | C33: Girls | D33: U13 | E33: Center | F33: 30 | G33: Ira Allen Field | H33: 24 | J33: 0 | K33: 0 | L33: 0 | M33: 0 | N33: 30 | O33: 0 | P33: 0 | Q33: 0 | R33: 0 | S33: 0 | T33: 0 | U33: 0
A34: 2008-05-16 | B34: 18:00:00 | C34: Girls | D34: U15 | E34: Center | F34: 40 | G34: Cemetery | H34: 16 | J34: 0 | K34: 0 | L34: 0 | M34: 0 | N34: 40 | O34: 0 | P34: 0 | Q34: 0 | R34: 0 | S34: 0 | T34: 0 | U34: 0
A35: 2008-05-21 | B35: 18:00:00 | C35: Girls | D35: U13 | E35: Center | F35: 30 | G35: Ira Allen Field | H35: 24 | J35: 0 | K35: 0 | L35: 0 | M35: 0 | N35: 30 | O35: 0 | P35: 0 | Q35: 0 | R35: 0 | S35: 0 | T35: 0 | U35: 0
A36: 2008-08-23 | B36: 08:30:00 | C36: Boys | D36: U13 | E36: Line | F36: 16 | G36: Sertoma | H36: 4 | J36: 0 | K36: 0 | L36: 0 | M36: 0 | N36: 0 | O36: 0 | P36: 0 | Q36: 16 | R36: 0 | S36: 0 | T36: 0 | U36: 0
A37: 2008-08-26 | B37: 17:30:00 | C37: Girls | D37: U14 | E37: Center | F37: 30 | G37: Footprinter's | H37: 6 | J37: 0 | K37: 0 | L37: 0 | M37: 0 | N37: 0 | O37: 0 | P37: 0 | Q37: 30 | R37: 0 | S37: 0 | T37: 0 | U37: 0
A38: 2008-09-02 | B38: 18:00:00 | C38: Girls | D38: U14 | E38: Center | F38: 30 | G38: Grandview | H38: 3 | J38: 0 | K38: 0 | L38: 0 | M38: 0 | N38: 0 | O38: 0 | P38: 0 | Q38: 0 | R38: 30 | S38: 0 | T38: 0 | U38: 0
A39: 2008-09-03 | B39: 18:00:00 | C39: Boys | D39: U18 | E39: Line | F39: 30 | G39: Payson Complex | H39: 38 | J39: 0 | K39: 0 | L39: 0 | M39: 0 | N39: 0 | O39: 0 | P39: 0 | Q39: 0 | R39: 30 | S39: 0 | T39: 0 | U39: 0
A40: 2008-09-04 | B40: 18:00:00 | C40: Boys | D40: U12 | E40: Center | F40: 30 | G40: Grandview | H40: 3 | J40: 0 | K40: 0 | L40: 0 | M40: 0 | N40: 0 | O40: 0 | P40: 0 | Q40: 0 | R40: 30 | S40: 0 | T40: 0 | U40: 0
A41: 2008-09-06 | B41: 08:30:00 | C41: Boys | D41: U13 | E41: Line | F41: 15 | G41: Grandview | H41: 3 | J41: 0 | K41: 0 | L41: 0 | M41: 0 | N41: 0 | O41: 0 | P41: 0 | Q41: 0 | R41: 15 | S41: 0 | T41: 0 | U41: 0
A42: 2008-09-06 | B42: 12:30:00 | C42: Boys | D42: U11 | E42: Line | F42: 16 | G42: Canyon View JHS | H42: 8 | J42: 0 | K42: 0 | L42: 0 | M42: 0 | N42: 0 | O42: 0 | P42: 0 | Q42: 0 | R42: 16 | S42: 0 | T42: 0 | U42: 0
A43: 2008-09-06 | B43: 14:30:00 | C43: Boys | D43: U17 | E43: Center | F43: 40 | G43: Canyon View JHS | H43: 8 | J43: 0 | K43: 0 | L43: 0 | M43: 0 | N43: 0 | O43: 0 | P43: 0 | Q43: 0 | R43: 40 | S43: 0 | T43: 0 | U43: 0
A44: 2008-09-09 | B44: 18:00:00 | C44: Girls | D44: U14 | E44: Center | F44: 30 | G44: Grandview | H44: 3 | J44: 0 | K44: 0 | L44: 0 | M44: 0 | N44: 0 | O44: 0 | P44: 0 | Q44: 0 | R44: 30 | S44: 0 | T44: 0 | U44: 0
A45: 2008-09-10 | B45: 18:00:00 | C45: Boys | D45: U14 | E45: Line | F45: 16 | G45: Sertoma | H45: 4 | J45: 0 | K45: 0 | L45: 0 | M45: 0 | N45: 0 | O45: 0 | P45: 0 | Q45: 0 | R45: 16 | S45: 0 | T45: 0 | U45: 0
A46: 2008-09-11 | B46: 18:00:00 | C46: Girls | D46: U14 | E46: Center | F46: 30 | G46: Westridge | H46: 3 | J46: 0 | K46: 0 | L46: 0 | M46: 0 | N46: 0 | O46: 0 | P46: 0 | Q46: 0 | R46: 30 | S46: 0 | T46: 0 | U46: 0
A47: 2008-09-13 | B47: 08:30:00 | C47: Boys | D47: BU13 | E47: Line | F47: 16 | G47: Sertoma | H47: 2 | J47: 0 | K47: 0 | L47: 0 | M47: 0 | N47: 0 | O47: 0 | P47: 0 | Q47: 0 | R47: 16 | S47: 0 | T47: 0 | U47: 0
A48: 2008-09-13 | B48: 10:30:00 | C48: Boys | D48: U16 | E48: Center | F48: 40 | G48: IHC Hospital | H48: 14 | J48: 0 | K48: 0 | L48: 0 | M48: 0 | N48: 0 | O48: 0 | P48: 0 | Q48: 0 | R48: 40 | S48: 0 | T48: 0 | U48: 0
A49: 2008-09-16 | B49: 18:00:00 | C49: Boys | D49: U17 | E49: Line | F49: 20 | G49: Sertoma | H49: 2 | J49: 0 | K49: 0 | L49: 0 | M49: 0 | N49: 0 | O49: 0 | P49: 0 | Q49: 0 | R49: 20 | S49: 0 | T49: 0 | U49: 0
A50: 2008-09-18 | B50: 18:00:00 | C50: Boys | D50: U17 | E50: Center | F50: 50 | G50: Payson Complex | H50: 38 | J50: 0 | K50: 0 | L50: 0 | M50: 0 | N50: 0 | O50: 0 | P50: 0 | Q50: 0 | R50: 50 | S50: 0 | T50: 0 | U50: 0
A51: 2008-09-22 | B51: 18:00:00 | C51: Boys | D51: U15 | E51: Center | F51: 40 | G51: Orem Rec Center | H51: 18 | J51: 0 | K51: 0 | L51: 0 | M51: 0 | N51: 0 | O51: 0 | P51: 0 | Q51: 0 | R51: 40 | S51: 0 | T51: 0 | U51: 0
A52: 2008-09-23 | B52: 18:00:00 | C52: Girls | D52: U14 | E52: Center | F52: 30 | G52: Cemetery | H52: 16 | J52: 0 | K52: 0 | L52: 0 | M52: 0 | N52: 0 | O52: 0 | P52: 0 | Q52: 0 | R52: 30 | S52: 0 | T52: 0 | U52: 0
A53: 2008-09-24 | B53: 18:00:00 | C53: Girls | D53: U13 | E53: Center | F53: 30 | G53: AF Jr. High | H53: 34 | J53: 0 | K53: 0 | L53: 0 | M53: 0 | N53: 0 | O53: 0 | P53: 0 | Q53: 0 | R53: 30 | S53: 0 | T53: 0 | U53: 0
A54: 2008-09-25 | B54: 18:00:00 | C54: Girls | D54: U13 | E54: Center | F54: 34 | G54: Cemetery | H54: 16 | J54: 0 | K54: 0 | L54: 0 | M54: 0 | N54: 0 | O54: 0 | P54: 0 | Q54: 0 | R54: 34 | S54: 0 | T54: 0 | U54: 0
A55: 2008-09-26 | B55: 18:00:00 | C55: Boys | D55: U15 | E55: Center | F55: 40 | G55: IHC Hospital | H55: 14 | J55: 0 | K55: 0 | L55: 0 | M55: 0 | N55: 0 | O55: 0 | P55: 0 | Q55: 0 | R55: 40 | S55: 0 | T55: 0 | U55: 0
A56: 2008-09-27 | B56: 08:30:00 | C56: Boys | D56: U17 | E56: Center | F56: 40 | G56: IHC Hospital | H56: 4 | J56: 0 | K56: 0 | L56: 0 | M56: 0 | N56: 0 | O56: 0 | P56: 0 | Q56: 0 | R56: 40 | S56: 0 | T56: 0 | U56: 0
A57: 2008-09-27 | B57: 10:30:00 | C57: Boys | D57: U14 | E57: Center | F57: 30 | G57: IHC Hospital | H57: 4 | J57: 0 | K57: 0 | L57: 0 | M57: 0 | N57: 0 | O57: 0 | P57: 0 | Q57: 0 | R57: 30 | S57: 0 | T57: 0 | U57: 0
A58: 2008-09-27 | B58: 14:30:00 | C58: Girls | D58: U12 | E58: Center | F58: 30 | G58: Cemetery | H58: 9 | J58: 0 | K58: 0 | L58: 0 | M58: 0 | N58: 0 | O58: 0 | P58: 0 | Q58: 0 | R58: 30 | S58: 0 | T58: 0 | U58: 0
A59: 2008-09-29 | B59: 18:00:00 | C59: Girls | D59: U13 | E59: Center | F59: 30 | G59: Grandview | H59: 3 | J59: 0 | K59: 0 | L59: 0 | M59: 0 | N59: 0 | O59: 0 | P59: 0 | Q59: 0 | R59: 30 | S59: 0 | T59: 0 | U59: 0
A60: 2008-09-30 | B60: 18:00:00 | C60: Boys | D60: U11 | E60: Center | F60: 30 | G60: AF Jr. High | H60: 34 | J60: 0 | K60: 0 | L60: 0 | M60: 0 | N60: 0 | O60: 0 | P60: 0 | Q60: 0 | R60: 30 | S60: 0 | T60: 0 | U60: 0
A61: 2008-10-01 | B61: 18:00:00 | C61: Boys | D61: U13 | E61: Center | F61: 30 | G61: Mapleton Elem. | H61: 18.5 | J61: 0 | K61: 0 | L61: 0 | M61: 0 | N61: 0 | O61: 0 | P61: 0 | Q61: 0 | R61: 0 | S61: 30 | T61: 0 | U61: 0
A62: 2008-10-02 | B62: 18:00:00 | C62: Boys | D62: U18 | E62: Line | F62: 20 | G62: Grandview | H62: 3 | J62: 0 | K62: 0 | L62: 0 | M62: 0 | N62: 0 | O62: 0 | P62: 0 | Q62: 0 | R62: 0 | S62: 20 | T62: 0 | U62: 0
A63: 2008-10-04 | B63: 08:30:00 | C63: Boys | D63: U13 | E63: Center | F63: 30 | G63: IHC Hospital | H63: 7 | J63: 0 | K63: 0 | L63: 0 | M63: 0 | N63: 0 | O63: 0 | P63: 0 | Q63: 0 | R63: 0 | S63: 30 | T63: 0 | U63: 0
A64: 2008-10-04 | B64: 10:30:00 | C64: Boys | D64: U14 | E64: Center | F64: 30 | G64: IHC Hospital | H64: 7 | J64: 0 | K64: 0 | L64: 0 | M64: 0 | N64: 0 | O64: 0 | P64: 0 | Q64: 0 | R64: 0 | S64: 30 | T64: 0 | U64: 0
A65: 2008-10-07 | B65: 17:30:00 | C65: Boys | D65: U18 | E65: Line | F65: 20 | G65: Sertoma | H65: 5 | J65: 0 | K65: 0 | L65: 0 | M65: 0 | N65: 0 | O65: 0 | P65: 0 | Q65: 0 | R65: 0 | S65: 20 | T65: 0 | U65: 0
A66: 2008-10-08 | B66: 18:00:00 | C66: Boys | D66: U12 | E66: Center | F66: 30 | G66: Westridge | H66: 3 | I66: Paid Tithing to here. | J66: 0 | K66: 0 | L66: 0 | M66: 0 | N66: 0 | O66: 0 | P66: 0 | Q66: 0 | R66: 0 | S66: 30 | T66: 0 | U66: 0
A69: TOTALS
A70: HS CENTERS | B70: =SUM(K2:K66) -> 0
A71: HS DUALS | B71: =B78 -> 2
A72: HS LINES | B72: =SUM(J2:J68) -> 3
A73: TOTAL HS | B73: =(COUNTIF(D2:D66,"JV"))+(COUNTIF(D2:D66,"VS"))+(COUNTIF(D2:D66,"FS")) -> 5
A74: CLUB CENTERS | B74: =B77-B70 -> 43
A75: CLUB LINES | B75: =B79-B72 -> 17
A76: TOTAL CLUB | B76: =B80-B73 -> 60
A77: TOTAL CENTERS | B77: =COUNTIF(E2:E66,"Center") -> 43
A78: TOTAL DUALS | B78: =COUNTIF(E2:E66,"Dual") -> 2
A79: TOTAL LINES | B79: =COUNTIF(E2:E66,"Line") -> 20
A80: TOTAL GAMES | B80: =SUM(B77:B79) -> 65
A81: MILEAGE | B81: =SUM(H2:H66) -> 679
A82: MONEY | B82: =SUM(F2:F66) -> 1808
A84: Earnings / Mo.:
A85: March | B85: =SUM(L2:L68) -> 196
A86: April | B86: =SUM(M2:M68) -> 438
A87: May | B87: =SUM(N2:N68) -> 271
A88: June | B88: =SUM(O2:O68) -> 0
A89: July | B89: =SUM(P2:P68) -> 0
A90: August | B90: =SUM(Q2:Q68) -> 46
A91: September | B91: =SUM(R2:R68) -> 697
A92: October | B92: =SUM(S2:S68) -> 160
A93: November | B93: =SUM(T2:T68) -> 0
A94: December | B94: =SUM(U2:U68) -> 0
A95: TOTAL | B95: =SUM(B85:B94) -> 1808
A98: Expenses: | C98: Jan-Jun | D98: Jul-Dec
A99: Mileage | B99: 370 | C99: =SUM(H2:H35) -> 344.5 | D99: =SUM(H36:H66) -> 334.5
A100: Club Reg. | B100: 0 | C100: =C99*0.505 -> 173.9725 | D100: =D99*0.585 -> 195.6825 | E100: =SUM(C100:D100) -> 369.655
A101: H.S. Reg. | B101: 0
A102: Uniform | B102: 93.05 | C102: 3/27/2008 - Official Sports Uniform Purchase
A103: TOTAL | B103: =SUM(B99:B102) -> 463.05

Sheet 2009 (hidden)
A1: DATE | B1: TIME | C1: SEX | D1: AGE | E1: POSITION | F1: FEE | G1: LOCATION | H1: MILEAGE | I1: COMMENTS | J1: HS LINES | K1: HS CENTERS | L1: MARCH | M1: APRIL | N1: MAY | O1: JUNE | P1: JULY | Q1: AUGUST | R1: SEPTEMBER | S1: OCTOBER | T1: NOVEMBER | U1: DECEMBER
A2: 2009-03-31 | B2: 18:00:00 | C2: Girls | D2: U13 | E2: Center | F2: 30 | G2: Cemetery | H2: 16 | J2: =IF(E2="Line",IF(OR(D2="JV",D2="VS",D2 ="FS"),1,0),0) -> 0 | K2: =IF(E2="Center",IF(OR(D2="JV",D2="VS",D2="FS"),1,0),0) -> 0 | L2: =IF($A2>=(DATEVALUE("03/01/2009")),IF($A2<=(DATEVALUE("03/31/2009")),$F2,0),0) -> 30 | M2: =IF($A2>=(DATEVALUE("04/01/2009")),IF($A2<=(DATEVALUE("04/30/2009")),$F2,0),0) -> 0 | N2: =IF($A2>=(DATEVALUE("05/01/2009")),IF($A2<=(DATEVALUE("05/30/2009")),$F2,0),0) -> 0 | O2: =IF($A2>=(DATEVALUE("06/01/2009")),IF($A2<=(DATEVALUE("06/30/2009")),$F2,0),0) -> 0 | P2: =IF($A2>=(DATEVALUE("07/01/2009")),IF($A2<=(DATEVALUE("07/31/2009")),$F2,0),0) -> 0 | Q2: =IF($A2>=(DATEVALUE("08/01/2009")),IF($A2<=(DATEVALUE("08/31/2009")),$F2,0),0) -> 0 | R2: =IF($A2>=(DATEVALUE("09/01/2009")),IF($A2<=(DATEVALUE("09/30/2009")),$F2,0),0) -> 0 | S2: =IF($A2>=(DATEVALUE("10/01/2009")),IF($A2<=(DATEVALUE("10/31/2009")),$F2,0),0) -> 0 | T2: =IF($A2>=(DATEVALUE("11/01/2009")),IF($A2<=(DATEVALUE("11/30/2009")),$F2,0),0) -> 0 | U2: =IF($A2>=(DATEVALUE("12/01/2009")),IF($A2<=(DATEVALUE("12/31/2009")),$F2,0),0) -> 0
A3: 2009-04-02 | B3: 17:30:00 | C3: Boys | D3: U10 | E3: Center | F3: 20 | G3: Westridge | H3: 6.5 | J3: =IF(E3="Line",IF(OR(D3="JV",D3="VS",D3 ="FS"),1,0),0) -> 0 | K3: =IF(E3="Center",IF(OR(D3="JV",D3="VS",D3="FS"),1,0),0) -> 0 | L3: =IF($A3>=(DATEVALUE("03/01/2009")),IF($A3<=(DATEVALUE("03/31/2009")),$F3,0),0) -> 0 | M3: =IF($A3>=(DATEVALUE("04/01/2009")),IF($A3<=(DATEVALUE("04/30/2009")),$F3,0),0) -> 20 | N3: =IF($A3>=(DATEVALUE("05/01/2009")),IF($A3<=(DATEVALUE("05/30/2009")),$F3,0),0) -> 0 | O3: =IF($A3>=(DATEVALUE("06/01/2009")),IF($A3<=(DATEVALUE("06/30/2009")),$F3,0),0) -> 0 | P3: =IF($A3>=(DATEVALUE("07/01/2009")),IF($A3<=(DATEVALUE("07/31/2009")),$F3,0),0) -> 0 | Q3: =IF($A3>=(DATEVALUE("08/01/2009")),IF($A3<=(DATEVALUE("08/31/2009")),$F3,0),0) -> 0 | R3: =IF($A3>=(DATEVALUE("09/01/2009")),IF($A3<=(DATEVALUE("09/30/2009")),$F3,0),0) -> 0 | S3: =IF($A3>=(DATEVALUE("10/01/2009")),IF($A3<=(DATEVALUE("10/31/2009")),$F3,0),0) -> 0 | T3: =IF($A3>=(DATEVALUE("11/01/2009")),IF($A3<=(DATEVALUE("11/30/2009")),$F3,0),0) -> 0 | U3: =IF($A3>=(DATEVALUE("12/01/2009")),IF($A3<=(DATEVALUE("12/31/2009")),$F3,0),0) -> 0
A4: 2009-04-03 | B4: 18:00:00 | C4: Boys | D4: U17 | E4: Center | F4: 40 | G4: Fox Field | H4: 2 | J4: 0 | K4: 0 | L4: 0 | M4: 40 | N4: 0 | O4: 0 | P4: 0 | Q4: 0 | R4: 0 | S4: 0 | T4: 0 | U4: 0
A5: 2009-04-04 | B5: 08:30:00 | C5: Girls | D5: U13 | E5: Center | F5: 30 | G5: Cemetery | H5: 8 | J5: 0 | K5: 0 | L5: 0 | M5: 30 | N5: 0 | O5: 0 | P5: 0 | Q5: 0 | R5: 0 | S5: 0 | T5: 0 | U5: 0
A6: 2009-04-04 | B6: 10:30:00 | C6: Girls | D6: U15 | E6: Center | F6: 40 | G6: Cemetery | H6: 8 | J6: 0 | K6: 0 | L6: 0 | M6: 40 | N6: 0 | O6: 0 | P6: 0 | Q6: 0 | R6: 0 | S6: 0 | T6: 0 | U6: 0
A7: 2009-04-04 | B7: 14:30:00 | C7: Girls | D7: U11 | E7: Center | F7: 30 | G7: Sertoma | H7: 5 | J7: 0 | K7: 0 | L7: 0 | M7: 30 | N7: 0 | O7: 0 | P7: 0 | Q7: 0 | R7: 0 | S7: 0 | T7: 0 | U7: 0
A8: 2009-04-07 | B8: 17:30:00 | C8: Boys | D8: U14 | E8: Center | F8: 30 | G8: Lakeside | H8: 10 | J8: 0 | K8: 0 | L8: 0 | M8: 30 | N8: 0 | O8: 0 | P8: 0 | Q8: 0 | R8: 0 | S8: 0 | T8: 0 | U8: 0
A9: 2009-04-09 | B9: 18:00:00 | C9: Boys | D9: U14 | E9: Center | F9: 30 | G9: Sertoma | H9: 5 | J9: 0 | K9: 0 | L9: 0 | M9: 30 | N9: 0 | O9: 0 | P9: 0 | Q9: 0 | R9: 0 | S9: 0 | T9: 0 | U9: 0
A10: 2009-04-11 | B10: 14:00:00 | C10: Boys | D10: U17 | E10: Center | F10: 40 | G10: Fox Field | H10: 2 | J10: 0 | K10: 0 | L10: 0 | M10: 40 | N10: 0 | O10: 0 | P10: 0 | Q10: 0 | R10: 0 | S10: 0 | T10: 0 | U10: 0
A11: 2009-04-20 | B11: 18:00:00 | C11: Girls | D11: U14 | E11: Center | F11: 30 | G11: Sertoma | H11: 5 | J11: 0 | K11: 0 | L11: 0 | M11: 30 | N11: 0 | O11: 0 | P11: 0 | Q11: 0 | R11: 0 | S11: 0 | T11: 0 | U11: 0
A12: 2009-04-21 | B12: 18:00:00 | C12: Girls | D12: U18 | E12: Line | F12: 20 | G12: Sertoma | H12: 5 | J12: 0 | K12: 0 | L12: 0 | M12: 20 | N12: 0 | O12: 0 | P12: 0 | Q12: 0 | R12: 0 | S12: 0 | T12: 0 | U12: 0
A13: 2009-04-22 | B13: 18:00:00 | C13: Girls | D13: U17 | E13: Line | F13: 20 | G13: Cemetery | H13: 16 | J13: 0 | K13: 0 | L13: 0 | M13: 20 | N13: 0 | O13: 0 | P13: 0 | Q13: 0 | R13: 0 | S13: 0 | T13: 0 | U13: 0
A14: 2009-04-28 | B14: 18:00:00 | C14: Girls | D14: U17 | E14: Center | F14: 40 | G14: Cemetery | H14: 16 | J14: 0 | K14: 0 | L14: 0 | M14: 40 | N14: 0 | O14: 0 | P14: 0 | Q14: 0 | R14: 0 | S14: 0 | T14: 0 | U14: 0
A15: 2009-04-30 | B15: 17:30:00 | C15: Boys | D15: U12 | E15: Center | F15: 30 | G15: Grandview | H15: 6 | J15: 0 | K15: 0 | L15: 0 | M15: 30 | N15: 0 | O15: 0 | P15: 0 | Q15: 0 | R15: 0 | S15: 0 | T15: 0 | U15: 0
A16: 2009-05-01 | B16: 18:00:00 | C16: Girls | D16: U16 | E16: Center | F16: 40 | G16: Cemetery | H16: 16 | J16: 0 | K16: 0 | L16: 0 | M16: 0 | N16: 40 | O16: 0 | P16: 0 | Q16: 0 | R16: 0 | S16: 0 | T16: 0 | U16: 0
A17: 2009-05-02 | B17: 08:30:00 | C17: Boys | D17: U10 | E17: Line | F17: 10 | G17: Westridge | H17: 3 | J17: 0 | K17: 0 | L17: 0 | M17: 0 | N17: 10 | O17: 0 | P17: 0 | Q17: 0 | R17: 0 | S17: 0 | T17: 0 | U17: 0
A18: 2009-05-02 | B18: 10:30:00 | C18: Girls | D18: U13 | E18: Center | F18: 30 | G18: Cemetery | H18: 8 | J18: 0 | K18: 0 | L18: 0 | M18: 0 | N18: 30 | O18: 0 | P18: 0 | Q18: 0 | R18: 0 | S18: 0 | T18: 0 | U18: 0
A19: 2009-05-02 | B19: 12:30:00 | C19: Girls | D19: U16 | E19: Center | F19: 40 | G19: Timpanogas HS | H19: 0.5 | J19: 0 | K19: 0 | L19: 0 | M19: 0 | N19: 40 | O19: 0 | P19: 0 | Q19: 0 | R19: 0 | S19: 0 | T19: 0 | U19: 0
A20: 2009-05-02 | B20: 16:30:00 | C20: Men | D20: Adult | E20: Line | F20: 24 | G20: West Jordan SC | H20: 75 | J20: 0 | K20: 0 | L20: 0 | M20: 0 | N20: 24 | O20: 0 | P20: 0 | Q20: 0 | R20: 0 | S20: 0 | T20: 0 | U20: 0
A21: 2009-05-04 | B21: 18:00:00 | C21: Girls | D21: U13 | E21: Center | F21: 30 | G21: Grandview | H21: 6 | J21: 0 | K21: 0 | L21: 0 | M21: 0 | N21: 30 | O21: 0 | P21: 0 | Q21: 0 | R21: 0 | S21: 0 | T21: 0 | U21: 0
A22: 2009-05-05 | B22: 18:00:00 | C22: Boys | D22: U13 | E22: Center | F22: 30 | G22: Sertoma | H22: 5 | J22: 0 | K22: 0 | L22: 0 | M22: 0 | N22: 30 | O22: 0 | P22: 0 | Q22: 0 | R22: 0 | S22: 0 | T22: 0 | U22: 0
A23: 2009-05-06 | B23: 18:00:00 | C23: Boys | D23: U12 | E23: Line | F23: 16 | G23: Westridge | H23: 6.5 | J23: 0 | K23: 0 | L23: 0 | M23: 0 | N23: 16 | O23: 0 | P23: 0 | Q23: 0 | R23: 0 | S23: 0 | T23: 0 | U23: 0
A24: 2009-05-07 | B24: 17:00:00 | C24: Boys | D24: U11 | E24: Center | F24: 30 | G24: Smooth Canyon | H24: 26 | J24: 0 | K24: 0 | L24: 0 | M24: 0 | N24: 30 | O24: 0 | P24: 0 | Q24: 0 | R24: 0 | S24: 0 | T24: 0 | U24: 0
A25: 2009-05-07 | B25: 19:00:00 | C25: Girls | D25: U12 | E25: Line | F25: 16 | G25: Healy Field | H25: 0 | J25: 0 | K25: 0 | L25: 0 | M25: 0 | N25: 16 | O25: 0 | P25: 0 | Q25: 0 | R25: 0 | S25: 0 | T25: 0 | U25: 0
A26: 2009-05-08 | B26: 18:00:00 | C26: Boys | D26: U15 | E26: Line | F26: 20 | G26: Timpview HS | H26: 6 | J26: 0 | K26: 0 | L26: 0 | M26: 0 | N26: 20 | O26: 0 | P26: 0 | Q26: 0 | R26: 0 | S26: 0 | T26: 0 | U26: 0
A27: 2009-05-09 | B27: 08:30:00 | C27: Boys | D27: U13 | E27: Line | F27: 16 | G27: Sertoma | H27: 5 | J27: 0 | K27: 0 | L27: 0 | M27: 0 | N27: 16 | O27: 0 | P27: 0 | Q27: 0 | R27: 0 | S27: 0 | T27: 0 | U27: 0
A28: 2009-05-09 | B28: 12:30:00 | C28: Boys | D28: U13 | E28: Center | F28: 30 | G28: Sertoma | H28: 5 | J28: 0 | K28: 0 | L28: 0 | M28: 0 | N28: 30 | O28: 0 | P28: 0 | Q28: 0 | R28: 0 | S28: 0 | T28: 0 | U28: 0
A29: 2009-05-09 | B29: 14:00:00 | C29: Girls | D29: U12 | E29: Center | F29: 30 | G29: Sertoma | H29: 0 | J29: 0 | K29: 0 | L29: 0 | M29: 0 | N29: 30 | O29: 0 | P29: 0 | Q29: 0 | R29: 0 | S29: 0 | T29: 0 | U29: 0
A30: 2009-05-12 | B30: 18:00:00 | C30: Girls | D30: U18 | E30: Center | F30: 40 | G30: Sertoma | H30: 5 | J30: 0 | K30: 0 | L30: 0 | M30: 0 | N30: 40 | O30: 0 | P30: 0 | Q30: 0 | R30: 0 | S30: 0 | T30: 0 | U30: 0
A31: 2009-05-13 | B31: 19:00:00 | C31: Boys | D31: U14 | E31: Center | F31: 30 | G31: Sertoma | H31: 5 | J31: 0 | K31: 0 | L31: 0 | M31: 0 | N31: 30 | O31: 0 | P31: 0 | Q31: 0 | R31: 0 | S31: 0 | T31: 0 | U31: 0
A32: 2009-05-16 | B32: 10:30:00 | C32: Boys | D32: U13 | E32: Center | F32: 38 | G32: IHC Hospital | H32: 7 | J32: 0 | K32: 0 | L32: 0 | M32: 0 | N32: 38 | O32: 0 | P32: 0 | Q32: 0 | R32: 0 | S32: 0 | T32: 0 | U32: 0
A33: 2009-05-16 | B33: 12:30:00 | C33: Girls | D33: U17 | E33: Center | F33: 40 | G33: Timpanogas HS | H33: 4 | J33: 0 | K33: 0 | L33: 0 | M33: 0 | N33: 40 | O33: 0 | P33: 0 | Q33: 0 | R33: 0 | S33: 0 | T33: 0 | U33: 0
A34: 2009-05-16 | B34: 16:00:00 | C34: Boys | D34: U14 | E34: Center | F34: 30 | G34: IHC Hospital | H34: 7 | J34: 0 | K34: 0 | L34: 0 | M34: 0 | N34: 30 | O34: 0 | P34: 0 | Q34: 0 | R34: 0 | S34: 0 | T34: 0 | U34: 0
A35: 2009-08-01 | B35: 09:15:00 | C35: Boys | D35: U18 | E35: Line | F35: 20 | G35: Lakeside | H35: 5 | J35: 0 | K35: 0 | L35: 0 | M35: 0 | N35: 0 | O35: 0 | P35: 0 | Q35: 20 | R35: 0 | S35: 0 | T35: 0 | U35: 0
A36: 2009-08-01 | B36: 14:15:00 | C36: Boys | D36: U11 | E36: Line | F36: 16 | G36: Lakeside | H36: 5 | J36: 0 | K36: 0 | L36: 0 | M36: 0 | N36: 0 | O36: 0 | P36: 0 | Q36: 16 | R36: 0 | S36: 0 | T36: 0 | U36: 0
A37: 2009-08-25 | B37: 17:30:00 | C37: Boys | D37: U14 | E37: Center | F37: 30 | G37: Lakeside | H37: 10 | J37: 0 | K37: 0 | L37: 0 | M37: 0 | N37: 0 | O37: 0 | P37: 0 | Q37: 30 | R37: 0 | S37: 0 | T37: 0 | U37: 0
A38: 2009-08-26 | B38: 17:30:00 | C38: Boys | D38: U11 | E38: Center | F38: 30 | G38: Mt. Ridge | H38: 36 | J38: 0 | K38: 0 | L38: 0 | M38: 0 | N38: 0 | O38: 0 | P38: 0 | Q38: 30 | R38: 0 | S38: 0 | T38: 0 | U38: 0
A39: 2009-08-27 | B39: 17:30:00 | C39: Boys | D39: U18 | E39: Line | F39: 20 | G39: Ira Allen | H39: 24 | J39: 0 | K39: 0 | L39: 0 | M39: 0 | N39: 0 | O39: 0 | P39: 0 | Q39: 20 | R39: 0 | S39: 0 | T39: 0 | U39: 0
A40: 2009-08-29 | B40: 08:30:00 | C40: Boys | D40: U16 | E40: Center | F40: 40 | G40: IHC Hospital | H40: 5 | J40: 0 | K40: 0 | L40: 0 | M40: 0 | N40: 0 | O40: 0 | P40: 0 | Q40: 40 | R40: 0 | S40: 0 | T40: 0 | U40: 0
A41: 2009-08-29 | B41: 10:30:00 | C41: Boys | D41: U17 | E41: Center | F41: 40 | G41: IHC Hospital | H41: 5 | J41: 0 | K41: 0 | L41: 0 | M41: 0 | N41: 0 | O41: 0 | P41: 0 | Q41: 40 | R41: 0 | S41: 0 | T41: 0 | U41: 0
A42: 2009-09-01 | B42: 18:00:00 | C42: Boys | D42: U18 | E42: Line | F42: 20 | G42: IHC Hospital | H42: 10 | J42: 0 | K42: 0 | L42: 0 | M42: 0 | N42: 0 | O42: 0 | P42: 0 | Q42: 0 | R42: 20 | S42: 0 | T42: 0 | U42: 0
A43: 2009-09-02 | B43: 17:30:00 | C43: Boys | D43: U12 | E43: Center | F43: 30 | G43: Canyon View JHS | H43: 14 | J43: 0 | K43: 0 | L43: 0 | M43: 0 | N43: 0 | O43: 0 | P43: 0 | Q43: 0 | R43: 30 | S43: 0 | T43: 0 | U43: 0
A44: 2009-09-03 | B44: 17:30:00 | C44: Boys | D44: U15 | E44: Center | F44: 40 | G44: Orem JHS | H44: 11 | J44: 0 | K44: 0 | L44: 0 | M44: 0 | N44: 0 | O44: 0 | P44: 0 | Q44: 0 | R44: 40 | S44: 0 | T44: 0 | U44: 0
A45: 2009-09-08 | B45: 17:30:00 | C45: Girls | D45: U10 | E45: Center | F45: 20 | G45: Canyon View Park | H45: 28 | J45: 0 | K45: 0 | L45: 0 | M45: 0 | N45: 0 | O45: 0 | P45: 0 | Q45: 0 | R45: 20 | S45: 0 | T45: 0 | U45: 0
A46: 2009-09-09 | B46: 17:30:00 | C46: Boys | D46: U11 | E46: Center | F46: 30 | G46: Lakeside | H46: 11.4 | J46: 0 | K46: 0 | L46: 0 | M46: 0 | N46: 0 | O46: 0 | P46: 0 | Q46: 0 | R46: 30 | S46: 0 | T46: 0 | U46: 0
A47: 2009-09-10 | B47: 17:30:00 | C47: Boys | D47: U18 | E47: Center | F47: 40 | G47: Lakeside | H47: 11.4 | J47: 0 | K47: 0 | L47: 0 | M47: 0 | N47: 0 | O47: 0 | P47: 0 | Q47: 0 | R47: 40 | S47: 0 | T47: 0 | U47: 0
A48: 2009-09-12 | B48: 08:30:00 | C48: Boys | D48: U15 | E48: Line | F48: 20 | G48: Ira Allen | H48: 7.8 | J48: 0 | K48: 0 | L48: 0 | M48: 0 | N48: 0 | O48: 0 | P48: 0 | Q48: 0 | R48: 20 | S48: 0 | T48: 0 | U48: 0
A49: 2009-09-12 | B49: 10:30:00 | C49: Boys | D49: U17 | E49: Center | F49: 40 | G49: Ira Allen | H49: 7.8 | J49: 0 | K49: 0 | L49: 0 | M49: 0 | N49: 0 | O49: 0 | P49: 0 | Q49: 0 | R49: 40 | S49: 0 | T49: 0 | U49: 0
A50: 2009-09-12 | B50: 12:30:00 | C50: Boys | D50: U18 | E50: Line | F50: 20 | G50: Ira Allen | H50: 7.8 | J50: 0 | K50: 0 | L50: 0 | M50: 0 | N50: 0 | O50: 0 | P50: 0 | Q50: 0 | R50: 20 | S50: 0 | T50: 0 | U50: 0
A51: 2009-09-15 | B51: 18:00:00 | C51: Boys | D51: U11 | E51: Center | F51: 30 | G51: IHC Hospital | H51: 10.4 | J51: 0 | K51: 0 | L51: 0 | M51: 0 | N51: 0 | O51: 0 | P51: 0 | Q51: 0 | R51: 30 | S51: 0 | T51: 0 | U51: 0
A52: 2009-09-22 | B52: 17:30:00 | C52: Boys | D52: U14 | E52: Center | F52: 30 | G52: Lakeside | H52: 11.3 | J52: 0 | K52: 0 | L52: 0 | M52: 0 | N52: 0 | O52: 0 | P52: 0 | Q52: 0 | R52: 30 | S52: 0 | T52: 0 | U52: 0
A53: 2009-09-23 | B53: 17:30:00 | C53: Boys | D53: U14 | E53: Center | F53: 30 | G53: IHC Hospital | H53: 10.4 | J53: 0 | K53: 0 | L53: 0 | M53: 0 | N53: 0 | O53: 0 | P53: 0 | Q53: 0 | R53: 30 | S53: 0 | T53: 0 | U53: 0
A54: 2009-09-24 | B54: 18:00:00 | C54: Boys | D54: U15 | E54: Center | F54: 40 | G54: IHC Hospital | H54: 10.4 | J54: 0 | K54: 0 | L54: 0 | M54: 0 | N54: 0 | O54: 0 | P54: 0 | Q54: 0 | R54: 40 | S54: 0 | T54: 0 | U54: 0
A55: 2009-09-25 | B55: 17:30:00 | C55: Boys | D55: U15 | E55: Line | F55: 20 | G55: Payson Complex | H55: 38 | J55: 0 | K55: 0 | L55: 0 | M55: 0 | N55: 0 | O55: 0 | P55: 0 | Q55: 0 | R55: 20 | S55: 0 | T55: 0 | U55: 0
A56: 2009-09-26 | B56: 08:30:00 | C56: Girls | D56: U13 | E56: Line | F56: 16 | G56: Grandview | H56: 1.4 | J56: 0 | K56: 0 | L56: 0 | M56: 0 | N56: 0 | O56: 0 | P56: 0 | Q56: 0 | R56: 16 | S56: 0 | T56: 0 | U56: 0
A57: 2009-09-26 | B57: 10:30:00 | C57: Boys | D57: U15 | E57: Center | F57: 40 | G57: IHC Hospital | H57: 9 | J57: 0 | K57: 0 | L57: 0 | M57: 0 | N57: 0 | O57: 0 | P57: 0 | Q57: 0 | R57: 40 | S57: 0 | T57: 0 | U57: 0
A58: 2009-09-26 | B58: 14:30:00 | C58: Girls | D58: U14 | E58: Center | F58: 30 | G58: Cemetery | H58: 2.5 | J58: 0 | K58: 0 | L58: 0 | M58: 0 | N58: 0 | O58: 0 | P58: 0 | Q58: 0 | R58: 30 | S58: 0 | T58: 0 | U58: 0
A59: 2009-09-26 | B59: 16:30:00 | C59: Girls | D59: U14 | E59: Line | F59: 16 | G59: Orem Rec Center | H59: 10 | J59: 0 | K59: 0 | L59: 0 | M59: 0 | N59: 0 | O59: 0 | P59: 0 | Q59: 0 | R59: 16 | S59: 0 | T59: 0 | U59: 0
A60: 2009-09-28 | B60: 18:00:00 | C60: Boys | D60: U14 | E60: Center | F60: 30 | G60: Orem JHS | H60: 11.2 | J60: 0 | K60: 0 | L60: 0 | M60: 0 | N60: 0 | O60: 0 | P60: 0 | Q60: 0 | R60: 30 | S60: 0 | T60: 0 | U60: 0
A61: 2009-09-29 | B61: 17:30:00 | C61: Boys | D61: U15 | E61: Center | F61: 40 | G61: Art Dye, AF | H61: 30 | J61: 0 | K61: 0 | L61: 0 | M61: 0 | N61: 0 | O61: 0 | P61: 0 | Q61: 0 | R61: 40 | S61: 0 | T61: 0 | U61: 0
A62: 2009-09-30 | B62: 17:30:00 | C62: Girls | D62: U13 | E62: Center | F62: 30 | G62: Lakeside | H62: 11.3 | J62: 0 | K62: 0 | L62: 0 | M62: 0 | N62: 0 | O62: 0 | P62: 0 | Q62: 0 | R62: 30 | S62: 0 | T62: 0 | U62: 0
A63: 2009-10-02 | B63: 17:30:00 | C63: Girls | D63: U13 | E63: Center | F63: 30 | G63: American Fork JHS | H63: 32 | J63: 0 | K63: 0 | L63: 0 | M63: 0 | N63: 0 | O63: 0 | P63: 0 | Q63: 0 | R63: 0 | S63: 30 | T63: 0 | U63: 0
A64: 2009-10-03 | B64: 08:30:00 | C64: Boys | D64: U18 | E64: Center | F64: 40 | G64: Ira Allen | H64: 5.9 | J64: 0 | K64: 0 | L64: 0 | M64: 0 | N64: 0 | O64: 0 | P64: 0 | Q64: 0 | R64: 0 | S64: 40 | T64: 0 | U64: 0
A65: 2009-10-03 | B65: 10:30:00 | C65: Boys | D65: U15 | E65: Line | F65: 20 | G65: Ira Allen | H65: 5.9 | J65: 0 | K65: 0 | L65: 0 | M65: 0 | N65: 0 | O65: 0 | P65: 0 | Q65: 0 | R65: 0 | S65: 20 | T65: 0 | U65: 0
A66: 2009-10-03 | B66: 12:30:00 | C66: Boys | D66: U12 | E66: Center | F66: 30 | G66: Mapleton ES | H66: 12 | J66: 0 | K66: 0 | L66: 0 | M66: 0 | N66: 0 | O66: 0 | P66: 0 | Q66: 0 | R66: 0 | S66: 30 | T66: 0 | U66: 0
A67: 2009-10-06 | B67: 17:30:00 | C67: Girls | D67: U13 | E67: Center | F67: 30 | G67: Sertoma | H67: 4.4 | J67: 0 | K67: 0 | L67: 0 | M67: 0 | N67: 0 | O67: 0 | P67: 0 | Q67: 0 | R67: 0 | S67: 30 | T67: 0 | U67: 0
A68: 2009-10-08 | B68: 17:30:00 | C68: Boys | D68: U18 | E68: Line | F68: 20 | G68: Lakeside | H68: 13.6 | J68: 0 | K68: 0 | L68: 0 | M68: 0 | N68: 0 | O68: 0 | P68: 0 | Q68: 0 | R68: 0 | S68: 20 | T68: 0 | U68: 0
A69: 2009-10-09 | B69: 17:30:00 | C69: Girls | D69: U13 | E69: Center | F69: 30 | G69: American Fork JHS | H69: 32 | J69: 0 | K69: 0 | L69: 0 | M69: 0 | N69: 0 | O69: 0 | P69: 0 | Q69: 0 | R69: 0 | S69: 30 | T69: 0 | U69: 0
A70: 2009-10-10 | B70: 08:30:00 | C70: Boys | D70: U14 | E70: Line | F70: 30 | G70: Grandview | H70: 1 | I70: Actually AA Dual. | J70: 0 | K70: 0 | L70: 0 | M70: 0 | N70: 0 | O70: 0 | P70: 0 | Q70: 0 | R70: 0 | S70: 30 | T70: 0 | U70: 0
A71: 2009-10-10 | B71: 10:30:00 | C71: Girls | D71: U14 | E71: Center | F71: 30 | G71: Sertoma | H71: 3.5 | J71: 0 | K71: 0 | L71: 0 | M71: 0 | N71: 0 | O71: 0 | P71: 0 | Q71: 0 | R71: 0 | S71: 30 | T71: 0 | U71: 0
A72: 2009-10-10 | B72: 14:30:00 | C72: Boys | D72: U15 | E72: Center | F72: 40 | G72: Orem Rec Center | H72: 5 | J72: 0 | K72: 0 | L72: 0 | M72: 0 | N72: 0 | O72: 0 | P72: 0 | Q72: 0 | R72: 0 | S72: 40 | T72: 0 | U72: 0
A73: 2009-10-10 | B73: 16:30:00 | C73: Girls | D73: U14 | E73: Line | F73: 16 | G73: Orem Rec Center | H73: 5 | J73: 0 | K73: 0 | L73: 0 | M73: 0 | N73: 0 | O73: 0 | P73: 0 | Q73: 0 | R73: 0 | S73: 16 | T73: 0 | U73: 0
A74: 2009-10-12 | B74: 17:30:00 | C74: Boys | D74: U10 | E74: Line | F74: 24 | G74: Sertoma | H74: 4.4 | J74: 0 | K74: 0 | L74: 0 | M74: 0 | N74: 0 | O74: 0 | P74: 0 | Q74: 0 | R74: 0 | S74: 24 | T74: 0 | U74: 0
A75: 2009-10-14 | B75: 17:30:00 | C75: Girls | D75: U12 | E75: Center | F75: 30 | G75: Smooth Canyon | H75: 41.2 | J75: 0 | K75: 0 | L75: 0 | M75: 0 | N75: 0 | O75: 0 | P75: 0 | Q75: 0 | R75: 0 | S75: 30 | T75: 0 | U75: 0
A76: 2009-10-20 | B76: 17:30:00 | C76: Boys | D76: U15 | E76: Center | F76: 40 | G76: Art Dye, AF | H76: 30 | J76: 0 | K76: 0 | L76: 0 | M76: 0 | N76: 0 | O76: 0 | P76: 0 | Q76: 0 | R76: 0 | S76: 40 | T76: 0 | U76: 0
A77: 2009-10-21 | B77: 17:30:00 | C77: Girls | D77: U14 | E77: Center | F77: 30 | G77: Sertoma | H77: 4.4 | J77: 0 | K77: 0 | L77: 0 | M77: 0 | N77: 0 | O77: 0 | P77: 0 | Q77: 0 | R77: 0 | S77: 30 | T77: 0 | U77: 0
A78: 2009-10-22 | B78: 17:30:00 | C78: Girls | D78: U11 | E78: Center | F78: 30 | G78: Cemetery | H78: 15 | J78: 0 | K78: 0 | L78: 0 | M78: 0 | N78: 0 | O78: 0 | P78: 0 | Q78: 0 | R78: 0 | S78: 30 | T78: 0 | U78: 0
A79: 2009-10-23 | B79: 17:30:00 | C79: Boys | D79: U15 | E79: Center | F79: 40 | G79: Art Dye, AF | H79: 30 | J79: 0 | K79: 0 | L79: 0 | M79: 0 | N79: 0 | O79: 0 | P79: 0 | Q79: 0 | R79: 0 | S79: 40 | T79: 0 | U79: 0
A80: 2009-10-24 | B80: 12:30:00 | C80: Girls | D80: U12 | E80: Center | F80: 30 | G80: Smooth Canyon | H80: 25.2 | J80: 0 | K80: 0 | L80: 0 | M80: 0 | N80: 0 | O80: 0 | P80: 0 | Q80: 0 | R80: 0 | S80: 30 | T80: 0 | U80: 0
A81: 2009-10-24 | B81: 14:30:00 | C81: Girls | D81: U13 | E81: Line | F81: 16 | G81: American Fork JHS | H81: 8 | J81: 0 | K81: 0 | L81: 0 | M81: 0 | N81: 0 | O81: 0 | P81: 0 | Q81: 0 | R81: 0 | S81: 16 | T81: 0 | U81: 0
A82: 2009-10-24 | B82: 16:30:00 | C82: Boys | D82: U14 | E82: Center | F82: 30 | G82: American Fork JHS | H82: 8 | J82: 0 | K82: 0 | L82: 0 | M82: 0 | N82: 0 | O82: 0 | P82: 0 | Q82: 0 | R82: 0 | S82: 30 | T82: 0 | U82: 0
A83: 2009-10-29 | B83: 17:00:00 | C83: Girls | D83: U12 | E83: Center | F83: 30 | G83: Canyon View JHS | H83: 14 | J83: 0 | K83: 0 | L83: 0 | M83: 0 | N83: 0 | O83: 0 | P83: 0 | Q83: 0 | R83: 0 | S83: 30 | T83: 0 | U83: 0
A84: 2009-10-31 | B84: 13:30:00 | C84: Boys | D84: U15 | E84: Center | F84: 40 | G84: Canyon View JHS | H84: 14 | I84: Paid Tithing through here. | J84: 0 | K84: 0 | L84: 0 | M84: 0 | N84: 0 | O84: 0 | P84: 0 | Q84: 0 | R84: 0 | S84: 40 | T84: 0 | U84: 0
A89: TOTALS
A90: HS CENTERS | B90: =SUM(K2:K82) -> 0
A91: HS DUALS | B91: =B98 -> 0
A92: HS LINES | B92: =SUM(J2:J88) -> 0
A93: TOTAL HS | B93: =(COUNTIF(D2:D82,"JV"))+(COUNTIF(D2:D82,"VS"))+(COUNTIF(D2:D82,"FS")) -> 0
A94: CLUB CENTERS | B94: =B97-B90 -> 58
A95: CLUB LINES | B95: =B99-B92 -> 23
A96: TOTAL CLUB | B96: =B100-B93 -> 81
A97: TOTAL CENTERS | B97: =COUNTIF(E2:E82,"Center") -> 58
A98: TOTAL DUALS | B98: =COUNTIF(E2:E82,"Dual") -> 0
A99: TOTAL LINES | B99: =COUNTIF(E2:E82,"Line") -> 23
A100: TOTAL GAMES | B100: =SUM(B97:B99) -> 81
A101: MILEAGE | B101: =SUM(H2:H84) -> 970.1
A102: MONEY | B102: =SUM(F2:F84) -> 2434
A104: Earnings / Mo.:
A105: March | B105: =SUM(L2:L88) -> 30
A106: April | B106: =SUM(M2:M88) -> 400
A107: May | B107: =SUM(N2:N88) -> 540
A108: June | B108: =SUM(O2:O88) -> 0
A109: July | B109: =SUM(P2:P88) -> 0
A110: August | B110: =SUM(Q2:Q88) -> 196
A111: September | B111: =SUM(R2:R88) -> 612
A112: October | B112: =SUM(S2:S88) -> 656
A113: November | B113: =SUM(T2:T88) -> 0
A114: December | B114: =SUM(U2:U88) -> 0
A115: TOTAL | B115: =SUM(B105:B114) -> 2434
A118: Expenses: | C118: Jan-Jun | D118: Jul-Dec
A119: Mileage | B119: 0
A120: Club Reg. | B120: 0
A121: H.S. Reg. | B121: 0
A122: Uniform | B122: 0
A123: TOTAL | B123: =SUM(B119:B122) -> 0

Sheet 2010 (hidden)
A1: DATE | B1: TIME | C1: SEX | D1: AGE | E1: POSITION | F1: FEE | G1: LOCATION | H1: MILEAGE | I1: COMMENTS | J1: HS LINES | K1: HS CENTERS | L1: MARCH | M1: APRIL | N1: MAY | O1: JUNE | P1: JULY | Q1: AUGUST | R1: SEPTEMBER | S1: OCTOBER | T1: NOVEMBER | U1: DECEMBER
A2: 2010-03-23 | B2: 17:30:00 | C2: Girls | D2: U10 | E2: Center | F2: 20 | G2: Orem Cemetery | H2: 15 | J2: =IF(E2="Line",IF(OR(D2="JV",D2="VS",D2 ="FS"),1,0),0) -> 0 | K2: =IF(E2="Center",IF(OR(D2="JV",D2="VS",D2="FS"),1,0),0) -> 0 | L2: =IF($A2>=(DATEVALUE("03/01/2010")),IF($A2<=(DATEVALUE("03/31/2010")),$F2,0),0) -> 20 | M2: =IF($A2>=(DATEVALUE("04/01/2010")),IF($A2<=(DATEVALUE("04/30/2010")),$F2,0),0) -> 0 | N2: =IF($A2>=(DATEVALUE("05/01/2010")),IF($A2<=(DATEVALUE("05/30/2010")),$F2,0),0) -> 0 | O2: =IF($A2>=(DATEVALUE("06/01/2010")),IF($A2<=(DATEVALUE("06/30/2010")),$F2,0),0) -> 0 | P2: =IF($A2>=(DATEVALUE("07/01/2010")),IF($A2<=(DATEVALUE("07/31/2010")),$F2,0),0) -> 0 | Q2: =IF($A2>=(DATEVALUE("08/01/2010")),IF($A2<=(DATEVALUE("08/31/2010")),$F2,0),0) -> 0 | R2: =IF($A2>=(DATEVALUE("09/01/2010")),IF($A2<=(DATEVALUE("09/30/2010")),$F2,0),0) -> 0 | S2: =IF($A2>=(DATEVALUE("10/01/2010")),IF($A2<=(DATEVALUE("10/31/2010")),$F2,0),0) -> 0 | T2: =IF($A2>=(DATEVALUE("11/01/2010")),IF($A2<=(DATEVALUE("11/30/2010")),$F2,0),0) -> 0 | U2: =IF($A2>=(DATEVALUE("12/01/2010")),IF($A2<=(DATEVALUE("12/31/2010")),$F2,0),0) -> 0
A3: 2010-03-27 | B3: 14:00:00 | C3: Girls | D3: College | E3: Dual | F3: 40 | G3: UVU | H3: 9.7 | I3: UVU Alumni Dual. | J3: =IF(E3="Line",IF(OR(D3="JV",D3="VS",D3 ="FS"),1,0),0) -> 0 | K3: =IF(E3="Center",IF(OR(D3="JV",D3="VS",D3="FS"),1,0),0) -> 0 | L3: 40 | M3: 0 | N3: 0 | O3: 0 | P3: 0 | Q3: 0 | R3: 0 | S3: 0 | T3: 0 | U3: 0
A4: 2010-04-03 | B4: 08:30:00 | C4: Girls | D4: U14 | E4: Center | F4: 30 | G4: Orem Cemetery | H4: 15 | J4: =IF(E4="Line",IF(OR(D4="JV",D4="VS",D4 ="FS"),1,0),0) -> 0 | K4: =IF(E4="Center",IF(OR(D4="JV",D4="VS",D4="FS"),1,0),0) -> 0 | L4: 0 | M4: 30 | N4: 0 | O4: 0 | P4: 0 | Q4: 0 | R4: 0 | S4: 0 | T4: 0 | U4: 0
A5: 2010-04-10 | B5: 12:30:00 | C5: Boys | D5: U14 | E5: Line | F5: 16 | G5: Sertoma | H5: 4.4 | J5: 0 | K5: 0 | L5: 0 | M5: 16 | N5: 0 | O5: 0 | P5: 0 | Q5: 0 | R5: 0 | S5: 0 | T5: 0 | U5: 0
A6: 2010-04-12 | B6: 18:00:00 | C6: Girls | D6: U13 | E6: Center | F6: 30 | G6: Westridge | H6: 3.5 | J6: 0 | K6: 0 | L6: 0 | M6: 30 | N6: 0 | O6: 0 | P6: 0 | Q6: 0 | R6: 0 | S6: 0 | T6: 0 | U6: 0
A7: 2010-04-14 | B7: 18:00:00 | C7: Boys | D7: U14 | E7: Center | F7: 30 | G7: IHC Hospital | H7: 10.4 | J7: 0 | K7: 0 | L7: 0 | M7: 30 | N7: 0 | O7: 0 | P7: 0 | Q7: 0 | R7: 0 | S7: 0 | T7: 0 | U7: 0
A8: 2010-04-15 | B8: 18:00:00 | C8: Girls | D8: U12 | E8: Center | F8: 30 | G8: Canyon View JHS | H8: 14 | J8: 0 | K8: 0 | L8: 0 | M8: 30 | N8: 0 | O8: 0 | P8: 0 | Q8: 0 | R8: 0 | S8: 0 | T8: 0 | U8: 0
A9: 2010-04-17 | B9: 12:30:00 | C9: Girls | D9: U12 | E9: Center | F9: 30 | G9: Orem Cemetery | H9: 7.5 | J9: 0 | K9: 0 | L9: 0 | M9: 30 | N9: 0 | O9: 0 | P9: 0 | Q9: 0 | R9: 0 | S9: 0 | T9: 0 | U9: 0
A10: 2010-04-17 | B10: 14:30:00 | C10: Girls | D10: U11 | E10: Center | F10: 30 | G10: Orem Cemetery | H10: 7.5 | J10: 0 | K10: 0 | L10: 0 | M10: 30 | N10: 0 | O10: 0 | P10: 0 | Q10: 0 | R10: 0 | S10: 0 | T10: 0 | U10: 0
A11: 2010-04-17 | B11: 16:30:00 | C11: Boys | D11: U14 | E11: Line | F11: 16 | G11: Salem Loafer Vw | H11: 41.6 | J11: 0 | K11: 0 | L11: 0 | M11: 16 | N11: 0 | O11: 0 | P11: 0 | Q11: 0 | R11: 0 | S11: 0 | T11: 0 | U11: 0
A12: 2010-04-21 | B12: 18:00:00 | C12: Girls | D12: U17 | E12: Center | F12: 0 | G12: Orem Cemetery | H12: 15 | I12: Did pro bono. | J12: 0 | K12: 0 | L12: 0 | M12: 0 | N12: 0 | O12: 0 | P12: 0 | Q12: 0 | R12: 0 | S12: 0 | T12: 0 | U12: 0
A13: 2010-04-24 | B13: 08:30:00 | C13: Girls | D13: U13 | E13: Center | F13: 30 | G13: Sertoma | H13: 4.4 | J13: 0 | K13: 0 | L13: 0 | M13: 30 | N13: 0 | O13: 0 | P13: 0 | Q13: 0 | R13: 0 | S13: 0 | T13: 0 | U13: 0
A14: 2010-04-24 | B14: 12:30:00 | C14: Girls | D14: U13 | E14: Center | F14: 30 | G14: Orem Cemetery | H14: 15 | J14: 0 | K14: 0 | L14: 0 | M14: 30 | N14: 0 | O14: 0 | P14: 0 | Q14: 0 | R14: 0 | S14: 0 | T14: 0 | U14: 0
A15: 2010-04-28 | B15: 17:30:00 | C15: Girls | D15: U13 | E15: Center | F15: 30 | G15: Grandview | H15: 2.6 | J15: 0 | K15: 0 | L15: 0 | M15: 30 | N15: 0 | O15: 0 | P15: 0 | Q15: 0 | R15: 0 | S15: 0 | T15: 0 | U15: 0
A16: 2010-04-29 | B16: 18:00:00 | C16: Boys | D16: U12 | E16: Center | F16: 30 | G16: Mt. Ridge JHS | H16: 35 | J16: 0 | K16: 0 | L16: 0 | M16: 30 | N16: 0 | O16: 0 | P16: 0 | Q16: 0 | R16: 0 | S16: 0 | T16: 0 | U16: 0
A17: 2010-05-01 | B17: 08:30:00 | C17: Boys | D17: U13 | E17: Center | F17: 30 | G17: Sertoma | H17: 4.4 | J17: 0 | K17: 0 | L17: 0 | M17: 0 | N17: 30 | O17: 0 | P17: 0 | Q17: 0 | R17: 0 | S17: 0 | T17: 0 | U17: 0
A18: 2010-05-01 | B18: 12:30:00 | C18: Boys | D18: U14 | E18: Center | F18: 30 | G18: Sertoma | H18: 4.4 | J18: 0 | K18: 0 | L18: 0 | M18: 0 | N18: 30 | O18: 0 | P18: 0 | Q18: 0 | R18: 0 | S18: 0 | T18: 0 | U18: 0
A19: 2010-05-01 | B19: 14:30:00 | C19: Boys | D19: U13 | E19: Line | F19: 16 | G19: Sertoma | H19: 2.2 | J19: 0 | K19: 0 | L19: 0 | M19: 0 | N19: 16 | O19: 0 | P19: 0 | Q19: 0 | R19: 0 | S19: 0 | T19: 0 | U19: 0
A20: 2010-05-01 | B20: 16:30:00 | C20: Boys | D20: U14 | E20: Center | F20: 30 | G20: Sertoma | H20: 2.2 | J20: 0 | K20: 0 | L20: 0 | M20: 0 | N20: 30 | O20: 0 | P20: 0 | Q20: 0 | R20: 0 | S20: 0 | T20: 0 | U20: 0
A21: 2010-05-03 | B21: 18:00:00 | C21: Boys | D21: U12 | E21: Center | F21: 30 | G21: IHC Hospital | H21: 10.4 | J21: 0 | K21: 0 | L21: 0 | M21: 0 | N21: 30 | O21: 0 | P21: 0 | Q21: 0 | R21: 0 | S21: 0 | T21: 0 | U21: 0
A22: 2010-05-04 | B22: 18:00:00 | C22: Boys | D22: U13 | E22: Center | F22: 30 | G22: Sertoma | H22: 4.4 | J22: 0 | K22: 0 | L22: 0 | M22: 0 | N22: 30 | O22: 0 | P22: 0 | Q22: 0 | R22: 0 | S22: 0 | T22: 0 | U22: 0
A23: 2010-05-05 | B23: 18:00:00 | C23: Girls | D23: U17 | E23: Center | F23: 40 | G23: Orem Cemetery | H23: 15 | J23: 0 | K23: 0 | L23: 0 | M23: 0 | N23: 40 | O23: 0 | P23: 0 | Q23: 0 | R23: 0 | S23: 0 | T23: 0 | U23: 0
A24: 2010-05-06 | B24: 17:30:00 | C24: Boys | D24: U12 | E24: Line | F24: 15 | G24: Westridge | H24: 3.5 | J24: 0 | K24: 0 | L24: 0 | M24: 0 | N24: 15 | O24: 0 | P24: 0 | Q24: 0 | R24: 0 | S24: 0 | T24: 0 | U24: 0
A25: 2010-05-06 | B25: 19:00:00 | C25: Girls | D25: U13 | E25: Line | F25: 15 | G25: Westridge | H25: 0 | J25: 0 | K25: 0 | L25: 0 | M25: 0 | N25: 15 | O25: 0 | P25: 0 | Q25: 0 | R25: 0 | S25: 0 | T25: 0 | U25: 0
A26: 2010-05-08 | B26: 08:30:00 | C26: Boys | D26: U12 | E26: Center | F26: 30 | G26: Lakeside Complex | H26: 11.4 | J26: 0 | K26: 0 | L26: 0 | M26: 0 | N26: 30 | O26: 0 | P26: 0 | Q26: 0 | R26: 0 | S26: 0 | T26: 0 | U26: 0
A27: 2010-05-08 | B27: 10:30:00 | C27: Boys | D27: U13 | E27: Center | F27: 30 | G27: Lakeside Complex | H27: 0 | J27: 0 | K27: 0 | L27: 0 | M27: 0 | N27: 30 | O27: 0 | P27: 0 | Q27: 0 | R27: 0 | S27: 0 | T27: 0 | U27: 0
A28: 2010-05-08 | B28: 12:30:00 | C28: Girls | D28: U15 | E28: Center | F28: 40 | G28: Orem Cemetery | H28: 8 | J28: 0 | K28: 0 | L28: 0 | M28: 0 | N28: 40 | O28: 0 | P28: 0 | Q28: 0 | R28: 0 | S28: 0 | T28: 0 | U28: 0
A29: 2010-05-08 | B29: 14:30:00 | C29: Girls | D29: U14 | E29: Center | F29: 30 | G29: IHC Hospital | H29: 8 | J29: 0 | K29: 0 | L29: 0 | M29: 0 | N29: 30 | O29: 0 | P29: 0 | Q29: 0 | R29: 0 | S29: 0 | T29: 0 | U29: 0
A30: 2010-05-11 | B30: 18:00:00 | C30: Girls | D30: U13 | E30: Center | F30: 30 | G30: Lakeside Complex | H30: 11.4 | J30: 0 | K30: 0 | L30: 0 | M30: 0 | N30: 30 | O30: 0 | P30: 0 | Q30: 0 | R30: 0 | S30: 0 | T30: 0 | U30: 0
A31: 2010-05-12 | B31: 17:15:00 | C31: Girls | D31: U11 | E31: Center | F31: 30 | G31: Lakeside Complex | H31: 11.4 | J31: 0 | K31: 0 | L31: 0 | M31: 0 | N31: 30 | O31: 0 | P31: 0 | Q31: 0 | R31: 0 | S31: 0 | T31: 0 | U31: 0
A32: 2010-05-12 | B32: 19:00:00 | C32: Boys | D32: U11 | E32: Center | F32: 30 | G32: Lakeside Complex | H32: 0 | J32: 0 | K32: 0 | L32: 0 | M32: 0 | N32: 30 | O32: 0 | P32: 0 | Q32: 0 | R32: 0 | S32: 0 | T32: 0 | U32: 0
A33: 2010-05-13 | B33: 18:00:00 | C33: Boys | D33: U12 | E33: Center | F33: 30 | G33: IHC Hospital | H33: 10.4 | J33: 0 | K33: 0 | L33: 0 | M33: 0 | N33: 30 | O33: 0 | P33: 0 | Q33: 0 | R33: 0 | S33: 0 | T33: 0 | U33: 0
A34: 2010-05-14 | B34: 18:00:00 | C34: Boys | D34: U14 | E34: Center | F34: 30 | G34: Aspen ES | H34: 16 | J34: 0 | K34: 0 | L34: =IF($A34>=(DATEVALUE("03/01/2010")),IF($A34<=(DATEVALUE("03/31/2010")),$F34,0),0) -> 0 | M34: =IF($A34>=(DATEVALUE("04/01/2010")),IF($A34<=(DATEVALUE("04/30/2010")),$F34,0),0) -> 0 | N34: =IF($A34>=(DATEVALUE("05/01/2010")),IF($A34<=(DATEVALUE("05/30/2010")),$F34,0),0) -> 30 | O34: =IF($A34>=(DATEVALUE("06/01/2010")),IF($A34<=(DATEVALUE("06/30/2010")),$F34,0),0) -> 0 | P34: =IF($A34>=(DATEVALUE("07/01/2010")),IF($A34<=(DATEVALUE("07/31/2010")),$F34,0),0) -> 0 | Q34: =IF($A34>=(DATEVALUE("08/01/2010")),IF($A34<=(DATEVALUE("08/31/2010")),$F34,0),0) -> 0 | R34: =IF($A34>=(DATEVALUE("09/01/2010")),IF($A34<=(DATEVALUE("09/30/2010")),$F34,0),0) -> 0 | S34: =IF($A34>=(DATEVALUE("10/01/2010")),IF($A34<=(DATEVALUE("10/31/2010")),$F34,0),0) -> 0 | T34: =IF($A34>=(DATEVALUE("11/01/2010")),IF($A34<=(DATEVALUE("11/30/2010")),$F34,0),0) -> 0 | U34: =IF($A34>=(DATEVALUE("12/01/2010")),IF($A34<=(DATEVALUE("12/31/2010")),$F34,0),0) -> 0
A35: 2010-05-15 | B35: 09:00:00 | C35: Boys | D35: U10 | E35: Center | F35: 30 | G35: American Fork JHS | H35: 24 | J35: 0 | K35: 0 | L35: 0 | M35: 0 | N35: 30 | O35: 0 | P35: 0 | Q35: 0 | R35: 0 | S35: 0 | T35: 0 | U35: 0
A36: 2010-05-15 | B36: 10:30:00 | C36: Girls | D36: U15 | E36: Center | F36: 40 | G36: Orem Cemetery | H36: 7.5 | J36: 0 | K36: 0 | L36: 0 | M36: 0 | N36: 40 | O36: 0 | P36: 0 | Q36: 0 | R36: 0 | S36: 0 | T36: 0 | U36: 0
A37: 2010-05-15 | B37: 14:30:00 | C37: Girls | D37: U14 | E37: Center | F37: 30 | G37: IHC Hospital | H37: 10.4 | J37: 0 | K37: 0 | L37: 0 | M37: 0 | N37: 30 | O37: 0 | P37: 0 | Q37: 0 | R37: 0 | S37: 0 | T37: 0 | U37: 0
A38: 2010-07-29 | B38: 16:45:00 | C38: Boys | D38: U15 | E38: Line | F38: 20 | G38: Lakeside Complex | H38: 11.4 | J38: 0 | K38: 0 | L38: 0 | M38: 0 | N38: 0 | O38: 0 | P38: 20 | Q38: 0 | R38: 0 | S38: 0 | T38: 0 | U38: 0
A39: 2010-07-29 | B39: 18:30:00 | C39: Boys | D39: U18 | E39: Line | F39: 20 | G39: Lakeside Complex | H39: 0 | J39: 0 | K39: 0 | L39: 0 | M39: 0 | N39: 0 | O39: 0 | P39: 20 | Q39: 0 | R39: 0 | S39: 0 | T39: 0 | U39: 0
A40: 2010-07-31 | B40: 08:00:00 | C40: Girls | D40: U12 | E40: Center | F40: 30 | G40: Lakeside Complex | H40: 11.4 | J40: 0 | K40: 0 | L40: 0 | M40: 0 | N40: 0 | O40: 0 | P40: 30 | Q40: 0 | R40: 0 | S40: 0 | T40: 0 | U40: 0
A41: 2010-07-31 | B41: 10:00:00 | C41: Boys | D41: U12 | E41: Line | F41: 16 | G41: Lakeside Complex | H41: 0 | J41: 0 | K41: 0 | L41: 0 | M41: 0 | N41: 0 | O41: 0 | P41: 16 | Q41: 0 | R41: 0 | S41: 0 | T41: 0 | U41: 0
A42: 2010-08-18 | B42: 18:00:00 | C42: Girls | D42: U16 | E42: Center | F42: 60 | G42: Timpanogas HS | H42: 13.2 | J42: 0 | K42: 0 | L42: 0 | M42: 0 | N42: 0 | O42: 0 | P42: 0 | Q42: 60 | R42: 0 | S42: 0 | T42: 0 | U42: 0
A43: 2010-08-19 | B43: 18:30:00 | C43: Mens | D43: Open | E43: Line | F43: 30 | G43: Sertoma | H43: 4.4 | J43: 0 | K43: 0 | L43: 0 | M43: 0 | N43: 0 | O43: 0 | P43: 0 | Q43: 30 | R43: 0 | S43: 0 | T43: 0 | U43: 0
A44: 2010-08-21 | B44: 14:30:00 | C44: Mens | D44: Premier | E44: Line | F44: 30 | G44: Westridge | H44: 3.5 | J44: 0 | K44: 0 | L44: 0 | M44: 0 | N44: 0 | O44: 0 | P44: 0 | Q44: 30 | R44: 0 | S44: 0 | T44: 0 | U44: 0
A45: 2010-08-21 | B45: 17:00:00 | C45: Mens | D45: D3 | E45: Line | F45: 30 | G45: Sertoma | H45: 4.4 | J45: 0 | K45: 0 | L45: 0 | M45: 0 | N45: 0 | O45: 0 | P45: 0 | Q45: 30 | R45: 0 | S45: 0 | T45: 0 | U45: 0
A46: 2010-08-25 | B46: 17:30:00 | C46: Girls | D46: U14 | E46: Center | F46: 30 | G46: Orem Cemetery | H46: 15 | J46: 0 | K46: 0 | L46: 0 | M46: 0 | N46: 0 | O46: 0 | P46: 0 | Q46: 30 | R46: 0 | S46: 0 | T46: 0 | U46: 0
A47: 2010-08-28 | B47: 08:30:00 | C47: Boys | D47: U16 | E47: Center | F47: 40 | G47: IHC Hospital | H47: 8 | J47: 0 | K47: 0 | L47: 0 | M47: 0 | N47: 0 | O47: 0 | P47: 0 | Q47: 40 | R47: 0 | S47: 0 | T47: 0 | U47: 0
A48: 2010-08-28 | B48: 10:30:00 | C48: Boys | D48: U14 | E48: Center | F48: 30 | G48: Sertoma | H48: 5.3 | J48: 0 | K48: 0 | L48: 0 | M48: 0 | N48: 0 | O48: 0 | P48: 0 | Q48: 30 | R48: 0 | S48: 0 | T48: 0 | U48: 0
A49: 2010-08-28 | B49: 12:20:00 | C49: Girls | D49: U14 | E49: Center | F49: 30 | G49: Sertoma | H49: 0 | J49: 0 | K49: 0 | L49: 0 | M49: 0 | N49: 0 | O49: 0 | P49: 0 | Q49: 30 | R49: 0 | S49: 0 | T49: 0 | U49: 0
A50: 2010-08-28 | B50: 14:00:00 | C50: Girls | D50: U13 | E50: Center | F50: 30 | G50: Mountain View HS | H50: 8 | J50: 0 | K50: 0 | L50: 0 | M50: 0 | N50: 0 | O50: 0 | P50: 0 | Q50: 30 | R50: 0 | S50: 0 | T50: 0 | U50: 0
A51: 2010-08-31 | B51: 18:30:00 | C51: Boys | D51: U15 | E51: Line | F51: 20 | G51: Orem JHS | H51: 11.2 | J51: 0 | K51: 0 | L51: 0 | M51: 0 | N51: 0 | O51: 0 | P51: 0 | Q51: 20 | R51: 0 | S51: 0 | T51: 0 | U51: 0
A52: 2010-09-01 | B52: 17:30:00 | C52: Girls | D52: U13 | E52: Center | F52: 30 | G52: Lakeside Complex | H52: 17 | J52: 0 | K52: 0 | L52: 0 | M52: 0 | N52: 0 | O52: 0 | P52: 0 | Q52: 0 | R52: 30 | S52: 0 | T52: 0 | U52: 0
A53: 2010-09-07 | B53: 17:30:00 | C53: Boys | D53: U18 | E53: Center | F53: 40 | G53: Ira Allen | H53: 28.8 | J53: 0 | K53: 0 | L53: 0 | M53: 0 | N53: 0 | O53: 0 | P53: 0 | Q53: 0 | R53: 40 | S53: 0 | T53: 0 | U53: 0
A54: 2010-09-08 | B54: 17:30:00 | C54: Boys | D54: U17 | E54: Line | F54: 20 | G54: Orem JHS | H54: 11.2 | J54: 0 | K54: 0 | L54: 0 | M54: 0 | N54: 0 | O54: 0 | P54: 0 | Q54: 0 | R54: 20 | S54: 0 | T54: 0 | U54: 0
A55: 2010-09-09 | B55: 17:30:00 | C55: Boys | D55: U17 | E55: Center | F55: 40 | G55: Art Dye | H55: 30.4 | J55: 0 | K55: 0 | L55: 0 | M55: 0 | N55: 0 | O55: 0 | P55: 0 | Q55: 0 | R55: 40 | S55: 0 | T55: 0 | U55: 0
A56: 2010-09-10 | B56: 17:30:00 | C56: Girls | D56: U14 | E56: Center | F56: 30 | G56: Canyon View JHS | H56: 14 | J56: 0 | K56: 0 | L56: 0 | M56: 0 | N56: 0 | O56: 0 | P56: 0 | Q56: 0 | R56: 30 | S56: 0 | T56: 0 | U56: 0
A57: 2010-09-11 | B57: 10:30:00 | C57: Boys | D57: U15 | E57: Center | F57: 40 | G57: Mapleton ES | H57: 22 | J57: 0 | K57: 0 | L57: 0 | M57: 0 | N57: 0 | O57: 0 | P57: 0 | Q57: 0 | R57: 40 | S57: 0 | T57: 0 | U57: 0
A58: 2010-09-11 | B58: 12:30:00 | C58: Girls | D58: U14 | E58: Line | F58: 16 | G58: Mapleton ES | H58: 0 | J58: 0 | K58: 0 | L58: 0 | M58: 0 | N58: 0 | O58: 0 | P58: 0 | Q58: 0 | R58: 16 | S58: 0 | T58: 0 | U58: 0
A59: 2010-09-11 | B59: 14:30:00 | C59: Boys | D59: U13 | E59: Center | F59: 30 | G59: Mapleton ES | H59: 0 | J59: 0 | K59: 0 | L59: 0 | M59: 0 | N59: 0 | O59: 0 | P59: 0 | Q59: 0 | R59: 30 | S59: 0 | T59: 0 | U59: 0
A60: 2010-09-11 | B60: 16:30:00 | C60: Boys | D60: U11 | E60: Center | F60: 30 | G60: Hobble Creek ES | H60: 1 | J60: 0 | K60: 0 | L60: 0 | M60: 0 | N60: 0 | O60: 0 | P60: 0 | Q60: 0 | R60: 30 | S60: 0 | T60: 0 | U60: 0
A61: 2010-09-13 | B61: 17:30:00 | C61: Girls | D61: U12 | E61: Line | F61: 16 | G61: American Fork JHS | H61: 32.2 | J61: 0 | K61: 0 | L61: 0 | M61: 0 | N61: 0 | O61: 0 | P61: 0 | Q61: 0 | R61: 16 | S61: 0 | T61: 0 | U61: 0
A62: 2010-09-14 | B62: 17:30:00 | C62: Boys | D62: U13 | E62: Center | F62: 30 | G62: Canyon View JHS | H62: 14 | J62: 0 | K62: 0 | L62: 0 | M62: 0 | N62: 0 | O62: 0 | P62: 0 | Q62: 0 | R62: 30 | S62: 0 | T62: 0 | U62: 0
A63: 2010-09-15 | B63: 18:30:00 | C63: Boys | D63: U17 | E63: Center | F63: 40 | G63: IHC Hospital | H63: 10.4 | J63: 0 | K63: 0 | L63: 0 | M63: 0 | N63: 0 | O63: 0 | P63: 0 | Q63: 0 | R63: 40 | S63: 0 | T63: 0 | U63: 0
A64: 2010-09-16 | B64: 17:30:00 | C64: Girls | D64: U13 | E64: Center | F64: 30 | G64: Ira Allen | H64: 28.8 | J64: 0 | K64: 0 | L64: 0 | M64: 0 | N64: 0 | O64: 0 | P64: 0 | Q64: 0 | R64: 30 | S64: 0 | T64: 0 | U64: 0
A65: 2010-09-17 | B65: 17:30:00 | C65: Boys | D65: U12 | E65: Center | F65: 30 | G65: Art Dye | H65: 30.4 | J65: 0 | K65: 0 | L65: 0 | M65: 0 | N65: 0 | O65: 0 | P65: 0 | Q65: 0 | R65: 30 | S65: 0 | T65: 0 | U65: 0
A66: 2010-09-18 | B66: 08:30:00 | C66: Boys | D66: U10 | E66: Center | F66: 30 | G66: Hobble Creek ES | H66: 11.2 | J66: 0 | K66: 0 | L66: =IF($A66>=(DATEVALUE("03/01/2010")),IF($A66<=(DATEVALUE("03/31/2010")),$F66,0),0) -> 0 | M66: =IF($A66>=(DATEVALUE("04/01/2010")),IF($A66<=(DATEVALUE("04/30/2010")),$F66,0),0) -> 0 | N66: =IF($A66>=(DATEVALUE("05/01/2010")),IF($A66<=(DATEVALUE("05/30/2010")),$F66,0),0) -> 0 | O66: =IF($A66>=(DATEVALUE("06/01/2010")),IF($A66<=(DATEVALUE("06/30/2010")),$F66,0),0) -> 0 | P66: =IF($A66>=(DATEVALUE("07/01/2010")),IF($A66<=(DATEVALUE("07/31/2010")),$F66,0),0) -> 0 | Q66: =IF($A66>=(DATEVALUE("08/01/2010")),IF($A66<=(DATEVALUE("08/31/2010")),$F66,0),0) -> 0 | R66: =IF($A66>=(DATEVALUE("09/01/2010")),IF($A66<=(DATEVALUE("09/30/2010")),$F66,0),0) -> 30 | S66: =IF($A66>=(DATEVALUE("10/01/2010")),IF($A66<=(DATEVALUE("10/31/2010")),$F66,0),0) -> 0 | T66: =IF($A66>=(DATEVALUE("11/01/2010")),IF($A66<=(DATEVALUE("11/30/2010")),$F66,0),0) -> 0 | U66: =IF($A66>=(DATEVALUE("12/01/2010")),IF($A66<=(DATEVALUE("12/31/2010")),$F66,0),0) -> 0
A67: 2010-09-18 | B67: 10:30:00 | C67: Boys | D67: U14 | E67: Line | F67: 16 | G67: Ira Allen | H67: 3.1 | J67: 0 | K67: 0 | L67: 0 | M67: 0 | N67: 0 | O67: 0 | P67: 0 | Q67: 0 | R67: 16 | S67: 0 | T67: 0 | U67: 0
A68: 2010-09-18 | B68: 12:30:00 | C68: Girls | D68: U11 | E68: Center | F68: 30 | G68: Sertoma | H68: 14.6 | J68: 0 | K68: 0 | L68: 0 | M68: 0 | N68: 0 | O68: 0 | P68: 0 | Q68: 0 | R68: 30 | S68: 0 | T68: 0 | U68: 0
A69: 2010-09-18 | B69: 14:30:00 | C69: Boys | D69: U15 | E69: Center | F69: 40 | G69: Sertoma | H69: 2.2 | J69: 0 | K69: 0 | L69: 0 | M69: 0 | N69: 0 | O69: 0 | P69: 0 | Q69: 0 | R69: 40 | S69: 0 | T69: 0 | U69: 0
A70: 2010-09-20 | B70: 17:30:00 | C70: Boys | D70: U15 | E70: Center | F70: 40 | G70: IHC Hospital | H70: 10.4 | J70: 0 | K70: 0 | L70: 0 | M70: 0 | N70: 0 | O70: 0 | P70: 0 | Q70: 0 | R70: 40 | S70: 0 | T70: 0 | U70: 0
A71: 2010-09-21 | B71: 17:30:00 | C71: Boys | D71: U18 | E71: Center | F71: 40 | G71: Ira Allen | H71: 28.8 | J71: 0 | K71: 0 | L71: 0 | M71: 0 | N71: 0 | O71: 0 | P71: 0 | Q71: 0 | R71: 40 | S71: 0 | T71: 0 | U71: 0
A72: 2010-09-22 | B72: 17:30:00 | C72: Girls | D72: U14 | E72: Center | F72: 30 | G72: Healey Park | H72: 33.2 | J72: 0 | K72: 0 | L72: 0 | M72: 0 | N72: 0 | O72: 0 | P72: 0 | Q72: 0 | R72: 30 | S72: 0 | T72: 0 | U72: 0
A73: 2010-09-23 | B73: 18:00:00 | C73: Girls | D73: U12 | E73: Center | F73: 30 | G73: Mapleton ES | H73: 21.6 | J73: 0 | K73: 0 | L73: 0 | M73: 0 | N73: 0 | O73: 0 | P73: 0 | Q73: 0 | R73: 30 | S73: 0 | T73: 0 | U73: 0
A74: 2010-09-25 | B74: 10:00:00 | C74: Girls | D74: U12 | E74: Center | F74: 30 | G74: Lakeside Complex | H74: 6 | J74: 0 | K74: 0 | L74: 0 | M74: 0 | N74: 0 | O74: 0 | P74: 0 | Q74: 0 | R74: 30 | S74: 0 | T74: 0 | U74: 0
A75: 2010-09-25 | B75: 12:30:00 | C75: Boys | D75: U18 | E75: Center | F75: 40 | G75: IHC Hospital | H75: 2.6 | J75: 0 | K75: 0 | L75: 0 | M75: 0 | N75: 0 | O75: 0 | P75: 0 | Q75: 0 | R75: 40 | S75: 0 | T75: 0 | U75: 0
A76: 2010-09-25 | B76: 14:30:00 | C76: Boys | D76: U12 | E76: Center | F76: 30 | G76: IHC Hospital | H76: 5.2 | J76: 0 | K76: 0 | L76: 0 | M76: 0 | N76: 0 | O76: 0 | P76: 0 | Q76: 0 | R76: 30 | S76: 0 | T76: 0 | U76: 0
A77: 2010-09-27 | B77: 18:00:00 | C77: Boys | D77: U16 | E77: Center | F77: 40 | G77: Liberty Academy | H77: 41.2 | J77: 0 | K77: 0 | L77: 0 | M77: 0 | N77: 0 | O77: 0 | P77: 0 | Q77: 0 | R77: 40 | S77: 0 | T77: 0 | U77: 0
A78: 2010-09-28 | B78: 17:30:00 | C78: Boys | D78: U18 | E78: Line | F78: 20 | G78: Sertoma | H78: 4.4 | J78: 0 | K78: 0 | L78: 0 | M78: 0 | N78: 0 | O78: 0 | P78: 0 | Q78: 0 | R78: 20 | S78: 0 | T78: 0 | U78: 0
A79: 2010-09-29 | B79: 17:30:00 | C79: Girls | D79: U13 | E79: Center | F79: 30 | G79: Canyon View JHS | H79: 14 | J79: 0 | K79: 0 | L79: 0 | M79: 0 | N79: 0 | O79: 0 | P79: 0 | Q79: 0 | R79: 30 | S79: 0 | T79: 0 | U79: 0
A80: 2010-09-30 | B80: 17:30:00 | C80: Boys | D80: U18 | E80: Center | F80: 40 | G80: Art Dye | H80: 30.4 | J80: 0 | K80: 0 | L80: 0 | M80: 0 | N80: 0 | O80: 0 | P80: 0 | Q80: 0 | R80: 40 | S80: 0 | T80: 0 | U80: 0
A81: 2010-10-01 | B81: 17:30:00 | C81: Boys | D81: U11 | E81: Center | F81: 30 | G81: Sertoma | H81: 4.4 | J81: 0 | K81: 0 | L81: 0 | M81: 0 | N81: 0 | O81: 0 | P81: 0 | Q81: 0 | R81: 0 | S81: 30 | T81: 0 | U81: 0
A82: 2010-10-02 | B82: 10:30:00 | C82: Boys | D82: U14 | E82: Center | F82: 30 | G82: Sertoma | H82: 4.4 | J82: 0 | K82: 0 | L82: 0 | M82: 0 | N82: 0 | O82: 0 | P82: 0 | Q82: 0 | R82: 0 | S82: 30 | T82: 0 | U82: 0
A83: 2010-10-02 | B83: 14:30:00 | C83: Boys | D83: U15 | E83: Center | F83: 40 | G83: Mapleton ES | H83: 21.6 | J83: 0 | K83: 0 | L83: 0 | M83: 0 | N83: 0 | O83: 0 | P83: 0 | Q83: 0 | R83: 0 | S83: 40 | T83: 0 | U83: 0
A84: 2010-10-04 | B84: 17:30:00 | C84: Girls | D84: U14 | E84: Center | F84: 30 | G84: Orem Cemetery | H84: 15 | J84: 0 | K84: 0 | L84: 0 | M84: 0 | N84: 0 | O84: 0 | P84: 0 | Q84: 0 | R84: 0 | S84: 30 | T84: 0 | U84: 0
A85: 2010-10-05 | B85: 17:30:00 | C85: Boys | D85: U18 | E85: Center | F85: 40 | G85: IHC Hospital | H85: 10.4 | J85: =IF(E85="Line",IF(OR(D85="JV",D85="VS",D85 ="FS"),1,0),0) -> 0 | K85: =IF(E85="Center",IF(OR(D85="JV",D85="VS",D85="FS"),1,0),0) -> 0 | L85: 0 | M85: 0 | N85: 0 | O85: 0 | P85: 0 | Q85: 0 | R85: 0 | S85: 40 | T85: 0 | U85: 0
A86: 2010-10-06 | B86: 17:00:00 | C86: Boys | D86: U17 | E86: Center | F86: 40 | G86: Orem JHS | H86: 11.2 | J86: 0 | K86: 0 | L86: 0 | M86: 0 | N86: 0 | O86: 0 | P86: 0 | Q86: 0 | R86: 0 | S86: 40 | T86: 0 | U86: 0
A87: 2010-10-08 | B87: 17:30:00 | C87: Boys | D87: U12 | E87: Center | F87: 30 | G87: Sertoma | H87: 4.4 | J87: 0 | K87: 0 | L87: 0 | M87: 0 | N87: 0 | O87: 0 | P87: 0 | Q87: 0 | R87: 0 | S87: 30 | T87: 0 | U87: 0
A88: 2010-10-09 | B88: 08:30:00 | C88: Boys | D88: U13 | E88: Line | F88: 15 | G88: Grandview | H88: 1.3 | I88: AA Line. | J88: 0 | K88: 0 | L88: 0 | M88: 0 | N88: 0 | O88: 0 | P88: 0 | Q88: 0 | R88: 0 | S88: 15 | T88: 0 | U88: 0
A89: 2010-10-09 | B89: 10:30:00 | C89: Girls | D89: U12 | E89: Center | F89: 30 | G89: Sertoma | H89: 4.4 | J89: 0 | K89: 0 | L89: 0 | M89: 0 | N89: 0 | O89: 0 | P89: 0 | Q89: 0 | R89: 0 | S89: 30 | T89: 0 | U89: 0
A90: 2010-10-09 | B90: 14:30:00 | C90: Girls | D90: U12 | E90: Center | F90: 30 | G90: Orem Cemetery | H90: 15 | J90: 0 | K90: 0 | L90: 0 | M90: 0 | N90: 0 | O90: 0 | P90: 0 | Q90: 0 | R90: 0 | S90: 30 | T90: 0 | U90: 0
A91: 2010-10-13 | B91: 17:30:00 | C91: Boys | D91: U13 | E91: Center | F91: 30 | G91: IHC Hospital | H91: 10.4 | J91: 0 | K91: 0 | L91: 0 | M91: 0 | N91: 0 | O91: 0 | P91: 0 | Q91: 0 | R91: 0 | S91: 30 | T91: 0 | U91: 0
J92: 0 | K92: 0 | L92: 0 | M92: 0 | N92: 0 | O92: 0 | P92: 0 | Q92: 0 | R92: 0 | S92: 0 | T92: 0 | U92: 0
A94: TOTALS
A95: MISC CENTERS | B95: =SUM(K2:K81) -> 0
A96: MISC DUALS | B96: =B103 -> 1
A97: MISC LINES | B97: =SUM(J2:J93) -> 0
A98: TOTAL MISC | B98: =SUM(B95:B97) -> 1
A99: CLUB CENTERS | B99: =B102-B95 -> 62
A100: CLUB LINES | B100: =B104-B97 -> 17
A101: TOTAL CLUB | B101: =B105-B98 -> 79
A102: TOTAL CENTERS | B102: =COUNTIF(E2:E81,"Center") -> 62
A103: TOTAL DUALS | B103: =COUNTIF(E2:E81,"Dual") -> 1
A104: TOTAL LINES | B104: =COUNTIF(E2:E81,"Line") -> 17
A105: TOTAL GAMES | B105: =SUM(B102:B104) -> 80
A106: MILEAGE | B106: =SUM(H2:H92) -> 1033
A107: MONEY | B107: =SUM(F2:F92) -> 2677
A109: Earnings / Mo.:
A110: March | B110: =SUM(L2:L93) -> 60
A111: April | B111: =SUM(M2:M93) -> 332
A112: May | B112: =SUM(N2:N93) -> 616
A113: June | B113: =SUM(O2:O93) -> 0
A114: July | B114: =SUM(P2:P93) -> 86
A115: August | B115: =SUM(Q2:Q93) -> 330
A116: September | B116: =SUM(R2:R93) -> 908
A117: October | B117: =SUM(S2:S93) -> 345
A118: November | B118: =SUM(T2:T93) -> 0
A119: December | B119: =SUM(U2:U93) -> 0
A120: TOTAL | B120: =SUM(B110:B119) -> 2677
A123: Expenses: | C123: Jan-Jun | D123: Jul-Dec
A124: Mileage | B124: 0
A125: Club Reg. | B125: 50
A126: H.S. Reg. | B126: 0
A127: Uniform | B127: 43.15 | C127: 5/11/2010 - Scoreboard Sports Receipt
A128: TOTAL | B128: =SUM(B124:B127) -> 93.15

Sheet 2011 (hidden)
A1: DATE | B1: TIME | C1: SEX | D1: AGE | E1: POSITION | F1: FEE | G1: LOCATION | H1: MILEAGE | I1: COMMENTS | J1: MISC LINES | K1: MISC CENTERS | L1: ADULT CENTERS | M1: ADULT LINES | N1: MARCH | O1: APRIL | P1: MAY | Q1: JUNE | R1: JULY | S1: AUGUST | T1: SEPTEMBER | U1: OCTOBER | V1: NOVEMBER | W1: DECEMBER
A2: 2011-03-17 | B2: 20:00:00 | C2: Mixed | D2: Adult | E2: Center | F2: 20 | G2: Provo Peaks | H2: 2.6 | J2: =IF(E2="Line",IF(OR(D2="JV",D2="VS",D2 ="FS",D2="JHS"),1,0),0) -> 0 | K2: =IF(E2="Center",IF(OR(D2="JV",D2="VS",D2="FS",D2="Adult",D2="JHS"),1,0),0) -> 1 | L2: =IF(E2="Center",IF(OR(D2="D4",D2="D3",D2="D2",D2="D1",D2="Premier"),1,0),0) -> 0 | M2: =IF(E2="Line",IF(OR(D2="D4",D2="D3",D2="D2",D2="D1",D2="Premier"),1,0),0) -> 0 | N2: =IF($A2>=(DATEVALUE("03/01/2011")),IF($A2<=(DATEVALUE("03/31/2011")),$F2,0),0) -> 20 | O2: =IF($A2>=(DATEVALUE("04/01/2011")),IF($A2<=(DATEVALUE("04/30/2011")),$F2,0),0) -> 0 | P2: =IF($A2>=(DATEVALUE("05/01/2011")),IF($A2<=(DATEVALUE("05/30/2011")),$F2,0),0) -> 0 | Q2: =IF($A2>=(DATEVALUE("06/01/2011")),IF($A2<=(DATEVALUE("06/30/2011")),$F2,0),0) -> 0 | R2: =IF($A2>=(DATEVALUE("07/01/2011")),IF($A2<=(DATEVALUE("07/31/2011")),$F2,0),0) -> 0 | S2: =IF($A2>=(DATEVALUE("08/01/2011")),IF($A2<=(DATEVALUE("08/31/2011")),$F2,0),0) -> 0 | T2: =IF($A2>=(DATEVALUE("09/01/2011")),IF($A2<=(DATEVALUE("09/30/2011")),$F2,0),0) -> 0 | U2: =IF($A2>=(DATEVALUE("10/01/2011")),IF($A2<=(DATEVALUE("10/31/2011")),$F2,0),0) -> 0 | V2: =IF($A2>=(DATEVALUE("11/01/2011")),IF($A2<=(DATEVALUE("11/30/2011")),$F2,0),0) -> 0 | W2: =IF($A2>=(DATEVALUE("12/01/2011")),IF($A2<=(DATEVALUE("12/31/2011")),$F2,0),0) -> 0
A3: 2011-03-17 | B3: 20:45:00 | C3: Mixed | D3: Adult | E3: Center | F3: 20 | G3: Provo Peaks | H3: 0 | J3: =IF(E3="Line",IF(OR(D3="JV",D3="VS",D3 ="FS",D3="JHS"),1,0),0) -> 0 | K3: =IF(E3="Center",IF(OR(D3="JV",D3="VS",D3="FS",D3="Adult",D3="JHS"),1,0),0) -> 1 | L3: =IF(E3="Center",IF(OR(D3="D4",D3="D3",D3="D2",D3="D1",D3="Premier"),1,0),0) -> 0 | M3: =IF(E3="Line",IF(OR(D3="D4",D3="D3",D3="D2",D3="D1",D3="Premier"),1,0),0) -> 0 | N3: 20 | O3: 0 | P3: 0 | Q3: 0 | R3: 0 | S3: 0 | T3: 0 | U3: 0 | V3: 0 | W3: 0
A4: 2011-03-17 | B4: 21:30:00 | C4: Mixed | D4: Adult | E4: Center | F4: 20 | G4: Provo Peaks | H4: 0 | J4: 0 | K4: 1 | L4: 0 | M4: 0 | N4: 20 | O4: 0 | P4: 0 | Q4: 0 | R4: 0 | S4: 0 | T4: 0 | U4: 0 | V4: 0 | W4: 0
A5: 2011-03-17 | B5: 22:15:00 | C5: Mixed | D5: Adult | E5: Center | F5: 20 | G5: Provo Peaks | H5: 2.6 | J5: 0 | K5: 1 | L5: 0 | M5: 0 | N5: 20 | O5: 0 | P5: 0 | Q5: 0 | R5: 0 | S5: 0 | T5: 0 | U5: 0 | V5: 0 | W5: 0
A6: 2011-03-22 | B6: 16:30:00 | C6: Mixed | D6: JHS | E6: Line | F6: 20 | G6: Grandview ES | H6: 2.6 | J6: 1 | K6: 0 | L6: 0 | M6: 0 | N6: 20 | O6: 0 | P6: 0 | Q6: 0 | R6: 0 | S6: 0 | T6: 0 | U6: 0 | V6: 0 | W6: 0
A7: 2011-03-29 | B7: 17:30:00 | C7: Boys | D7: U12 | E7: Center | F7: 30 | G7: Lakeside Complex | H7: 11.4 | J7: 0 | K7: 0 | L7: 0 | M7: 0 | N7: 30 | O7: 0 | P7: 0 | Q7: 0 | R7: 0 | S7: 0 | T7: 0 | U7: 0 | V7: 0 | W7: 0
A8: 2011-03-30 | B8: 18:00:00 | C8: Girls | D8: U16 | E8: Center | F8: 40 | G8: IHC Hospital | H8: 10.4 | J8: 0 | K8: 0 | L8: 0 | M8: 0 | N8: 40 | O8: 0 | P8: 0 | Q8: 0 | R8: 0 | S8: 0 | T8: 0 | U8: 0 | V8: 0 | W8: 0
A9: 2011-03-31 | B9: 17:30:00 | C9: Boys | D9: U11 | E9: Center | F9: 30 | G9: Sertoma | H9: 4.4 | J9: 0 | K9: 0 | L9: 0 | M9: 0 | N9: 30 | O9: 0 | P9: 0 | Q9: 0 | R9: 0 | S9: 0 | T9: 0 | U9: 0 | V9: 0 | W9: 0
A10: 2011-04-01 | B10: 18:00:00 | C10: Boys | D10: U11 | E10: Center | F10: 30 | G10: Mapleton ES | H10: 21.6 | J10: 0 | K10: 0 | L10: 0 | M10: 0 | N10: 0 | O10: 30 | P10: 0 | Q10: 0 | R10: 0 | S10: 0 | T10: 0 | U10: 0 | V10: 0 | W10: 0
A11: 2011-04-02 | B11: 08:30:00 | C11: Girls | D11: U16 | E11: Center | F11: 40 | G11: Aspen ES | H11: 16 | J11: 0 | K11: 0 | L11: 0 | M11: 0 | N11: 0 | O11: 40 | P11: 0 | Q11: 0 | R11: 0 | S11: 0 | T11: 0 | U11: 0 | V11: 0 | W11: 0
A12: 2011-04-02 | B12: 12:30:00 | C12: Boys | D12: U14 | E12: Line | F12: 16 | G12: Canyon View JHS | H12: 14 | J12: 0 | K12: 0 | L12: 0 | M12: 0 | N12: 0 | O12: 16 | P12: 0 | Q12: 0 | R12: 0 | S12: 0 | T12: 0 | U12: 0 | V12: 0 | W12: 0
A13: 2011-04-02 | B13: 14:30:00 | C13: Girls | D13: U14 | E13: Line | F13: 16 | G13: Canyon View JHS | H13: 0 | J13: 0 | K13: 0 | L13: 0 | M13: 0 | N13: 0 | O13: 16 | P13: 0 | Q13: 0 | R13: 0 | S13: 0 | T13: 0 | U13: 0 | V13: 0 | W13: 0
A14: 2011-04-05 | B14: 17:30:00 | C14: Boys | D14: U12 | E14: Center | F14: 30 | G14: Westridge | H14: 3.5 | J14: 0 | K14: 0 | L14: 0 | M14: 0 | N14: 0 | O14: 30 | P14: 0 | Q14: 0 | R14: 0 | S14: 0 | T14: 0 | U14: 0 | V14: 0 | W14: 0
A15: 2011-04-06 | B15: 18:00:00 | C15: Girls | D15: U14 | E15: Center | F15: 30 | G15: Sertoma | H15: 4.4 | J15: 0 | K15: 0 | L15: 0 | M15: 0 | N15: 0 | O15: 30 | P15: 0 | Q15: 0 | R15: 0 | S15: 0 | T15: 0 | U15: 0 | V15: 0 | W15: 0
A16: 2011-04-07 | B16: 18:00:00 | C16: Girls | D16: U12 | E16: Center | F16: 30 | G16: Sertoma | H16: 4.4 | J16: 0 | K16: 0 | L16: 0 | M16: 0 | N16: 0 | O16: 30 | P16: 0 | Q16: 0 | R16: 0 | S16: 0 | T16: 0 | U16: 0 | V16: 0 | W16: 0
A17: 2011-04-09 | B17: 17:30:00 | C17: Girls | D17: U14 | E17: Line | F17: 15 | G17: Sertoma | H17: 4.4 | J17: 0 | K17: 0 | L17: 0 | M17: 0 | N17: 0 | O17: 15 | P17: 0 | Q17: 0 | R17: 0 | S17: 0 | T17: 0 | U17: 0 | V17: 0 | W17: 0
A18: 2011-04-12 | B18: 18:00:00 | C18: Girls | D18: U16 | E18: Line | F18: 20 | G18: Aspen ES | H18: 16 | J18: 0 | K18: 0 | L18: 0 | M18: 0 | N18: 0 | O18: 20 | P18: 0 | Q18: 0 | R18: 0 | S18: 0 | T18: 0 | U18: 0 | V18: 0 | W18: 0
A19: 2011-04-18 | B19: 18:00:00 | C19: Girls | D19: U14 | E19: Center | F19: 30 | G19: Canyon View JHS | H19: 14 | J19: 0 | K19: 0 | L19: 0 | M19: 0 | N19: 0 | O19: 30 | P19: 0 | Q19: 0 | R19: 0 | S19: 0 | T19: 0 | U19: 0 | V19: 0 | W19: 0
A20: 2011-04-19 | B20: 18:00:00 | C20: Girls | D20: U15 | E20: Center | F20: 40 | G20: Orem Cemetery | H20: 15 | J20: 0 | K20: 0 | L20: 0 | M20: 0 | N20: 0 | O20: 40 | P20: 0 | Q20: 0 | R20: 0 | S20: 0 | T20: 0 | U20: 0 | V20: 0 | W20: 0
A21: 2011-04-21 | B21: 18:00:00 | C21: Girls | D21: U14 | E21: Center | F21: 30 | G21: Healey Park | H21: 33.2 | J21: 0 | K21: 0 | L21: 0 | M21: 0 | N21: 0 | O21: 30 | P21: 0 | Q21: 0 | R21: 0 | S21: 0 | T21: 0 | U21: 0 | V21: 0 | W21: 0
A22: 2011-04-23 | B22: 08:30:00 | C22: Girls | D22: U17 | E22: Center | F22: 40 | G22: Orem Cemetery | H22: 15 | J22: 0 | K22: 0 | L22: 0 | M22: 0 | N22: 0 | O22: 40 | P22: 0 | Q22: 0 | R22: 0 | S22: 0 | T22: 0 | U22: 0 | V22: 0 | W22: 0
A23: 2011-04-23 | B23: 12:00:00 | C23: Boys | D23: U13 | E23: Line | F23: 15 | G23: Lakeside Complex | H23: 11.4 | J23: 0 | K23: 0 | L23: 0 | M23: 0 | N23: 0 | O23: 15 | P23: 0 | Q23: 0 | R23: 0 | S23: 0 | T23: 0 | U23: 0 | V23: 0 | W23: 0
A24: 2011-04-23 | B24: 14:00:00 | C24: Boys | D24: U14 | E24: Center | F24: 30 | G24: Lakeside Complex | H24: 0 | J24: 0 | K24: 0 | L24: 0 | M24: 0 | N24: 0 | O24: 30 | P24: 0 | Q24: 0 | R24: 0 | S24: 0 | T24: 0 | U24: 0 | V24: 0 | W24: 0
A25: 2011-04-23 | B25: 16:30:00 | C25: Boys | D25: U14 | E25: Center | F25: 30 | G25: Spanish Fork HS | H25: 23.2 | J25: 0 | K25: 0 | L25: 0 | M25: 0 | N25: 0 | O25: 30 | P25: 0 | Q25: 0 | R25: 0 | S25: 0 | T25: 0 | U25: 0 | V25: 0 | W25: 0
A26: 2011-04-25 | B26: 17:00:00 | C26: Girls | D26: U12 | E26: Center | F26: 30 | G26: Orem Cemetery | H26: 15 | J26: 0 | K26: 0 | L26: 0 | M26: 0 | N26: 0 | O26: 30 | P26: 0 | Q26: 0 | R26: 0 | S26: 0 | T26: 0 | U26: 0 | V26: 0 | W26: 0
A27: 2011-04-26 | B27: 17:00:00 | C27: Boys | D27: U13 | E27: Center | F27: 30 | G27: IHC Hospital | H27: 10.4 | J27: 0 | K27: 0 | L27: 0 | M27: 0 | N27: 0 | O27: 30 | P27: 0 | Q27: 0 | R27: 0 | S27: 0 | T27: 0 | U27: 0 | V27: 0 | W27: 0
A28: 2011-04-26 | B28: 18:30:00 | C28: Boys | D28: U12 | E28: Center | F28: 30 | G28: IHC Hospital | H28: 0 | J28: 0 | K28: 0 | L28: 0 | M28: 0 | N28: 0 | O28: 30 | P28: 0 | Q28: 0 | R28: 0 | S28: 0 | T28: 0 | U28: 0 | V28: 0 | W28: 0
A29: 2011-04-27 | B29: 18:00:00 | C29: Boys | D29: U14 | E29: Center | F29: 30 | G29: Grandview ES | H29: 2.6 | J29: 0 | K29: 0 | L29: 0 | M29: 0 | N29: 0 | O29: 30 | P29: 0 | Q29: 0 | R29: 0 | S29: 0 | T29: 0 | U29: 0 | V29: 0 | W29: 0
A30: 2011-04-28 | B30: 18:30:00 | C30: Girls | D30: U16 | E30: Line | F30: 20 | G30: Sertoma | H30: 4.4 | J30: 0 | K30: 0 | L30: 0 | M30: 0 | N30: 0 | O30: 20 | P30: 0 | Q30: 0 | R30: 0 | S30: 0 | T30: 0 | U30: 0 | V30: 0 | W30: 0
A31: 2011-04-29 | B31: 18:00:00 | C31: Boys | D31: U12 | E31: Line | F31: 16 | G31: Sertoma | H31: 4.4 | J31: 0 | K31: 0 | L31: 0 | M31: 0 | N31: 0 | O31: 16 | P31: 0 | Q31: 0 | R31: 0 | S31: 0 | T31: 0 | U31: 0 | V31: 0 | W31: 0
A32: 2011-04-30 | B32: 15:45:00 | C32: Mixed | D32: Adult | E32: Line | F32: 25 | G32: Westridge | H32: 3.5 | J32: 0 | K32: 0 | L32: 0 | M32: 0 | N32: 0 | O32: 25 | P32: 0 | Q32: 0 | R32: 0 | S32: 0 | T32: 0 | U32: 0 | V32: 0 | W32: 0
A33: 2011-05-02 | B33: 18:00:00 | C33: Mixed | D33: Adult | E33: Center | F33: 20 | G33: Westridge | H33: 3.5 | J33: 0 | K33: 1 | L33: 0 | M33: 0 | N33: 0 | O33: 0 | P33: 20 | Q33: 0 | R33: 0 | S33: 0 | T33: 0 | U33: 0 | V33: 0 | W33: 0
A34: 2011-05-02 | B34: 19:00:00 | C34: Mixed | D34: Adult | E34: Center | F34: 20 | G34: Westridge | H34: 0 | J34: 0 | K34: 1 | L34: 0 | M34: 0 | N34: =IF($A34>=(DATEVALUE("03/01/2011")),IF($A34<=(DATEVALUE("03/31/2011")),$F34,0),0) -> 0 | O34: =IF($A34>=(DATEVALUE("04/01/2011")),IF($A34<=(DATEVALUE("04/30/2011")),$F34,0),0) -> 0 | P34: =IF($A34>=(DATEVALUE("05/01/2011")),IF($A34<=(DATEVALUE("05/30/2011")),$F34,0),0) -> 20 | Q34: =IF($A34>=(DATEVALUE("06/01/2011")),IF($A34<=(DATEVALUE("06/30/2011")),$F34,0),0) -> 0 | R34: =IF($A34>=(DATEVALUE("07/01/2011")),IF($A34<=(DATEVALUE("07/31/2011")),$F34,0),0) -> 0 | S34: =IF($A34>=(DATEVALUE("08/01/2011")),IF($A34<=(DATEVALUE("08/31/2011")),$F34,0),0) -> 0 | T34: =IF($A34>=(DATEVALUE("09/01/2011")),IF($A34<=(DATEVALUE("09/30/2011")),$F34,0),0) -> 0 | U34: =IF($A34>=(DATEVALUE("10/01/2011")),IF($A34<=(DATEVALUE("10/31/2011")),$F34,0),0) -> 0 | V34: =IF($A34>=(DATEVALUE("11/01/2011")),IF($A34<=(DATEVALUE("11/30/2011")),$F34,0),0) -> 0 | W34: =IF($A34>=(DATEVALUE("12/01/2011")),IF($A34<=(DATEVALUE("12/31/2011")),$F34,0),0) -> 0
A35: 2011-05-03 | B35: 18:00:00 | C35: Boys | D35: U14 | E35: Center | F35: 30 | G35: Sertoma | H35: 4.4 | J35: 0 | K35: 0 | L35: 0 | M35: 0 | N35: 0 | O35: 0 | P35: 30 | Q35: 0 | R35: 0 | S35: 0 | T35: 0 | U35: 0 | V35: 0 | W35: 0
A36: 2011-05-04 | B36: 18:00:00 | C36: Boys | D36: U14 | E36: Line | F36: 16 | G36: Grandview ES | H36: 2.6 | J36: 0 | K36: 0 | L36: 0 | M36: 0 | N36: 0 | O36: 0 | P36: 16 | Q36: 0 | R36: 0 | S36: 0 | T36: 0 | U36: 0 | V36: 0 | W36: 0
A37: 2011-05-05 | B37: 17:30:00 | C37: Boys | D37: U13 | E37: Line | F37: 15 | G37: Lakeside Complex | H37: 9.2 | J37: 0 | K37: 0 | L37: 0 | M37: 0 | N37: 0 | O37: 0 | P37: 15 | Q37: 0 | R37: 0 | S37: 0 | T37: 0 | U37: 0 | V37: 0 | W37: 0
A38: 2011-05-05 | B38: 19:00:00 | C38: Boys | D38: U12 | E38: Center | F38: 20 | G38: Grandview ES | H38: 2.2 | J38: 0 | K38: 0 | L38: 0 | M38: 0 | N38: 0 | O38: 0 | P38: 20 | Q38: 0 | R38: 0 | S38: 0 | T38: 0 | U38: 0 | V38: 0 | W38: 0
A39: 2011-05-06 | B39: 18:00:00 | C39: Boys | D39: U14 | E39: Line | F39: 20 | G39: Grandview ES | H39: 4.4 | J39: 0 | K39: 0 | L39: 0 | M39: 0 | N39: 0 | O39: 0 | P39: 20 | Q39: 0 | R39: 0 | S39: 0 | T39: 0 | U39: 0 | V39: 0 | W39: 0
A40: 2011-05-07 | B40: 09:00:00 | C40: Boys | D40: U12 | E40: Center | F40: 30 | G40: Grandview ES | H40: 2.6 | J40: 0 | K40: 0 | L40: 0 | M40: 0 | N40: 0 | O40: 0 | P40: 30 | Q40: 0 | R40: 0 | S40: 0 | T40: 0 | U40: 0 | V40: 0 | W40: 0
A41: 2011-05-07 | B41: 12:00:00 | C41: Girls | D41: U14 | E41: Line | F41: 15 | G41: Grandview ES | H41: 0 | J41: 0 | K41: 0 | L41: 0 | M41: 0 | N41: 0 | O41: 0 | P41: 15 | Q41: 0 | R41: 0 | S41: 0 | T41: 0 | U41: 0 | V41: 0 | W41: 0
A42: 2011-05-07 | B42: 14:30:00 | C42: Girls | D42: U11 | E42: Center | F42: 30 | G42: Sertoma | H42: 4.4 | J42: 0 | K42: 0 | L42: 0 | M42: 0 | N42: 0 | O42: 0 | P42: 30 | Q42: 0 | R42: 0 | S42: 0 | T42: 0 | U42: 0 | V42: 0 | W42: 0
A43: 2011-05-07 | B43: 16:30:00 | C43: Boys | D43: U14 | E43: Line | F43: 16 | G43: Sertoma | H43: 0 | J43: 0 | K43: 0 | L43: 0 | M43: 0 | N43: 0 | O43: 0 | P43: 16 | Q43: 0 | R43: 0 | S43: 0 | T43: 0 | U43: 0 | V43: 0 | W43: 0
A44: 2011-05-09 | B44: 17:30:00 | C44: Girls | D44: U13 | E44: Line | F44: 15 | G44: Lakeside Complex | H44: 11.4 | J44: 0 | K44: 0 | L44: 0 | M44: 0 | N44: 0 | O44: 0 | P44: 15 | Q44: 0 | R44: 0 | S44: 0 | T44: 0 | U44: 0 | V44: 0 | W44: 0
A45: 2011-05-09 | B45: 18:45:00 | C45: Boys | D45: U14 | E45: Center | F45: 30 | G45: Lakeside Complex | H45: 0 | J45: 0 | K45: 0 | L45: 0 | M45: 0 | N45: 0 | O45: 0 | P45: 30 | Q45: 0 | R45: 0 | S45: 0 | T45: 0 | U45: 0 | V45: 0 | W45: 0
A46: 2011-05-10 | B46: 17:30:00 | C46: Boys | D46: U10 | E46: Center | F46: 30 | G46: Lakeside Complex | H46: 11.4 | J46: 0 | K46: 0 | L46: 0 | M46: 0 | N46: 0 | O46: 0 | P46: 30 | Q46: 0 | R46: 0 | S46: 0 | T46: 0 | U46: 0 | V46: 0 | W46: 0
A47: 2011-05-10 | B47: 18:45:00 | C47: Boys | D47: U10 | E47: Center | F47: 30 | G47: Lakeside Complex | H47: 0 | J47: 0 | K47: 0 | L47: 0 | M47: 0 | N47: 0 | O47: 0 | P47: 30 | Q47: 0 | R47: 0 | S47: 0 | T47: 0 | U47: 0 | V47: 0 | W47: 0
A48: 2011-05-11 | B48: 17:30:00 | C48: Boys | D48: U11 | E48: Center | F48: 30 | G48: Lakeside Complex | H48: 11.4 | J48: 0 | K48: 0 | L48: 0 | M48: 0 | N48: 0 | O48: 0 | P48: 30 | Q48: 0 | R48: 0 | S48: 0 | T48: 0 | U48: 0 | V48: 0 | W48: 0
A49: 2011-05-11 | B49: 18:45:00 | C49: Boys | D49: U11 | E49: Center | F49: 30 | G49: Lakeside Complex | H49: 0 | J49: 0 | K49: 0 | L49: 0 | M49: 0 | N49: 0 | O49: 0 | P49: 30 | Q49: 0 | R49: 0 | S49: 0 | T49: 0 | U49: 0 | V49: 0 | W49: 0
A50: 2011-05-12 | B50: 17:30:00 | C50: Girls | D50: U13 | E50: Center | F50: 30 | G50: Lakeside Complex | H50: 11.4 | J50: 0 | K50: 0 | L50: 0 | M50: 0 | N50: 0 | O50: 0 | P50: 30 | Q50: 0 | R50: 0 | S50: 0 | T50: 0 | U50: 0 | V50: 0 | W50: 0
A51: 2011-05-12 | B51: 18:45:00 | C51: Girls | D51: U13 | E51: Line | F51: 15 | G51: Lakeside Complex | H51: 0 | J51: 0 | K51: 0 | L51: 0 | M51: 0 | N51: 0 | O51: 0 | P51: 15 | Q51: 0 | R51: 0 | S51: 0 | T51: 0 | U51: 0 | V51: 0 | W51: 0
A52: 2011-05-13 | B52: 17:30:00 | C52: Boys | D52: U12 | E52: Center | F52: 30 | G52: Lakeside Complex | H52: 11.4 | J52: 0 | K52: 0 | L52: 0 | M52: 0 | N52: 0 | O52: 0 | P52: 30 | Q52: 0 | R52: 0 | S52: 0 | T52: 0 | U52: 0 | V52: 0 | W52: 0
A53: 2011-05-13 | B53: 18:45:00 | C53: Boys | D53: U13 | E53: Center | F53: 30 | G53: Lakeside Complex | H53: 0 | J53: 0 | K53: 0 | L53: 0 | M53: 0 | N53: 0 | O53: 0 | P53: 30 | Q53: 0 | R53: 0 | S53: 0 | T53: 0 | U53: 0 | V53: 0 | W53: 0
A54: 2011-05-14 | B54: 08:30:00 | C54: Boys | D54: U13 | E54: Line | F54: 16 | G54: Canyon View JHS | H54: 7 | J54: 0 | K54: 0 | L54: 0 | M54: 0 | N54: 0 | O54: 0 | P54: 16 | Q54: 0 | R54: 0 | S54: 0 | T54: 0 | U54: 0 | V54: 0 | W54: 0
A55: 2011-05-14 | B55: 10:30:00 | C55: Boys | D55: U13 | E55: Center | F55: 30 | G55: Hobble Creek ES | H55: 19.6 | J55: 0 | K55: 0 | L55: 0 | M55: 0 | N55: 0 | O55: 0 | P55: 30 | Q55: 0 | R55: 0 | S55: 0 | T55: 0 | U55: 0 | V55: 0 | W55: 0
A56: 2011-05-14 | B56: 12:30:00 | C56: Boys | D56: U12 | E56: Center | F56: 30 | G56: Hobble Creek ES | H56: 0 | J56: 0 | K56: 0 | L56: 0 | M56: 0 | N56: 0 | O56: 0 | P56: 30 | Q56: 0 | R56: 0 | S56: 0 | T56: 0 | U56: 0 | V56: 0 | W56: 0
A57: 2011-05-14 | B57: 14:30:00 | C57: Girls | D57: U16 | E57: Center | F57: 40 | G57: Spanish Fork HS | H57: 17.9 | J57: 0 | K57: 0 | L57: 0 | M57: 0 | N57: 0 | O57: 0 | P57: 40 | Q57: 0 | R57: 0 | S57: 0 | T57: 0 | U57: 0 | V57: 0 | W57: 0
A58: 2011-05-16 | B58: 19:00:00 | C58: Girls | D58: U16 | E58: Center | F58: 40 | G58: Salem Loafer View | H58: 34.2 | J58: 0 | K58: 0 | L58: 0 | M58: 0 | N58: 0 | O58: 0 | P58: 40 | Q58: 0 | R58: 0 | S58: 0 | T58: 0 | U58: 0 | V58: 0 | W58: 0
A59: 2011-05-17 | B59: 18:00:00 | C59: Boys | D59: U13 | E59: Center | F59: 30 | G59: Ira Allen | H59: 28.8 | J59: 0 | K59: 0 | L59: 0 | M59: 0 | N59: 0 | O59: 0 | P59: 30 | Q59: 0 | R59: 0 | S59: 0 | T59: 0 | U59: 0 | V59: 0 | W59: 0
A60: 2011-05-18 | B60: 18:00:00 | C60: Boys | D60: U12 | E60: Center | F60: 30 | G60: Mapleton ES | H60: 21.6 | J60: 0 | K60: 0 | L60: 0 | M60: 0 | N60: 0 | O60: 0 | P60: 30 | Q60: 0 | R60: 0 | S60: 0 | T60: 0 | U60: 0 | V60: 0 | W60: 0
A61: 2011-05-19 | B61: 18:00:00 | C61: Girls | D61: U11 | E61: Center | F61: 30 | G61: Mapleton ES | H61: 21.6 | J61: 0 | K61: 0 | L61: 0 | M61: 0 | N61: 0 | O61: 0 | P61: 30 | Q61: 0 | R61: 0 | S61: 0 | T61: 0 | U61: 0 | V61: 0 | W61: 0
A62: 2011-05-20 | B62: 18:00:00 | C62: Boys | D62: U14 | E62: Center | F62: 30 | G62: Mapleton ES | H62: 21.6 | J62: 0 | K62: 0 | L62: 0 | M62: 0 | N62: 0 | O62: 0 | P62: 30 | Q62: 0 | R62: 0 | S62: 0 | T62: 0 | U62: 0 | V62: 0 | W62: 0
A63: 2011-05-21 | B63: 08:30:00 | C63: Boys | D63: U14 | E63: Center | F63: 30 | G63: Canyon View JHS | H63: 14 | J63: 0 | K63: 0 | L63: 0 | M63: 0 | N63: 0 | O63: 0 | P63: 30 | Q63: 0 | R63: 0 | S63: 0 | T63: 0 | U63: 0 | V63: 0 | W63: 0
A64: 2011-05-21 | B64: 10:30:00 | C64: Girls | D64: U16 | E64: Center | F64: 40 | G64: Canyon View JHS | H64: 0 | J64: 0 | K64: 0 | L64: 0 | M64: 0 | N64: 0 | O64: 0 | P64: 40 | Q64: 0 | R64: 0 | S64: 0 | T64: 0 | U64: 0 | V64: 0 | W64: 0
A65: 2011-05-21 | B65: 14:30:00 | C65: Boys | D65: U14 | E65: Center | F65: 30 | G65: Arte Dye | H65: 15.6 | J65: 0 | K65: 0 | L65: 0 | M65: 0 | N65: 0 | O65: 0 | P65: 30 | Q65: 0 | R65: 0 | S65: 0 | T65: 0 | U65: 0 | V65: 0 | W65: 0
A66: 2011-05-21 | B66: 16:30:00 | C66: Girls | D66: U12 | E66: Center | F66: 30 | G66: American Fork JHS | H66: 15.8 | J66: 0 | K66: 0 | L66: 0 | M66: 0 | N66: =IF($A66>=(DATEVALUE("03/01/2011")),IF($A66<=(DATEVALUE("03/31/2011")),$F66,0),0) -> 0 | O66: =IF($A66>=(DATEVALUE("04/01/2011")),IF($A66<=(DATEVALUE("04/30/2011")),$F66,0),0) -> 0 | P66: =IF($A66>=(DATEVALUE("05/01/2011")),IF($A66<=(DATEVALUE("05/30/2011")),$F66,0),0) -> 30 | Q66: =IF($A66>=(DATEVALUE("06/01/2011")),IF($A66<=(DATEVALUE("06/30/2011")),$F66,0),0) -> 0 | R66: =IF($A66>=(DATEVALUE("07/01/2011")),IF($A66<=(DATEVALUE("07/31/2011")),$F66,0),0) -> 0 | S66: =IF($A66>=(DATEVALUE("08/01/2011")),IF($A66<=(DATEVALUE("08/31/2011")),$F66,0),0) -> 0 | T66: =IF($A66>=(DATEVALUE("09/01/2011")),IF($A66<=(DATEVALUE("09/30/2011")),$F66,0),0) -> 0 | U66: =IF($A66>=(DATEVALUE("10/01/2011")),IF($A66<=(DATEVALUE("10/31/2011")),$F66,0),0) -> 0 | V66: =IF($A66>=(DATEVALUE("11/01/2011")),IF($A66<=(DATEVALUE("11/30/2011")),$F66,0),0) -> 0 | W66: =IF($A66>=(DATEVALUE("12/01/2011")),IF($A66<=(DATEVALUE("12/31/2011")),$F66,0),0) -> 0
A67: 2011-05-23 | B67: 17:30:00 | C67: Girls | D67: U15 | E67: Line | F67: 20 | G67: Lakeside Complex | H67: 11.4 | J67: =IF(E67="Line",IF(OR(D67="JV",D67="VS",D67 ="FS",D67="JHS"),1,0),0) -> 0 | K67: =IF(E67="Center",IF(OR(D67="JV",D67="VS",D67="FS",D67="Adult",D67="JHS"),1,0),0) -> 0 | L67: =IF(E67="Center",IF(OR(D67="D4",D67="D3",D67="D2",D67="D1",D67="Premier"),1,0),0) -> 0 | M67: =IF(E67="Line",IF(OR(D67="D4",D67="D3",D67="D2",D67="D1",D67="Premier"),1,0),0) -> 0 | N67: 0 | O67: 0 | P67: 20 | Q67: 0 | R67: 0 | S67: 0 | T67: 0 | U67: 0 | V67: 0 | W67: 0
A68: 2011-05-23 | B68: 19:00:00 | C68: Boys | D68: U14 | E68: Center | F68: 30 | G68: Lakeside Complex | H68: 0 | J68: 0 | K68: 0 | L68: 0 | M68: 0 | N68: 0 | O68: 0 | P68: 30 | Q68: 0 | R68: 0 | S68: 0 | T68: 0 | U68: 0 | V68: 0 | W68: 0
A69: 2011-05-24 | B69: 17:00:00 | C69: Girls | D69: U15 | E69: Center | F69: 40 | G69: Lakeside Complex | H69: 11.4 | J69: 0 | K69: 0 | L69: 0 | M69: 0 | N69: 0 | O69: 0 | P69: 40 | Q69: 0 | R69: 0 | S69: 0 | T69: 0 | U69: 0 | V69: 0 | W69: 0
A70: 2011-05-25 | B70: 16:30:00 | C70: Girls | D70: U17 | E70: Line | F70: 20 | G70: Lakeside Complex | H70: 11.4 | J70: 0 | K70: 0 | L70: 0 | M70: 0 | N70: 0 | O70: 0 | P70: 20 | Q70: 0 | R70: 0 | S70: 0 | T70: 0 | U70: 0 | V70: 0 | W70: 0
A71: 2011-06-04 | B71: 15:30:00 | C71: Adult | D71: Mens | E71: Line | F71: 25 | G71: Grandview ES | H71: 4.4 | J71: 1 | K71: 0 | L71: 0 | M71: 0 | N71: 0 | O71: 0 | P71: 0 | Q71: 25 | R71: 0 | S71: 0 | T71: 0 | U71: 0 | V71: 0 | W71: 0
A72: 2011-06-25 | B72: 18:00:00 | C72: Adult | D72: Mens | E72: Line | F72: 25 | G72: Grandview ES | H72: 4.4 | J72: 0 | K72: 0 | L72: 0 | M72: 0 | N72: 0 | O72: 0 | P72: 0 | Q72: 25 | R72: 0 | S72: 0 | T72: 0 | U72: 0 | V72: 0 | W72: 0
A73: 2011-07-28 | B73: 17:00:00 | C73: Girls | D73: U10 | E73: Center | F73: 30 | G73: Lakeside Complex | H73: 11.4 | J73: 0 | K73: 0 | L73: 0 | M73: 0 | N73: 0 | O73: 0 | P73: 0 | Q73: 0 | R73: 30 | S73: 0 | T73: 0 | U73: 0 | V73: 0 | W73: 0
A74: 2011-07-28 | B74: 18:30:00 | C74: Boys | D74: U10 | E74: Line | F74: 16 | G74: Lakeside Complex | H74: 0 | J74: 0 | K74: 0 | L74: 0 | M74: 0 | N74: 0 | O74: 0 | P74: 0 | Q74: 0 | R74: 16 | S74: 0 | T74: 0 | U74: 0 | V74: 0 | W74: 0
A75: 2011-07-29 | B75: 17:15:00 | C75: Girls | D75: U15 | E75: Center | F75: 40 | G75: Lakeside Complex | H75: 11.4 | J75: 0 | K75: 0 | L75: 0 | M75: 0 | N75: 0 | O75: 0 | P75: 0 | Q75: 0 | R75: 40 | S75: 0 | T75: 0 | U75: 0 | V75: 0 | W75: 0
A76: 2011-07-29 | B76: 19:00:00 | C76: Girls | D76: U14 | E76: Line | F76: 16 | G76: Lakeside Complex | H76: 0 | J76: 0 | K76: 0 | L76: 0 | M76: 0 | N76: 0 | O76: 0 | P76: 0 | Q76: 0 | R76: 16 | S76: 0 | T76: 0 | U76: 0 | V76: 0 | W76: 0
A77: 2011-07-30 | B77: 08:00:00 | C77: Boys | D77: U14 | E77: Line | F77: 16 | G77: Lakeside Complex | H77: 11.4 | J77: 0 | K77: 0 | L77: 0 | M77: 0 | N77: 0 | O77: 0 | P77: 0 | Q77: 0 | R77: 16 | S77: 0 | T77: 0 | U77: 0 | V77: 0 | W77: 0
A78: 2011-07-30 | B78: 09:30:00 | C78: Girls | D78: U12 | E78: Center | F78: 30 | G78: Lakeside Complex | H78: 0 | J78: 0 | K78: 0 | L78: 0 | M78: 0 | N78: 0 | O78: 0 | P78: 0 | Q78: 0 | R78: 30 | S78: 0 | T78: 0 | U78: 0 | V78: 0 | W78: 0
A79: 2011-07-30 | B79: 11:00:00 | C79: Boys | D79: U14 | E79: Line | F79: 16 | G79: Lakeside Complex | H79: 0 | J79: 0 | K79: 0 | L79: 0 | M79: 0 | N79: 0 | O79: 0 | P79: 0 | Q79: 0 | R79: 16 | S79: 0 | T79: 0 | U79: 0 | V79: 0 | W79: 0
A80: 2011-07-30 | B80: 13:00:00 | C80: Boys | D80: U12 | E80: Center | F80: 30 | G80: Lakeside Complex | H80: 0 | I80: Paid Tithing through here. | J80: 0 | K80: 0 | L80: 0 | M80: 0 | N80: 0 | O80: 0 | P80: 0 | Q80: 0 | R80: 30 | S80: 0 | T80: 0 | U80: 0 | V80: 0 | W80: 0
J81: 0 | K81: 0 | L81: 0 | M81: 0 | N81: 0 | O81: 0 | P81: 0 | Q81: 0 | R81: 0 | S81: 0 | T81: 0 | U81: 0 | V81: 0 | W81: 0
J82: 0 | K82: 0 | L82: 0 | M82: 0 | N82: 0 | O82: 0 | P82: 0 | Q82: 0 | R82: 0 | S82: 0 | T82: 0 | U82: 0 | V82: 0 | W82: 0
J83: 0 | K83: 0 | L83: 0 | M83: 0 | N83: 0 | O83: 0 | P83: 0 | Q83: 0 | R83: 0 | S83: 0 | T83: 0 | U83: 0 | V83: 0 | W83: 0
J84: 0 | K84: 0 | L84: 0 | M84: 0 | N84: 0 | O84: 0 | P84: 0 | Q84: 0 | R84: 0 | S84: 0 | T84: 0 | U84: 0 | V84: 0 | W84: 0
J85: 0 | K85: 0 | L85: 0 | M85: 0 | N85: 0 | O85: 0 | P85: 0 | Q85: 0 | R85: 0 | S85: 0 | T85: 0 | U85: 0 | V85: 0 | W85: 0
J86: 0 | K86: 0 | L86: 0 | M86: 0 | N86: 0 | O86: 0 | P86: 0 | Q86: 0 | R86: 0 | S86: 0 | T86: 0 | U86: 0 | V86: 0 | W86: 0
J87: 0 | K87: 0 | L87: 0 | M87: 0 | N87: 0 | O87: 0 | P87: 0 | Q87: 0 | R87: 0 | S87: 0 | T87: 0 | U87: 0 | V87: 0 | W87: 0
J88: 0 | K88: 0 | L88: 0 | M88: 0 | N88: 0 | O88: 0 | P88: 0 | Q88: 0 | R88: 0 | S88: 0 | T88: 0 | U88: 0 | V88: 0 | W88: 0
J89: 0 | K89: 0 | L89: 0 | M89: 0 | N89: 0 | O89: 0 | P89: 0 | Q89: 0 | R89: 0 | S89: 0 | T89: 0 | U89: 0 | V89: 0 | W89: 0
J90: 0 | K90: 0 | L90: 0 | M90: 0 | N90: 0 | O90: 0 | P90: 0 | Q90: 0 | R90: 0 | S90: 0 | T90: 0 | U90: 0 | V90: 0 | W90: 0
J91: 0 | K91: 0 | L91: 0 | M91: 0 | N91: 0 | O91: 0 | P91: 0 | Q91: 0 | R91: 0 | S91: 0 | T91: 0 | U91: 0 | V91: 0 | W91: 0
J92: 0 | K92: 0 | L92: 0 | M92: 0 | N92: 0 | O92: 0 | P92: 0 | Q92: 0 | R92: 0 | S92: 0 | T92: 0 | U92: 0 | V92: 0 | W92: 0
A94: TOTALS
A95: MISC CENTERS | B95: =SUM(K2:K92) -> 6
A96: MISC DUALS | B96: =B106 -> 0
A97: MISC LINES | B97: =SUM(J2:J92) -> 2
A98: TOTAL MISC | B98: =SUM(B95:B97) -> 8
A99: CLUB CENTERS | B99: =B105-B95-B102 -> 48
A100: CLUB LINES | B100: =B107-B97-B103 -> 23
A101: TOTAL CLUB | B101: =SUM(B99:B100) -> 71
A102: ADULT CENTERS | B102: =SUM(L2:L92) -> 0
A103: ADULT LINES | B103: =SUM(M2:M92) -> 0
A104: TOTAL ADULT | B104: =SUM(B102:B103) -> 0
A105: TOTAL CENTERS | B105: =COUNTIF(E2:E81,"Center") -> 54
A106: TOTAL DUALS | B106: =COUNTIF(E2:E81,"Dual") -> 0
A107: TOTAL LINES | B107: =COUNTIF(E2:E81,"Line") -> 25
A108: TOTAL GAMES | B108: =SUM(B105:B107) -> 79
A109: MILEAGE | B109: =SUM(H2:H92) -> 655.6 | C109: 1/1 - 6/30 | E109: =SUM(H2:H72) -> 621.4
A110: MONEY | B110: =SUM(F2:F92) -> 2085 | C110: 7/1 - 12/31 | E110: =B109-E109 -> 34.2
A112: Earnings / Mo.:
A113: March | B113: =SUM(N2:N93) -> 200
A114: April | B114: =SUM(O2:O93) -> 623
A115: May | B115: =SUM(P2:P93) -> 1018
A116: June | B116: =SUM(Q2:Q93) -> 50
A117: July | B117: =SUM(R2:R93) -> 194
A118: August | B118: =SUM(S2:S93) -> 0
A119: September | B119: =SUM(T2:T93) -> 0
A120: October | B120: =SUM(U2:U93) -> 0
A121: November | B121: =SUM(V2:V93) -> 0
A122: December | B122: =SUM(W2:W93) -> 0
A123: TOTAL | B123: =SUM(B113:B122) -> 2085
A126: Expenses:
A127: Mileage | B127: 0
A128: Club Reg. | B128: 50 | C128: paid online on 2/7/2011
A129: H.S. Reg. | B129: 0
A130: Uniform | B130: =SUM(B134:B141) -> 202.29 | C130: itemized below*
A131: TOTAL | B131: =SUM(B127:B130) -> 252.29
A133: *Uniform
A134: 2011-03-11 | B134: 99.09 | C134: Scoreboard Sports
A135: 2011-03-22 | B135: 103.2 | C135: OfficialSports.com

Sheet 2012 (hidden)
A1: DATE | B1: TIME | C1: SEX | D1: AGE | E1: POSITION | F1: FEE | G1: LOCATION | H1: MILEAGE | I1: COMMENTS | J1: MISC LINES | K1: MISC CENTERS | L1: ADULT CENTERS | M1: ADULT LINES | N1: JANUARY | O1: FEBRUARY | P1: MARCH | Q1: APRIL | R1: MAY | S1: JUNE | T1: JULY | U1: AUGUST | V1: SEPTEMBER | W1: OCTOBER | X1: NOVEMBER | Y1: DECEMBER
A2: 2012-02-18 | B2: 08:00:00 | C2: Girls | D2: U17 | E2: Center | F2: 30 | G2: Ice Breakers | H2: 65 | I2: Paid for Half of Gas. | J2: =IF(E2="Line",IF(OR(D2="JV",D2="VS",D2 ="FS",D2="JHS"),1,0),0) -> 0 | K2: =IF(E2="Center",IF(OR(D2="JV",D2="VS",D2="FS",D2="Adult",D2="JHS"),1,0),0) -> 0 | L2: =IF(E2="Center",IF(OR(D2="D4",D2="D3",D2="D2",D2="D1",D2="Premier"),1,0),0) -> 0 | M2: =IF(E2="Line",IF(OR(D2="D4",D2="D3",D2="D2",D2="D1",D2="Premier"),1,0),0) -> 0 | N2: =IF(MONTH($A2)=MONTH(DATE(2012,MONTH(DATEVALUE(N$1 & " 1")),1)),$F2,0) -> 0 | O2: =IF(MONTH($A2)=MONTH(DATE(2012,MONTH(DATEVALUE(O$1 & " 1")),1)),$F2,0) -> 30 | P2: =IF(MONTH($A2)=MONTH(DATE(2012,MONTH(DATEVALUE(P$1 & " 1")),1)),$F2,0) -> 0 | Q2: 0 | R2: 0 | S2: 0 | T2: 0 | U2: 0 | V2: 0 | W2: 0 | X2: 0 | Y2: 0
A3: 2012-02-18 | B3: 09:15:00 | C3: Girls | D3: U17 | E3: Line | F3: 15 | G3: Ice Breakers | H3: 0 | J3: =IF(E3="Line",IF(OR(D3="JV",D3="VS",D3 ="FS",D3="JHS"),1,0),0) -> 0 | K3: =IF(E3="Center",IF(OR(D3="JV",D3="VS",D3="FS",D3="Adult",D3="JHS"),1,0),0) -> 0 | L3: =IF(E3="Center",IF(OR(D3="D4",D3="D3",D3="D2",D3="D1",D3="Premier"),1,0),0) -> 0 | M3: =IF(E3="Line",IF(OR(D3="D4",D3="D3",D3="D2",D3="D1",D3="Premier"),1,0),0) -> 0 | N3: =IF(MONTH($A3)=MONTH(DATE(2012,MONTH(DATEVALUE(N$1 & " 1")),1)),$F3,0) -> 0 | O3: =IF(MONTH($A3)=MONTH(DATE(2012,MONTH(DATEVALUE(O$1 & " 1")),1)),$F3,0) -> 15 | P3: 0 | Q3: 0 | R3: 0 | S3: 0 | T3: 0 | U3: 0 | V3: 0 | W3: 0 | X3: 0 | Y3: 0
A4: 2012-02-18 | B4: 10:30:00 | C4: Girls | D4: U15 | E4: Center | F4: 30 | G4: Ice Breakers | H4: 0 | J4: 0 | K4: 0 | L4: 0 | M4: 0 | N4: 0 | O4: 30 | P4: 0 | Q4: 0 | R4: 0 | S4: 0 | T4: 0 | U4: 0 | V4: 0 | W4: 0 | X4: 0 | Y4: 0
A5: 2012-02-18 | B5: 11:45:00 | C5: Girls | D5: U15 | E5: Line | F5: 15 | G5: Ice Breakers | H5: 0 | J5: 0 | K5: 0 | L5: 0 | M5: 0 | N5: 0 | O5: 15 | P5: 0 | Q5: 0 | R5: 0 | S5: 0 | T5: 0 | U5: 0 | V5: 0 | W5: 0 | X5: 0 | Y5: 0
A6: 2012-02-18 | B6: 13:00:00 | C6: Girls | D6: U12 | E6: Center | F6: 30 | G6: Ice Breakers | H6: 0 | J6: 0 | K6: 0 | L6: 0 | M6: 0 | N6: 0 | O6: 30 | P6: 0 | Q6: 0 | R6: 0 | S6: 0 | T6: 0 | U6: 0 | V6: 0 | W6: 0 | X6: 0 | Y6: 0
A7: 2012-02-18 | B7: 15:45:00 | C7: Girls | D7: U11 | E7: Center | F7: 30 | G7: Ice Breakers | H7: 0 | J7: 0 | K7: 0 | L7: 0 | M7: 0 | N7: 0 | O7: 30 | P7: 0 | Q7: 0 | R7: 0 | S7: 0 | T7: 0 | U7: 0 | V7: 0 | W7: 0 | X7: 0 | Y7: 0
A8: 2012-02-18 | B8: 17:45:00 | C8: Girls | D8: U11 | E8: Line | F8: 15 | G8: Ice Breakers | H8: 0 | J8: 0 | K8: 0 | L8: 0 | M8: 0 | N8: 0 | O8: 15 | P8: 0 | Q8: 0 | R8: 0 | S8: 0 | T8: 0 | U8: 0 | V8: 0 | W8: 0 | X8: 0 | Y8: 0
A9: 2012-02-20 | B9: 08:00:00 | C9: Girls | D9: U15 | E9: Center | F9: 30 | G9: Ice Breakers | H9: 0 | J9: 0 | K9: 0 | L9: 0 | M9: 0 | N9: 0 | O9: 30 | P9: 0 | Q9: 0 | R9: 0 | S9: 0 | T9: 0 | U9: 0 | V9: 0 | W9: 0 | X9: 0 | Y9: 0
A10: 2012-02-20 | B10: 09:45:00 | C10: Girls | D10: U15 | E10: Line | F10: 15 | G10: Ice Breakers | H10: 0 | J10: 0 | K10: 0 | L10: 0 | M10: 0 | N10: 0 | O10: 15 | P10: 0 | Q10: 0 | R10: 0 | S10: 0 | T10: 0 | U10: 0 | V10: 0 | W10: 0 | X10: 0 | Y10: 0
A11: 2012-02-20 | B11: 11:00:00 | C11: Girls | D11: U17 | E11: Center | F11: 30 | G11: Ice Breakers | H11: 0 | J11: 0 | K11: 0 | L11: 0 | M11: 0 | N11: 0 | O11: 30 | P11: 0 | Q11: 0 | R11: 0 | S11: 0 | T11: 0 | U11: 0 | V11: 0 | W11: 0 | X11: 0 | Y11: 0
A12: 2012-02-20 | B12: 14:00:00 | C12: Girls | D12: U14 | E12: Center | F12: 30 | G12: Ice Breakers | H12: 0 | J12: 0 | K12: 0 | L12: 0 | M12: 0 | N12: 0 | O12: 30 | P12: 0 | Q12: 0 | R12: 0 | S12: 0 | T12: 0 | U12: 0 | V12: 0 | W12: 0 | X12: 0 | Y12: 0
A13: 2012-02-20 | B13: 15:15:00 | C13: Girls | D13: U12 | E13: Line | F13: 15 | G13: Ice Breakers | H13: 65 | I13: Paid tithing through here. | J13: 0 | K13: 0 | L13: 0 | M13: 0 | N13: 0 | O13: 15 | P13: 0 | Q13: 0 | R13: 0 | S13: 0 | T13: 0 | U13: 0 | V13: 0 | W13: 0 | X13: 0 | Y13: 0
J14: 0 | K14: 0 | L14: 0 | M14: 0 | N14: 0 | O14: 0 | P14: 0 | Q14: 0 | R14: 0 | S14: 0 | T14: 0 | U14: 0 | V14: 0 | W14: 0 | X14: 0 | Y14: 0
J15: 0 | K15: 0 | L15: 0 | M15: 0 | N15: 0 | O15: 0 | P15: 0 | Q15: 0 | R15: 0 | S15: 0 | T15: 0 | U15: 0 | V15: 0 | W15: 0 | X15: 0 | Y15: 0
J16: 0 | K16: 0 | L16: 0 | M16: 0 | N16: 0 | O16: 0 | P16: 0 | Q16: 0 | R16: 0 | S16: 0 | T16: 0 | U16: 0 | V16: 0 | W16: 0 | X16: 0 | Y16: 0
J17: 0 | K17: 0 | L17: 0 | M17: 0 | N17: 0 | O17: 0 | P17: 0 | Q17: 0 | R17: 0 | S17: 0 | T17: 0 | U17: 0 | V17: 0 | W17: 0 | X17: 0 | Y17: 0
J18: 0 | K18: 0 | L18: 0 | M18: 0 | N18: 0 | O18: 0 | P18: 0 | Q18: 0 | R18: 0 | S18: 0 | T18: 0 | U18: 0 | V18: 0 | W18: 0 | X18: 0 | Y18: 0
J19: 0 | K19: 0 | L19: 0 | M19: 0 | N19: 0 | O19: 0 | P19: 0 | Q19: 0 | R19: 0 | S19: 0 | T19: 0 | U19: 0 | V19: 0 | W19: 0 | X19: 0 | Y19: 0
J20: 0 | K20: 0 | L20: 0 | M20: 0 | N20: 0 | O20: 0 | P20: 0 | Q20: 0 | R20: 0 | S20: 0 | T20: 0 | U20: 0 | V20: 0 | W20: 0 | X20: 0 | Y20: 0
J21: 0 | K21: 0 | L21: 0 | M21: 0 | N21: 0 | O21: 0 | P21: 0 | Q21: 0 | R21: 0 | S21: 0 | T21: 0 | U21: 0 | V21: 0 | W21: 0 | X21: 0 | Y21: 0
J22: 0 | K22: 0 | L22: 0 | M22: 0 | N22: 0 | O22: 0 | P22: 0 | Q22: 0 | R22: 0 | S22: 0 | T22: 0 | U22: 0 | V22: 0 | W22: 0 | X22: 0 | Y22: 0
J23: 0 | K23: 0 | L23: 0 | M23: 0 | N23: 0 | O23: 0 | P23: 0 | Q23: 0 | R23: 0 | S23: 0 | T23: 0 | U23: 0 | V23: 0 | W23: 0 | X23: 0 | Y23: 0
J24: 0 | K24: 0 | L24: 0 | M24: 0 | N24: 0 | O24: 0 | P24: 0 | Q24: 0 | R24: 0 | S24: 0 | T24: 0 | U24: 0 | V24: 0 | W24: 0 | X24: 0 | Y24: 0
J25: 0 | K25: 0 | L25: 0 | M25: 0 | N25: 0 | O25: 0 | P25: 0 | Q25: 0 | R25: 0 | S25: 0 | T25: 0 | U25: 0 | V25: 0 | W25: 0 | X25: 0 | Y25: 0
J26: 0 | K26: 0 | L26: 0 | M26: 0 | N26: 0 | O26: 0 | P26: 0 | Q26: 0 | R26: 0 | S26: 0 | T26: 0 | U26: 0 | V26: 0 | W26: 0 | X26: 0 | Y26: 0
J27: 0 | K27: 0 | L27: 0 | M27: 0 | N27: 0 | O27: 0 | P27: 0 | Q27: 0 | R27: 0 | S27: 0 | T27: 0 | U27: 0 | V27: 0 | W27: 0 | X27: 0 | Y27: 0
J28: 0 | K28: 0 | L28: 0 | M28: 0 | N28: 0 | O28: 0 | P28: 0 | Q28: 0 | R28: 0 | S28: 0 | T28: 0 | U28: 0 | V28: 0 | W28: 0 | X28: 0 | Y28: 0
J29: 0 | K29: 0 | L29: 0 | M29: 0 | N29: 0 | O29: 0 | P29: 0 | Q29: 0 | R29: 0 | S29: 0 | T29: 0 | U29: 0 | V29: 0 | W29: 0 | X29: 0 | Y29: 0
J30: 0 | K30: 0 | L30: 0 | M30: 0 | N30: 0 | O30: 0 | P30: 0 | Q30: 0 | R30: 0 | S30: 0 | T30: 0 | U30: 0 | V30: 0 | W30: 0 | X30: 0 | Y30: 0
J31: 0 | K31: 0 | L31: 0 | M31: 0 | N31: 0 | O31: 0 | P31: 0 | Q31: 0 | R31: 0 | S31: 0 | T31: 0 | U31: 0 | V31: 0 | W31: 0 | X31: 0 | Y31: 0
J32: 0 | K32: 0 | L32: 0 | M32: 0 | N32: 0 | O32: 0 | P32: 0 | Q32: 0 | R32: 0 | S32: 0 | T32: 0 | U32: 0 | V32: 0 | W32: 0 | X32: 0 | Y32: 0
J33: 0 | K33: 0 | L33: 0 | M33: 0 | N33: 0 | O33: 0 | P33: 0 | Q33: 0 | R33: 0 | S33: 0 | T33: 0 | U33: 0 | V33: 0 | W33: 0 | X33: 0 | Y33: 0
J34: 0 | K34: 0 | L34: 0 | M34: 0 | N34: 0 | O34: 0 | P34: 0 | Q34: 0 | R34: 0 | S34: 0 | T34: 0 | U34: 0 | V34: 0 | W34: 0 | X34: 0 | Y34: 0
J35: 0 | K35: 0 | L35: 0 | M35: 0 | N35: 0 | O35: =IF(MONTH($A35)=MONTH(DATE(2012,MONTH(DATEVALUE(O$1 & " 1")),1)),$F35,0) -> 0 | P35: 0 | Q35: 0 | R35: 0 | S35: 0 | T35: 0 | U35: 0 | V35: 0 | W35: 0 | X35: 0 | Y35: 0
J36: 0 | K36: 0 | L36: 0 | M36: 0 | N36: 0 | O36: 0 | P36: 0 | Q36: 0 | R36: 0 | S36: 0 | T36: 0 | U36: 0 | V36: 0 | W36: 0 | X36: 0 | Y36: 0
J37: 0 | K37: 0 | L37: 0 | M37: 0 | N37: 0 | O37: 0 | P37: 0 | Q37: 0 | R37: 0 | S37: 0 | T37: 0 | U37: 0 | V37: 0 | W37: 0 | X37: 0 | Y37: 0
J38: 0 | K38: 0 | L38: 0 | M38: 0 | N38: 0 | O38: 0 | P38: 0 | Q38: 0 | R38: 0 | S38: 0 | T38: 0 | U38: 0 | V38: 0 | W38: 0 | X38: 0 | Y38: 0
J39: 0 | K39: 0 | L39: 0 | M39: 0 | N39: 0 | O39: 0 | P39: 0 | Q39: 0 | R39: 0 | S39: 0 | T39: 0 | U39: 0 | V39: 0 | W39: 0 | X39: 0 | Y39: 0
J40: 0 | K40: 0 | L40: 0 | M40: 0 | N40: 0 | O40: 0 | P40: 0 | Q40: 0 | R40: 0 | S40: 0 | T40: 0 | U40: 0 | V40: 0 | W40: 0 | X40: 0 | Y40: 0
J41: 0 | K41: 0 | L41: 0 | M41: 0 | N41: 0 | O41: 0 | P41: 0 | Q41: 0 | R41: 0 | S41: 0 | T41: 0 | U41: 0 | V41: 0 | W41: 0 | X41: 0 | Y41: 0
J42: 0 | K42: 0 | L42: 0 | M42: 0 | N42: 0 | O42: 0 | P42: 0 | Q42: 0 | R42: 0 | S42: 0 | T42: 0 | U42: 0 | V42: 0 | W42: 0 | X42: 0 | Y42: 0
J43: 0 | K43: 0 | L43: 0 | M43: 0 | N43: 0 | O43: 0 | P43: 0 | Q43: 0 | R43: 0 | S43: 0 | T43: 0 | U43: 0 | V43: 0 | W43: 0 | X43: 0 | Y43: 0
J44: 0 | K44: 0 | L44: 0 | M44: 0 | N44: 0 | O44: 0 | P44: 0 | Q44: 0 | R44: 0 | S44: 0 | T44: 0 | U44: 0 | V44: 0 | W44: 0 | X44: 0 | Y44: 0
J45: 0 | K45: 0 | L45: 0 | M45: 0 | N45: 0 | O45: 0 | P45: 0 | Q45: 0 | R45: 0 | S45: 0 | T45: 0 | U45: 0 | V45: 0 | W45: 0 | X45: 0 | Y45: 0
J46: 0 | K46: 0 | L46: 0 | M46: 0 | N46: 0 | O46: 0 | P46: 0 | Q46: 0 | R46: 0 | S46: 0 | T46: 0 | U46: 0 | V46: 0 | W46: 0 | X46: 0 | Y46: 0
J47: 0 | K47: 0 | L47: 0 | M47: 0 | N47: 0 | O47: 0 | P47: 0 | Q47: 0 | R47: 0 | S47: 0 | T47: 0 | U47: 0 | V47: 0 | W47: 0 | X47: 0 | Y47: 0
J48: 0 | K48: 0 | L48: 0 | M48: 0 | N48: 0 | O48: 0 | P48: 0 | Q48: 0 | R48: 0 | S48: 0 | T48: 0 | U48: 0 | V48: 0 | W48: 0 | X48: 0 | Y48: 0
J49: 0 | K49: 0 | L49: 0 | M49: 0 | N49: 0 | O49: 0 | P49: 0 | Q49: 0 | R49: 0 | S49: 0 | T49: 0 | U49: 0 | V49: 0 | W49: 0 | X49: 0 | Y49: 0
J50: 0 | K50: 0 | L50: 0 | M50: 0 | N50: 0 | O50: 0 | P50: 0 | Q50: 0 | R50: 0 | S50: 0 | T50: 0 | U50: 0 | V50: 0 | W50: 0 | X50: 0 | Y50: 0
J51: 0 | K51: 0 | L51: 0 | M51: 0 | N51: 0 | O51: 0 | P51: 0 | Q51: 0 | R51: 0 | S51: 0 | T51: 0 | U51: 0 | V51: 0 | W51: 0 | X51: 0 | Y51: 0
J52: 0 | K52: 0 | L52: 0 | M52: 0 | N52: 0 | O52: 0 | P52: 0 | Q52: 0 | R52: 0 | S52: 0 | T52: 0 | U52: 0 | V52: 0 | W52: 0 | X52: 0 | Y52: 0
J53: 0 | K53: 0 | L53: 0 | M53: 0 | N53: 0 | O53: 0 | P53: 0 | Q53: 0 | R53: 0 | S53: 0 | T53: 0 | U53: 0 | V53: 0 | W53: 0 | X53: 0 | Y53: 0
J54: 0 | K54: 0 | L54: 0 | M54: 0 | N54: 0 | O54: 0 | P54: 0 | Q54: 0 | R54: 0 | S54: 0 | T54: 0 | U54: 0 | V54: 0 | W54: 0 | X54: 0 | Y54: 0
J55: 0 | K55: 0 | L55: 0 | M55: 0 | N55: 0 | O55: 0 | P55: 0 | Q55: 0 | R55: 0 | S55: 0 | T55: 0 | U55: 0 | V55: 0 | W55: 0 | X55: 0 | Y55: 0
J56: 0 | K56: 0 | L56: 0 | M56: 0 | N56: 0 | O56: 0 | P56: 0 | Q56: 0 | R56: 0 | S56: 0 | T56: 0 | U56: 0 | V56: 0 | W56: 0 | X56: 0 | Y56: 0
J57: 0 | K57: 0 | L57: 0 | M57: 0 | N57: 0 | O57: 0 | P57: 0 | Q57: 0 | R57: 0 | S57: 0 | T57: 0 | U57: 0 | V57: 0 | W57: 0 | X57: 0 | Y57: 0
J58: 0 | K58: 0 | L58: 0 | M58: 0 | N58: 0 | O58: 0 | P58: 0 | Q58: =IF(MONTH($A58)=MONTH(DATE(2012,MONTH(DATEVALUE(Q$1 & " 1")),1)),$F58,0) -> 0 | R58: 0 | S58: 0 | T58: 0 | U58: 0 | V58: 0 | W58: 0 | X58: 0 | Y58: 0
J59: 0 | K59: 0 | L59: 0 | M59: 0 | N59: 0 | O59: =IF(MONTH($A59)=MONTH(DATE(2012,MONTH(DATEVALUE(O$1 & " 1")),1)),$F59,0) -> 0 | P59: 0 | Q59: 0 | R59: 0 | S59: 0 | T59: 0 | U59: 0 | V59: 0 | W59: 0 | X59: 0 | Y59: 0
J60: 0 | K60: 0 | L60: 0 | M60: 0 | N60: 0 | O60: 0 | P60: 0 | Q60: 0 | R60: 0 | S60: 0 | T60: 0 | U60: 0 | V60: 0 | W60: 0 | X60: 0 | Y60: 0
J61: 0 | K61: 0 | L61: 0 | M61: 0 | N61: 0 | O61: 0 | P61: 0 | Q61: 0 | R61: 0 | S61: 0 | T61: 0 | U61: 0 | V61: 0 | W61: 0 | X61: 0 | Y61: 0
J62: 0 | K62: 0 | L62: 0 | M62: 0 | N62: 0 | O62: 0 | P62: 0 | Q62: 0 | R62: 0 | S62: 0 | T62: 0 | U62: 0 | V62: 0 | W62: 0 | X62: 0 | Y62: 0
J63: 0 | K63: 0 | L63: 0 | M63: 0 | N63: 0 | O63: 0 | P63: 0 | Q63: 0 | R63: 0 | S63: 0 | T63: 0 | U63: 0 | V63: 0 | W63: 0 | X63: 0 | Y63: 0
J64: 0 | K64: 0 | L64: 0 | M64: 0 | N64: 0 | O64: 0 | P64: 0 | Q64: 0 | R64: 0 | S64: 0 | T64: 0 | U64: 0 | V64: 0 | W64: 0 | X64: 0 | Y64: 0
J65: 0 | K65: 0 | L65: 0 | M65: 0 | N65: 0 | O65: 0 | P65: 0 | Q65: 0 | R65: 0 | S65: 0 | T65: 0 | U65: 0 | V65: 0 | W65: 0 | X65: 0 | Y65: 0
J66: 0 | K66: =IF(E66="Center",IF(OR(D66="JV",D66="VS",D66="FS",D66="Adult",D66="JHS"),1,0),0) -> 0 | L66: =IF(E66="Center",IF(OR(D66="D4",D66="D3",D66="D2",D66="D1",D66="Premier"),1,0),0) -> 0 | M66: =IF(E66="Line",IF(OR(D66="D4",D66="D3",D66="D2",D66="D1",D66="Premier"),1,0),0) -> 0 | N66: 0 | O66: 0 | P66: 0 | Q66: 0 | R66: 0 | S66: 0 | T66: 0 | U66: 0 | V66: 0 | W66: 0 | X66: 0 | Y66: 0
J67: =IF(E67="Line",IF(OR(D67="JV",D67="VS",D67 ="FS",D67="JHS"),1,0),0) -> 0 | K67: 0 | L67: 0 | M67: 0 | N67: =IF(MONTH($A67)=MONTH(DATE(2012,MONTH(DATEVALUE(N$1 & " 1")),1)),$F67,0) -> 0 | O67: 0 | P67: 0 | Q67: 0 | R67: 0 | S67: 0 | T67: 0 | U67: 0 | V67: 0 | W67: 0 | X67: 0 | Y67: 0
J68: 0 | K68: 0 | L68: 0 | M68: 0 | N68: 0 | O68: 0 | P68: 0 | Q68: 0 | R68: 0 | S68: 0 | T68: 0 | U68: 0 | V68: 0 | W68: 0 | X68: 0 | Y68: 0
J69: 0 | K69: 0 | L69: 0 | M69: 0 | N69: 0 | O69: 0 | P69: 0 | Q69: 0 | R69: 0 | S69: 0 | T69: 0 | U69: 0 | V69: 0 | W69: 0 | X69: 0 | Y69: 0
J70: 0 | K70: 0 | L70: 0 | M70: 0 | N70: 0 | O70: 0 | P70: 0 | Q70: 0 | R70: 0 | S70: 0 | T70: 0 | U70: 0 | V70: 0 | W70: 0 | X70: 0 | Y70: 0
J71: 0 | K71: 0 | L71: 0 | M71: 0 | N71: 0 | O71: 0 | P71: 0 | Q71: 0 | R71: 0 | S71: 0 | T71: 0 | U71: 0 | V71: 0 | W71: 0 | X71: 0 | Y71: 0
J72: 0 | K72: 0 | L72: 0 | M72: 0 | N72: 0 | O72: 0 | P72: 0 | Q72: 0 | R72: 0 | S72: 0 | T72: 0 | U72: 0 | V72: 0 | W72: 0 | X72: 0 | Y72: 0
J73: 0 | K73: 0 | L73: 0 | M73: 0 | N73: 0 | O73: 0 | P73: 0 | Q73: 0 | R73: 0 | S73: 0 | T73: 0 | U73: 0 | V73: 0 | W73: 0 | X73: 0 | Y73: 0
J74: 0 | K74: 0 | L74: 0 | M74: 0 | N74: 0 | O74: 0 | P74: 0 | Q74: 0 | R74: 0 | S74: 0 | T74: 0 | U74: 0 | V74: 0 | W74: 0 | X74: 0 | Y74: 0
J75: 0 | K75: 0 | L75: 0 | M75: 0 | N75: 0 | O75: 0 | P75: 0 | Q75: 0 | R75: 0 | S75: 0 | T75: 0 | U75: 0 | V75: 0 | W75: 0 | X75: 0 | Y75: 0
J76: 0 | K76: 0 | L76: 0 | M76: 0 | N76: 0 | O76: 0 | P76: 0 | Q76: 0 | R76: 0 | S76: 0 | T76: 0 | U76: 0 | V76: 0 | W76: 0 | X76: 0 | Y76: 0
J77: 0 | K77: 0 | L77: 0 | M77: 0 | N77: 0 | O77: 0 | P77: 0 | Q77: 0 | R77: 0 | S77: 0 | T77: 0 | U77: 0 | V77: 0 | W77: 0 | X77: 0 | Y77: 0
J78: 0 | K78: 0 | L78: 0 | M78: 0 | N78: 0 | O78: 0 | P78: 0 | Q78: 0 | R78: 0 | S78: 0 | T78: 0 | U78: 0 | V78: 0 | W78: 0 | X78: 0 | Y78: 0
J79: 0 | K79: 0 | L79: 0 | M79: 0 | N79: 0 | O79: 0 | P79: 0 | Q79: 0 | R79: 0 | S79: 0 | T79: 0 | U79: 0 | V79: 0 | W79: 0 | X79: 0 | Y79: 0
J80: 0 | K80: 0 | L80: 0 | M80: 0 | N80: 0 | O80: 0 | P80: 0 | Q80: 0 | R80: 0 | S80: 0 | T80: 0 | U80: 0 | V80: 0 | W80: 0 | X80: 0 | Y80: 0
J81: 0 | K81: 0 | L81: 0 | M81: 0 | N81: 0 | O81: 0 | P81: 0 | Q81: 0 | R81: 0 | S81: 0 | T81: 0 | U81: 0 | V81: 0 | W81: 0 | X81: 0 | Y81: 0
J82: 0 | K82: 0 | L82: 0 | M82: 0 | N82: 0 | O82: 0 | P82: 0 | Q82: 0 | R82: 0 | S82: 0 | T82: 0 | U82: 0 | V82: 0 | W82: 0 | X82: 0 | Y82: 0
J83: 0 | K83: 0 | L83: 0 | M83: 0 | N83: 0 | O83: 0 | P83: 0 | Q83: 0 | R83: 0 | S83: 0 | T83: 0 | U83: 0 | V83: =IF(MONTH($A83)=MONTH(DATE(2012,MONTH(DATEVALUE(V$1 & " 1")),1)),$F83,0) -> 0 | W83: 0 | X83: 0 | Y83: 0
J84: 0 | K84: 0 | L84: 0 | M84: 0 | N84: 0 | O84: 0 | P84: 0 | Q84: 0 | R84: 0 | S84: 0 | T84: 0 | U84: 0 | V84: 0 | W84: 0 | X84: 0 | Y84: 0
J85: 0 | K85: 0 | L85: 0 | M85: 0 | N85: 0 | O85: 0 | P85: 0 | Q85: 0 | R85: 0 | S85: 0 | T85: 0 | U85: 0 | V85: 0 | W85: 0 | X85: 0 | Y85: 0
J86: 0 | K86: 0 | L86: 0 | M86: 0 | N86: 0 | O86: 0 | P86: 0 | Q86: 0 | R86: 0 | S86: 0 | T86: 0 | U86: 0 | V86: 0 | W86: 0 | X86: 0 | Y86: 0
J87: 0 | K87: 0 | L87: 0 | M87: 0 | N87: 0 | O87: 0 | P87: 0 | Q87: 0 | R87: 0 | S87: 0 | T87: 0 | U87: 0 | V87: 0 | W87: 0 | X87: 0 | Y87: 0
J88: 0 | K88: 0 | L88: 0 | M88: 0 | N88: 0 | O88: 0 | P88: 0 | Q88: 0 | R88: 0 | S88: 0 | T88: 0 | U88: 0 | V88: 0 | W88: 0 | X88: 0 | Y88: 0
J89: 0 | K89: 0 | L89: 0 | M89: 0 | N89: 0 | O89: 0 | P89: 0 | Q89: 0 | R89: 0 | S89: 0 | T89: 0 | U89: 0 | V89: 0 | W89: 0 | X89: 0 | Y89: 0
J90: 0 | K90: 0 | L90: 0 | M90: 0 | N90: 0 | O90: 0 | P90: 0 | Q90: 0 | R90: 0 | S90: 0 | T90: 0 | U90: 0 | V90: 0 | W90: 0 | X90: 0 | Y90: 0
J91: 0 | K91: 0 | L91: 0 | M91: 0 | N91: 0 | O91: 0 | P91: 0 | Q91: 0 | R91: 0 | S91: 0 | T91: 0 | U91: 0 | V91: 0 | W91: 0 | X91: 0 | Y91: 0
A93: TOTALS
A94: MISC CENTERS | B94: =SUM(K2:K91) -> 0
A95: MISC DUALS | B95: =B105 -> 0
A96: MISC LINES | B96: =SUM(J2:J91) -> 0
A97: TOTAL MISC | B97: =SUM(B94:B96) -> 0
A98: CLUB CENTERS | B98: =B104-B94-B101 -> 7
A99: CLUB LINES | B99: =B106-B96-B102 -> 5
A100: TOTAL CLUB | B100: =SUM(B98:B99) -> 12
A101: ADULT CENTERS | B101: =SUM(L2:L91) -> 0
A102: ADULT LINES | B102: =SUM(M2:M91) -> 0
A103: TOTAL ADULT | B103: =SUM(B101:B102) -> 0
A104: TOTAL CENTERS | B104: =COUNTIF(E2:E80,"Center") -> 7
A105: TOTAL DUALS | B105: =COUNTIF(E2:E80,"Dual") -> 0
A106: TOTAL LINES | B106: =COUNTIF(E2:E80,"Line") -> 5
A107: TOTAL GAMES | B107: =SUM(B104:B106) -> 12
A108: MILEAGE | B108: =SUM(H2:H91) -> 130
A109: MONEY | B109: =SUM(F2:F91) -> 285
A111: Earnings / Mo.:
A112: January | B112: =SUM(N2:N92) -> 0
A113: February | B113: =SUM(O2:O92) -> 285
A114: March | B114: =SUM(P2:P92) -> 0
A115: April | B115: =SUM(Q2:Q92) -> 0
A116: May | B116: =SUM(R2:R92) -> 0
A117: June | B117: =SUM(S2:S92) -> 0
A118: July | B118: =SUM(T2:T92) -> 0
A119: August | B119: =SUM(U2:U92) -> 0
A120: September | B120: =SUM(V2:V92) -> 0
A121: October | B121: =SUM(W2:W92) -> 0
A122: November | B122: =SUM(X2:X92) -> 0
A123: December | B123: =SUM(Y2:Y92) -> 0
A124: TOTAL | B124: =SUM(B112:B123) -> 285
A127: Expenses:
A128: Mileage | B128: 0
A129: Club Reg. | B129: 50 | C129: paid online on 2/10/2012
A130: H.S. Reg. | B130: 0
A131: Uniform* | B131: 0
A132: TOTAL | B132: =SUM(B128:B131) -> 50
A134: *Uniform

Sheet DrivingDistances (hidden)
A1: These distances are all relative from: 871 N 600 W, Provo, UT 84604.
A3: Field Location | B3: Driving Distance (one way) | C3: Active
A4: Provo Peaks | B4: 2.6 | C4: TRUE
A5: Grandview ES | B5: 1.3 | C5: TRUE
A6: Lakeside Complex | B6: 5.7 | C6: TRUE
A7: IHC Hospital | B7: 5.2 | C7: TRUE
A8: Sertoma | B8: 2.2 | C8: TRUE
A9: Mapleton ES | B9: 10.8 | C9: TRUE
A10: Aspen ES | B10: 8 | C10: TRUE
A11: Canyon View JHS | B11: 7 | C11: TRUE
A12: Westridge | B12: 1.75 | C12: TRUE
A13: Orem Cemetery | B13: 7.5 | C13: TRUE
A14: Healey Park | B14: 16.6 | C14: TRUE
A15: Spanish Fork HS | B15: 11.6 | C15: TRUE
A16: Salem Loafer View | B16: 17.1 | C16: TRUE
A17: Ira Allen | B17: 14.4 | C17: TRUE
A18: UVU | B18: 4.85 | C18: TRUE
A19: Mt. Ridge JHS | B19: 17.5 | C19: TRUE
A20: American Fork JHS | B20: 12 | C20: TRUE
A21: Timpanogas HS | B21: 13.2 | C21: TRUE
A22: Mountain View HS | B22: 4 | C22: TRUE
A23: Orem JHS | B23: 5.6 | C23: TRUE
A24: Art Dye | B24: 15.2 | C24: TRUE
A25: Liberty Academy | B25: 20.6 | C25: TRUE

Sheet RefereeMatchReport (hidden)
B1: REFEREE MATCH REPORT
B2: HOME | AB2: AWAY
B3: Color | N3: Captain(s) | AB3: Color
B4: Date | N4: KICKOFF | S4: Halves (min):
B5: Field | S5: Start Time:
B6: Level/League | S6: End Time:
B8: GOALS | D8: FIRST HALF | I8: SECOND HALF | N8: FINAL | P8: GOALS | R8: FIRST HALF | W8: SECOND HALF | AB8: FINAL
B9: # | P9: #
B10: Min. | P10: Min.
B11: HOME | K11: MISCONDUCT | U11: AWAY
B12: # | D12: MIN. | F12: W/Y/R | H12: CODE | J12: COMMENTS | P12: # | R12: MIN. | T12: W/Y/R | V12: CODE | X12: COMMENTS
B17: W = Warning, Y = Yellow, R = Red
B18: GAME NUMBER: | X18: BALL SIZE:
B19: REFEREE: | R19: COMMENTS:
B20: ASST. REF:
B21: ASST. REF:
B29: REFEREE MATCH REPORT
B30: HOME | AB30: AWAY
B31: Color | N31: Captain(s) | AB31: Color
B32: Date | N32: KICKOFF | S32: Halves (min):
B33: Field | S33: Start Time:
B34: Level/League | S34: End Time:
B36: GOALS | D36: FIRST HALF | I36: SECOND HALF | N36: FINAL | P36: GOALS | R36: FIRST HALF | W36: SECOND HALF | AB36: FINAL
B37: # | P37: #
B38: Min. | P38: Min.
B39: HOME | K39: MISCONDUCT | U39: AWAY
B40: # | D40: MIN. | F40: W/Y/R | H40: CODE | J40: COMMENTS | P40: # | R40: MIN. | T40: W/Y/R | V40: CODE | X40: COMMENTS
B45: W = Warning, Y = Yellow, R = Red
B46: GAME NUMBER: | X46: BALL SIZE:
B47: REFEREE: | R47: COMMENTS:
B48: ASST. REF:
B49: ASST. REF:

Sheet Yellow&Red (hidden)
A1: CAUTIONABLE OFFENSES
A2: UB: | B2: is guilty of unsporting behavior
A3: DT: | B3: shows dissent by word or action
A4: PI: | B4: persistently infringes the Laws of the Game
A5: DR: | B5: delays the restart of play
A6: FRD: | B6: fails to respect the required distance at restart
A7: E: | B7: enters or re-enters the field w/o referee's permission
A8: L: | B8: deliberately leaves the field w/o referee's permission
A9: SENDING-OFF OFFENSES
A10: SFP: | B10: is guilty of serious foul play
A11: VC: | B11: is guilty of violent conduct
A12: S: | B12: spits at an opponent or any other person
A13: DGH: | B13: denies an obvious goal scoring opportunity by handling
B14: the ball
A15: DGF: | B15: denies an obvious goal scoring opportunity by a foul that
B16: results in a direct kick or PK
A17: AL: | B17: uses offensive, or insulting or abusive language/gestures
A18: 2CT: | B18: receives a second caution in the same match

Sheet Settings (hidden)
A1: Referee Name | C1: Referee ID | E1: All States | G1: Valid Positions | I1: Default Levels | J1: Half Length (min) | K1: Ball Size | L1: Center | M1: AR1 | N1: AR2 | O1: 4TH | P1: Affiliation
A2: David Long | C2: 0010-2281-5432-2800 | I2: BU09 | J2: 20 | K2: 3 | L2: 30 | M2: 10 | N2: 10 | O2: 0 | P2: Youth
E3: AL | G3: AR1 | I3: BU10 | J3: 25 | K3: 3 | L3: 30 | M3: 15 | N3: 15 | O3: 0 | P3: Youth
A4: Email | C4: USSF Login ID | E4: AK | G4: AR2 | I4: BU11 | J4: 30 | K4: 4 | L4: 30 | M4: 15 | N4: 15 | O4: 0 | P4: Youth
A5: david.a.long@live.com | C5: R0010228154322800 | E5: AS | G5: Center | I5: BU12 | J5: 30 | K5: 4 | L5: 30 | M5: 15 | N5: 15 | O5: 0 | P5: Youth
E6: AZ | G6: Fourth Official | I6: BU13 | J6: 35 | K6: 5 | L6: 30 | M6: 15 | N6: 15 | O6: 0 | P6: Youth
A7: Cell Phone | C7: USSF Password | E7: AR | I7: BU14 | J7: 35 | K7: 5 | L7: 30 | M7: 15 | N7: 15 | O7: 0 | P7: Youth
A8: (801) 995-2316 | C8: Long | E8: CA | I8: BU15 | J8: 40 | K8: 5 | L8: 40 | M8: 20 | N8: 20 | O8: 0 | P8: Youth
E9: CO | I9: BU16 | J9: 40 | K9: 5 | L9: 40 | M9: 20 | N9: 20 | O9: 0 | P9: Youth
A10: Cell Carrier | C10: Referee Address | E10: CT | I10: BU17 | J10: 45 | K10: 5 | L10: 40 | M10: 20 | N10: 20 | O10: 0 | P10: Youth
A11: 04 - Verizon | C11: 871 N 600 W APT 10 | E11: DE | I11: BU18 | J11: 45 | K11: 5 | L11: 40 | M11: 20 | N11: 20 | O11: 0 | P11: Youth
E12: DC | I12: BU19 | J12: 45 | K12: 5 | L12: 40 | M12: 20 | N12: 20 | O12: 0 | P12: Youth
A13: Track LDS Tithing? | C13: Referee City | E13: FL | I13: GU09 | J13: 20 | K13: 5 | L13: 30 | M13: 10 | N13: 10 | O13: 0 | P13: Youth
A14: FALSE | C14: Provo | E14: GA | I14: GU10 | J14: 25 | K14: 5 | L14: 30 | M14: 15 | N14: 15 | O14: 0 | P14: Youth
E15: GU | I15: GU11 | J15: 30 | K15: 5 | L15: 30 | M15: 15 | N15: 15 | O15: 0 | P15: Youth
A16: Youth League Website | C16: Referee State | E16: HI | I16: GU12 | J16: 30 | K16: 5 | L16: 30 | M16: 15 | N16: 15 | O16: 0 | P16: Youth
A17: http://uysa.affinitysoccer.com/reg/index.asp?sessionguid= | C17: UT | E17: ID | I17: GU13 | J17: 35 | K17: 5 | L17: 30 | M17: 15 | N17: 15 | O17: 0 | P17: Youth
E18: IL | I18: GU14 | J18: 35 | K18: 5 | L18: 30 | M18: 15 | N18: 15 | O18: 0 | P18: Youth
A19: Youth League Username | C19: Referee ZIP Code | E19: IN | I19: GU15 | J19: 40 | K19: 5 | L19: 40 | M19: 20 | N19: 20 | O19: 0 | P19: Youth
A20: david.long | C20: 84604-3256 | E20: IA | I20: GU16 | J20: 40 | K20: 5 | L20: 40 | M20: 20 | N20: 20 | O20: 0 | P20: Youth
E21: KS | I21: GU17 | J21: 45 | K21: 5 | L21: 40 | M21: 20 | N21: 20 | O21: 0 | P21: Youth
A22: Youth League Password | C22: USSF Website | E22: KY | I22: GU18 | J22: 45 | K22: 5 | L22: 40 | M22: 20 | N22: 20 | O22: 0 | P22: Youth
A23: soccer | C23: http://www.ussoccer.info | E23: LA | I23: GU19 | J23: 45 | K23: 5 | L23: 40 | M23: 20 | N23: 20 | O23: 0 | P23: Youth
E24: ME | I24: Men's | J24: 45 | K24: 5 | L24: 45 | M24: 30 | N24: 30 | O24: 0 | P24: Adult
A25: Adult League Website | E25: MD | I25: Women's | J25: 45 | K25: 5 | L25: 45 | M25: 30 | N25: 30 | O25: 0 | P25: Adult
E26: MH | I26: Other | J26: 0 | K26: 0 | L26: 0 | M26: 0 | N26: 0 | O26: 0
E27: MA
A28: Adult League Username | E28: MI
E29: FM
E30: MN
A31: Adult League Password | E31: MS
E32: MO
E33: MT
E34: NE
E35: NV
E36: NH
E37: NJ
E38: NM
E39: NY
E40: NC
E41: ND
E42: MP
E43: OH
E44: OK
E45: OR
E46: PW
E47: PA
E48: PR
E49: RI
E50: SC
E51: SD
E52: TN
E53: TX
E54: UT
E55: VT
E56: VA
E57: VI
E58: WA
E59: WV
E60: WI
E61: WY

Sheet MatchDetails2013 (hidden)
A1: DATE | B1: TIME | C1: LEVEL | D1: LEAGUE | E1: POSITION | F1: HALVES | G1: BALL SIZE | H1: FEE | I1: LOCATION | J1: MILEAGE | K1: HOME | L1: AWAY | M1: GAME NUMBER | N1: REFEREE | O1: AR1 | P1: AR2 | Q1: 4TH OFFICIAL | R1: COMMENTS | S1: TITHING PAID | T1: NOT AVAILABLE
A2: 2013-03-02 | B2: 07:30:00 | R2: UNAVAILBLE, because: | S2: TRUE | T2: 1
A3: 2013-03-02 | B3: 10:30:00 | R3: Babysitting Nephew | S3: TRUE | T3: 2
A4: 2013-03-02 | B4: 12:30:00 | C4: BU15 | D4: Premier | E4: Center | F4: 40 | G4: 5 | H4: 40 | I4: Elk Horn Park | J4: 4 | M4: 123456 | N4: David Long | S4: FALSE | T4: 0
A5: 2013-03-02 | B5: 16:00:00 | R5: UNAVAILBLE, because: | S5: TRUE | T5: 1
A6: 2013-03-02 | B6: 18:00:00 | R6: Babysitting Ted | S6: TRUE | T6: 2
A7: 2013-03-02 | B7: 14:30:00 | C7: BU10 | D7: D4 | E7: AR2 | F7: 25 | G7: 3 | H7: 15 | I7: Bonneville HS | J7: 10 | P7: David Long | S7: FALSE | T7: 0

Sheet MatchDetails2012 (hidden)
A1: DATE | B1: TIME | C1: LEVEL | D1: LEAGUE | E1: POSITION | F1: HALVES | G1: BALL SIZE | H1: FEE | I1: LOCATION | J1: MILEAGE | K1: HOME | L1: AWAY | M1: GAME NUMBER | N1: REFEREE | O1: AR1 | P1: AR2 | Q1: 4TH OFFICIAL | R1: COMMENTS | S1: TITHING PAID | T1: NOT AVAILABLE
A2: 2012-03-31 | B2: 08:30:00 | C2: BU15 | D2: D2 | E2: AR1 | F2: 40 | G2: 5 | H2: 20 | I2: Centennial MS | J2: 4.9 | M2: 3 | N2: Center Referee2 | O2: David Long | P2: Assistant Referee 2-2 | Q2: Fourth 3 | S2: FALSE | T2: 0
A3: 2012-03-01 | B3: 10:30:00 | C3: Women's | D3: D2 | E3: AR2 | F3: 45 | G3: 5 | I3: Centennial MS | J3: =ROW(J3) -> 3 | M3: =ROW(M3) -> 3 | N3: Woman Center | O3: Woman AR 1 | P3: David Long | Q3: ="Fourth " & ROW(Q3) -> Fourth 3 | S3: FALSE | T3: 0
A4: 2012-02-26 | B4: 08:30:00 | C4: Men's | D4: Premier | E4: Center | F4: 45 | G4: 5 | H4: 45 | I4: Sertoma Park | J4: 2.2 | K4: The Home Team 4 | L4: The Away Team 4 | M4: 4 | N4: CenterRef Men's | O4: Assistant Men's | P4: David Long | Q4: Fourth 4 | S4: FALSE | T4: 0
A5: 2012-02-26 | B5: 09:00:00 | C5: GU16 | D5: Premier | E5: Center | F5: 40 | G5: 5 | H5: 40 | I5: Grandview ES | J5: 2 | K5: The Home Team 5 | L5: The Away Team 5 | M5: 5 | N5: CenterRef Men's | O5: Assistant Men's | P5: David Long | Q5: Fourth 5 | S5: FALSE | T5: 0
A6: 2012-02-26 | B6: 10:00:00 | C6: Men's | D6: Premier | E6: Center | F6: 45 | G6: 5 | I6: Sertoma Park | J6: 6 | K6: ="The Home Team " & ROW(K6) -> The Home Team 6 | L6: ="The Away Team " & ROW(L6) -> The Away Team 6 | M6: 6 | N6: CenterRef Men's | O6: Assistant Men's | P6: David Long | Q6: Fourth 6 | S6: FALSE | T6: 0
A7: 2012-02-26 | B7: 10:30:00 | C7: Men's | D7: Premier | E7: Center | F7: 45 | G7: 5 | I7: Grandview ES | J7: 7 | K7: The Home Team 7 | L7: The Away Team 7 | M7: 7 | N7: CenterRef Men's | O7: Assistant Men's | P7: David Long | Q7: Fourth 7 | S7: FALSE | T7: 0
A8: 2012-02-26 | B8: 11:00:00 | C8: Men's | D8: Premier | E8: Center | F8: 45 | G8: 5 | I8: Sertoma Park | J8: 8 | K8: The Home Team 8 | L8: The Away Team 8 | M8: 8 | N8: CenterRef Men's | O8: Assistant Men's | P8: David Long | Q8: Fourth 8 | S8: FALSE | T8: 0
A9: 2012-02-26 | B9: 11:30:00 | C9: Men's | D9: Premier | E9: Center | F9: 45 | G9: 5 | I9: Sertoma Park | J9: 9 | K9: The Home Team 9 | L9: The Away Team 9 | M9: 9 | N9: CenterRef Men's | O9: Assistant Men's | P9: David Long | Q9: Fourth 9 | S9: FALSE | T9: 0
A10: 2012-02-26 | B10: 13:00:00 | C10: Men's | D10: Premier | E10: Center | F10: 45 | G10: 5 | I10: Grandview ES | J10: 10 | K10: The Home Team 10 | L10: The Away Team 10 | M10: 10 | N10: CenterRef Men's | O10: Assistant Men's | P10: David Long | Q10: Fourth 10 | S10: FALSE | T10: 0
A11: 2012-02-26 | B11: 14:00:00 | C11: Men's | D11: Premier | E11: Center | F11: 45 | G11: 5 | I11: Art Dye | J11: 11 | K11: The Home Team 11 | L11: The Away Team 11 | M11: 11 | N11: CenterRef Men's | O11: Assistant Men's | P11: David Long | Q11: Fourth 11 | S11: FALSE | T11: 0
A12: 2012-02-26 | B12: 14:30:00 | C12: Men's | D12: Premier | E12: Center | F12: 45 | G12: 5 | I12: Sertoma Park | J12: 12 | K12: The Home Team 12 | L12: The Away Team 12 | M12: 12 | N12: CenterRef Men's | O12: Assistant Men's | P12: David Long | Q12: Fourth 12 | S12: FALSE | T12: 0
A13: 2012-02-26 | B13: 15:30:00 | C13: Women's | D13: Premier | E13: Center | F13: 45 | G13: 5 | I13: Centennial MS | J13: 13 | K13: The Home Team 13 | L13: The Away Team 13 | M13: 13 | N13: CenterRef Men's | O13: Assistant Men's | P13: David Long | Q13: Fourth 13 | S13: FALSE | T13: 0
A14: 2012-02-26 | B14: 16:30:00 | C14: Men's | D14: Premier | E14: Center | F14: 45 | G14: 5 | I14: Sertoma Park | J14: 14 | K14: The Home Team 14 | L14: The Away Team 14 | M14: 14 | N14: CenterRef Men's | O14: Assistant Men's | P14: David Long | Q14: Fourth 14 | S14: FALSE | T14: 0
A15: 2012-02-26 | B15: 17:00:00 | C15: Men's | D15: Premier | E15: Center | F15: 45 | G15: 5 | I15: Centennial MS | J15: 15 | K15: The Home Team 15 | L15: The Away Team 15 | M15: 15 | N15: CenterRef Men's | O15: Assistant Men's | P15: David Long | Q15: Fourth 15 | S15: FALSE | T15: 0
A16: 2012-02-26 | B16: 18:00:00 | C16: Men's | D16: Premier | E16: Center | F16: 45 | G16: 5 | I16: Sertoma Park | J16: 16 | K16: The Home Team 16 | L16: The Away Team 16 | M16: 16 | N16: CenterRef Men's | O16: Assistant Men's | P16: David Long | Q16: Fourth 16 | S16: FALSE | T16: 0
A17: 2012-03-31 | B17: 06:30:00 | C17: GU14 | D17: Premier | E17: Center | F17: 35 | G17: 5 | H17: 30 | I17: IHC Hopsital | N17: David Long | S17: FALSE | T17: 0
A18: 2012-03-26 | B18: 00:01:00 | R18: UNAVAILBLE, because: | S18: TRUE | T18: 1
A19: 2012-03-26 | B19: 23:59:00 | R19: Heather's Birthday! | S19: TRUE | T19: 2
A20: 2012-04-07 | B20: 08:00:00 | R20: UNAVAILBLE, because: | S20: TRUE | T20: 1
A21: 2012-04-07 | B21: 08:30:00 | R21: Block 1 | S21: TRUE | T21: 2
A22: 2012-04-07 | B22: 11:45:00 | R22: UNAVAILBLE, because: | S22: TRUE | T22: 1
A23: 2012-04-07 | B23: 13:45:00 | R23: Block 3 | S23: TRUE | T23: 2
A24: 2012-04-09 | B24: 18:00:00 | C24: BU18 | D24: Premier | E24: Center | F24: 45 | G24: 5 | H24: 40 | I24: Sertoma Park | J24: 4.4 | M24: 5454123 | N24: David Long | S24: FALSE | T24: 0
A25: 2012-04-09 | B25: 10:00:00 | R25: UNAVAILBLE, because: | S25: TRUE | T25: 1
A26: 2012-04-09 | B26: 17:00:00 | R26: School | S26: TRUE | T26: 2
A27: 2012-04-10 | B27: 18:00:00 | C27: GU15 | D27: D1 | E27: Center | F27: 40 | G27: 5 | H27: 40 | I27: Timpview HS | J27: 7.6 | M27: 654321 | N27: David Long | S27: FALSE | T27: 0
A28: 2012-04-10 | B28: 08:00:00 | R28: UNAVAILBLE, because: | S28: TRUE | T28: 1
A29: 2012-04-10 | B29: 15:30:00 | R29: School | S29: TRUE | T29: 2
A30: 2012-04-11 | B30: 00:01:00 | R30: UNAVAILBLE, because: | S30: TRUE | T30: 1
A31: 2012-04-11 | B31: 23:59:00 | R31: Don't want to work. | S31: TRUE | T31: 2
A32: 2012-04-12 | B32: 17:00:00 | C32: BU14 | D32: D1 | E32: Center | F32: 35 | G32: 5 | H32: 30 | I32: Spanish Fork Sports Park | J32: 24.6 | K32: The Home Team | L32: The Away Team | N32: David Long | O32: Assistant Referee 1 | P32: Assistant Referee 2 | R32: Away Coach has a mouth. | S32: FALSE | T32: 0

Sheet FieldLocations (hidden)
A1: NAME | B1: ADDRESS | C1: CITY | D1: STATE | E1: ZIP | H1: TEMP CITIES | I1: TEMP LOCATIONS | J1: ALL LOCATION NAMES
A2: 11th Avenue Park | B2: 11th Ave & Terrace Hills | C2: Salt Lake City | D2: UT | H2: Alpine | I2: 11th Avenue Park | J2: 11th Avenue Park
A3: Albion MS | B3: 2755 E. Newcastle | C3: Sandy | D3: UT | H3: American Fork | I3: Albion MS | J3: Albion MS
A4: Alice C Harris ES | B4: 400 North 800 West | C4: Tremonton | D4: UT | H4: Benson | I4: Alice C Harris ES | J4: Alice C Harris ES
A5: Allred Park | B5: 498 N Allred Park Dr (700 W) | C5: Lehi | D5: UT | H5: Bluffdale | I5: Allred Park | J5: Allred Park
A6: Alpine ES | B6: 400 East 300 North | C6: Alpine | D6: UT | H6: Bountiful | I6: Alpine ES | J6: Alpine ES
A7: Alta Canyon | B7: 9465 S. Highland Dr. | C7: Sandy | D7: UT | H7: Brigham City | I7: Alta Canyon | J7: Alta Canyon
A8: Alta HS | B8: 11065 South 1000 East | C8: Sandy | D8: UT | H8: Cedar City | I8: Alta HS | J8: Alta HS
A9: American Fork HS | B9: 510 North 600 East | C9: American Fork | D9: UT | H9: Cedar Hills | I9: American Fork HS | J9: American Fork HS
A10: American Fork JHS | B10: 20 West 1120 North | C10: American Fork | D10: UT | H10: Centerville | I10: American Fork JHS | J10: American Fork JHS
A11: American Heritage | B11: 736 North 1100 East | C11: American Fork | D11: UT | H11: Clarkston | I11: American Heritage | J11: American Heritage
A12: Angel Street Complex | B12: 200 South Angel Street | C12: Kaysville | D12: UT | H12: Clearfield | I12: Angel Street Complex | J12: Angel Street Complex
A13: Antelope ES | B13: 1810 S Main Street | C13: Clearfield | D13: UT | H13: Delta | I13: Antelope ES | J13: Antelope ES
A14: Art Dye | B14: 573 East 700 North | C14: American Fork | D14: UT | H14: Draper | I14: Art Dye | J14: Art Dye
A15: Aspen ES | B15: 945 West 2000 North | C15: Orem | D15: UT | H15: Eden | I15: Aspen ES | J15: Aspen ES
A16: Backman ES | B16: 1500 W 601 N | C16: Salt Lake City | D16: UT | H16: Farmington | I16: Backman ES | J16: Backman ES
A17: Barker Park | B17: 2375 North Fruitland Drive | C17: Ogden | D17: UT | H17: Farr West | I17: Barker Park | J17: Barker Park
A18: Barker Park N. Ogden | B18: 885 Pleasant View Drive | C18: North Ogden | D18: UT | H18: Fillmore | I18: Barker Park N. Ogden | J18: Barker Park N. Ogden
A19: Barnes Park | B19: 200 N Kays Dr (950 W) | C19: Kaysville | D19: UT | H19: Garland | I19: Barnes Park | J19: Barnes Park
A20: Barrett ES | B20: 168 North 900 East | C20: American Fork | D20: UT | H20: Grantsville | I20: Barrett ES | J20: Barrett ES
A21: Bear River HS | B21: 1450 South Main | C21: Garland | D21: UT | H21: Harrisville | I21: Bear River HS | J21: Bear River HS
A22: Bear River MS | B22: 300 East 1500 South | C22: Garland | D22: UT | H22: Heber City | I22: Bear River MS | J22: Bear River MS
A23: Beehive ES | B23: 5655 South 5220 West | C23: Kearns | D23: UT | H23: Herriman | I23: Beehive ES | J23: Beehive ES
A24: Bellview ES | B24: 800 E Galena Dr (9800 S) | C24: Sandy | D24: UT | H24: Highland | I24: Bellview ES | J24: Bellview ES
A25: Ben Lomand High School | B25: 800 Jackson | C25: Ogden | D25: UT | H25: Holladay | I25: Ben Lomand High School | J25: Ben Lomand High School
A26: Bennion Jr. High | B26: 6055 South 2700 West | C26: Kearns | D26: UT | H26: Hooper | I26: Bennion Jr. High | J26: Bennion Jr. High
A27: Benson Field A | B27: 3432 North 300 West | C27: Benson | D27: UT | H27: Hyde Park | I27: Benson Field A | J27: Benson Field A
A28: Bernard Fisher Park | B28: 900 East 700 South | C28: Clearfield | D28: UT | H28: Hyrum | I28: Bernard Fisher Park | J28: Bernard Fisher Park
A29: Bicentennial | B29: 660 West 945 North | C29: Cedar City | D29: UT | H29: Kaysville | I29: Bicentennial | J29: Bicentennial
A30: Bingham Park | B30: 4550 West 550 North | C30: West Point | D30: UT | H30: Kearns | I30: Bingham Park | J30: Bingham Park
A31: Black Hawk Park | B31: 250 West Legrand St. | C31: Logan | D31: UT | H31: Layton | I31: Black Hawk Park | J31: Black Hawk Park
A32: Bluff Ridge ES | B32: 2680 South 775 West | C32: Syracuse | D32: UT | H32: Lehi | I32: Bluff Ridge ES | J32: Bluff Ridge ES
A33: Bluffdale Park | B33: 14350 South 2200 West | C33: Bluffdale | D33: UT | H33: Lewiston | I33: Bluffdale Park | J33: Bluffdale Park
A34: Bonneville ES | B34: 1145 South 1900 East | C34: Salt Lake City | D34: UT | H34: Lindon | I34: Bonneville ES | J34: Bonneville ES
A35: Bonneville HS | B35: 251 East Laker Way | C35: Ogden | D35: UT | H35: Logan | I35: Bonneville HS | J35: Bonneville HS
A36: Bonneville JHS | B36: 5330 S Gurene Dr (1660 E) | C36: Holladay | D36: UT | H36: Magna | I36: Bonneville JHS | J36: Bonneville JHS
A37: Bountiful ES | B37: 1620 South 50 West | C37: Bountiful | D37: UT | H37: Mapleton | I37: Bountiful ES | J37: Bountiful ES
A38: Bountiful JHS | B38: 30 West 400 North | C38: Bountiful | D38: UT | H38: Mendon | I38: Bountiful JHS | J38: Bountiful JHS
A39: Box Elder HS | B39: 380 South 600 West | C39: Brigham City | D39: UT | H39: Midvale | I39: Box Elder HS | J39: Box Elder HS
A40: Bridgerland Park | B40: 900 North 100 West | C40: Logan | D40: UT | H40: Midway | I40: Bridgerland Park | J40: Bridgerland Park
A41: Brockbank JHS | B41: 2935 South 8560 West | C41: Magna | D41: UT | H41: Millville | I41: Brockbank JHS | J41: Brockbank JHS
A42: Bryant MS | B42: 40 South 800 East | C42: Salt Lake City | D42: UT | H42: Morgan | I42: Bryant MS | J42: Bryant MS
A43: Burgess Park | B43: 200 W Canyon Crest Drive | C43: Alpine | D43: UT | H43: Murray | I43: Burgess Park | J43: Burgess Park
A44: Butler ES | B44: 2700 E Fort Union Blvd (6900 S) | C44: Salt Lake City | D44: UT | H44: N. Logan | I44: Butler ES | J44: Butler ES
A45: Buttercup Park | B45: 1550 E Buttercup (10075 S) | C45: Sandy | D45: UT | H45: N. Ogden | I45: Buttercup Park | J45: Buttercup Park
A46: Butterfield Park | B46: 6212 West 14200 South | C46: Riverton | D46: UT | H46: Newton | I46: Butterfield Park | J46: Butterfield Park
A47: Canterbury Park | B47: 2500 W Antelope Drive | C47: Syracuse | D47: UT | H47: Nibley | I47: Canterbury Park | J47: Canterbury Park
A48: Canterbury Park Circle U9-U10 | B48: 9700 North 5920 West | C48: Highland | D48: UT | H48: North Logan | I48: Canterbury Park Circle U9-U10 | J48: Canterbury Park Circle U9-U10
A49: Canyon Rim ES | B49: 3005 South 2900 East | C49: Salt Lake City | D49: UT | H49: North Ogden | I49: Canyon Rim ES | J49: Canyon Rim ES
A50: Canyon View JHS | B50: 950 North 700 East | C50: Orem | D50: UT | H50: Ogden | I50: Canyon View JHS | J50: Canyon View JHS
A51: Canyonview Park | B51: 4320 West 12200 South | C51: Riverton | D51: UT | H51: Orem | I51: Canyonview Park | J51: Canyonview Park
A52: Cedar MS | B52: 1865 N Main Street | C52: Cedar City | D52: UT | H52: Paradise | I52: Cedar MS | J52: Cedar MS
A53: Cedar Ridge Soccer Complex | B53: 65 North 200 West | C53: Hyde Park | D53: UT | H53: Park City | I53: Cedar Ridge Soccer Complex | J53: Cedar Ridge Soccer Complex
A54: Cemetery Field | B54: 1200 North 800 East | C54: Orem | D54: UT | H54: Payson | I54: Cemetery Field | J54: Cemetery Field
A55: Centennial MS | B55: 305 East 2320 North | C55: Provo | D55: UT | H55: Plain City | I55: Centennial MS | J55: Centennial MS
A56: Centerville JHS | B56: 625 S Main Street | C56: Centerville | D56: UT | H56: Pleasant Grove | I56: Centerville JHS | J56: Centerville JHS
A57: Centerville Park | B57: 1350 North 400 West | C57: Centerville | D57: UT | H57: Pleasant View | I57: Centerville Park | J57: Centerville Park
A58: Central Davis JHS | B58: 653 Church Street | C58: Layton | D58: UT | H58: Providence | I58: Central Davis JHS | J58: Central Davis JHS
A59: Central ES U9-U10 | B59: 95 North 400 East | C59: Pleasant Grove | D59: UT | H59: Provo | I59: Central ES U9-U10 | J59: Central ES U9-U10
A60: Churchill JHS | B60: 3450 E Oakview Drive | C60: Salt Lake City | D60: UT | H60: Richmond | I60: Churchill JHS | J60: Churchill JHS
A61: City Park | B61: 1354 Park Avenue | C61: Park City | D61: UT | H61: Riverton | I61: City Park | J61: City Park
A62: Clarkston Field U6 | B62: 25 East 100 South | C62: Clarkston | D62: UT | H62: Roy | I62: Clarkston Field U6 | J62: Clarkston Field U6
A63: Clayton MS | B63: 1450 South 1900 East | C63: Salt Lake City | D63: UT | H63: Salem | I63: Clayton MS | J63: Clayton MS
A64: Cobblestone | B64: 1615 E 980 S | C64: Heber City | D64: UT | H64: Salt Lake City | I64: Cobblestone | J64: Cobblestone
A65: Columbia School | B65: 378 South 50 West | C65: Kaysville | D65: UT | H65: Sandy | I65: Columbia School | J65: Columbia School
A66: Community Park | B66: 581 West 165 South | C66: Orem | D66: UT | H66: Saratoga Springs | I66: Community Park | J66: Community Park
A67: Constitution Park | B67: 500 East 700 South | C67: Brigham City | D67: UT | H67: Smithfield | I67: Constitution Park | J67: Constitution Park
A68: Constitution Park West Jordan | B68: 7000 South 3200 West | C68: West Jordan | D68: UT | H68: South Jordan | I68: Constitution Park West Jordan | J68: Constitution Park West Jordan
A69: Copperview Elementary | B69: 8449 Monroe St | C69: Midvale | D69: UT | H69: South Ogden | I69: Copperview Elementary | J69: Copperview Elementary
A70: Cottonwood ES | B70: 5205 S. Holladay Blvd | C70: Salt Lake City | D70: UT | H70: Spanish Fork | I70: Cottonwood ES | J70: Cottonwood ES
A71: Country Crossing | B71: 11685 South 4260 West | C71: South Jordan | D71: UT | H71: Springville | I71: Country Crossing | J71: Country Crossing
A72: Country View ES | B72: 4650 West 4800 South | C72: West Haven | D72: UT | H72: Stansbury Park | I72: Country View ES | J72: Country View ES
A73: County Race Track | B73: 500 West Center St. | C73: Fillmore | D73: UT | H73: Syracuse | I73: County Race Track | J73: County Race Track
A74: Crescent ES | B74: 11100 South 230 East | C74: Sandy | D74: UT | H74: Taylorsville | I74: Crescent ES | J74: Crescent ES
A75: Crescent MS | B75: 11150 South 300 East | C75: Sandy | D75: UT | H75: Tooele | I75: Crescent MS | J75: Crescent MS
A76: Crescent Park | B76: 11000 South 230 East | C76: Sandy | D76: UT | H76: Tremonton | I76: Crescent Park | J76: Crescent Park
A77: Crestview School | B77: 185 West Golden Avenue | C77: Layton | D77: UT | H77: Wellsville | I77: Crestview School | J77: Crestview School
A78: Cub River Sports | B78: 200 East 11600 North | C78: Lewiston | D78: UT | H78: West Haven | I78: Cub River Sports | J78: Cub River Sports
A79: DATC | B79: 425 South Main Street | C79: Kaysville | D79: UT | H79: West Jordan | I79: DATC | J79: DATC
A80: Davis HS | B80: 400 South 250 East | C80: Kaysville | D80: UT | H80: West Point | I80: Davis HS | J80: Davis HS
A81: Deerfield ES | B81: 4353 Harvey Blvd | C81: Cedar Hills | D81: UT | H81: West Valley | I81: Deerfield ES | J81: Deerfield ES
A82: Delta City Park | B82: 100 West 100 North | C82: Delta | D82: UT | H82: Woods Cross | I82: Delta City Park | J82: Delta City Park
A83: Delta HS | B83: 450 North 100 East | C83: Delta | D83: UT | H83: WVC | I83: Delta HS | J83: Delta HS
A84: Delta MS | B84: 450 North 200 East | C84: Delta | D84: UT | I84: Delta MS | J84: Delta MS
A85: Deseret Peak Complex | B85: Highway 112 & Sheep Lane | C85: Tooele | D85: UT | I85: Deseret Peak Complex | J85: Deseret Peak Complex
A86: Diamond Ford JHS U9-U10 | B86: 50 North 900 East | C86: Spanish Fork | D86: UT | I86: Diamond Ford JHS U9-U10 | J86: Diamond Ford JHS U9-U10
A87: Discovery Park | B87: 1500 North 100 East | C87: Pleasant Grove | D87: UT | I87: Discovery Park | J87: Discovery Park
A88: Draper ES | B88: 1080 East 12660 South | C88: Draper | D88: UT | I88: Draper ES | J88: Draper ES
A89: Eagle Bay ES | B89: 1933 W Clark Lane | C89: Farmington | D89: UT | I89: Eagle Bay ES | J89: Eagle Bay ES
A90: East Garland Park | B90: 14400 North 4400 West | C90: Garland | D90: UT | I90: East Garland Park | J90: East Garland Park
A91: Eastmont MS | B91: 1185 E Sego Lily | C91: Sandy | D91: UT | I91: Eastmont MS | J91: Eastmont MS
A92: Ecker Hill MS | B92: 2465 W Kilby Road | C92: Park City | D92: UT | I92: Ecker Hill MS | J92: Ecker Hill MS
A93: Eden Park | B93: 2140 North 5500 East | C93: Ogden | D93: UT | I93: Eden Park | J93: Eden Park
A94: Eden Town Park | B94: 5500 East 2100 North | C94: Eden | D94: UT | I94: Eden Town Park | J94: Eden Town Park
A95: Eisenhower JHS | B95: 4351 S Redwood Road | C95: Taylorsville | D95: UT | I95: Eisenhower JHS | J95: Eisenhower JHS
A96: Elk Horn Park | B96: 740 West 2600 South | C96: Logan | D96: UT | I96: Elk Horn Park | J96: Elk Horn Park
A97: Elk Ridge | B97: 1060 East 2500 North | C97: North Logan | D97: UT | I97: Elk Ridge | J97: Elk Ridge
A98: Ellison Park | B98: 2200 W Hillfield Rd | C98: Layton | D98: UT | I98: Ellison Park | J98: Ellison Park
A99: Elton Park | B99: 400 N Broadway Avenue | C99: Tooele | D99: UT | I99: Elton Park | J99: Elton Park
A100: Ensign Downs | B100: Ensign Vista Drive | C100: Salt Lake City | D100: UT | I100: Ensign Downs | J100: Ensign Downs
A101: Ensign ES | B101: 775 12th Avenue | C101: Salt Lake City | D101: UT | I101: Ensign ES | J101: Ensign ES
A102: Evergreen JHS | B102: 3401 South 2000 East | C102: Salt Lake City | D102: UT | I102: Evergreen JHS | J102: Evergreen JHS
A103: Extreme Field | B103: 460 South 100 West | C103: Hyde Park | D103: UT | I103: Extreme Field | J103: Extreme Field
A104: Fairfield JHS | B104: 951 N Fairfield Road | C104: Kaysville | D104: UT | I104: Fairfield JHS | J104: Fairfield JHS
A105: Fairfield JHS | B105: 951 N. Fairfield Road | C105: Kaysville | D105: UT | I105: Fairmont Park | J105: Fairfield JHS
A106: Fairmont Park | B106: 2500 South 900 East | C106: Salt Lake City | D106: UT | I106: Falcon Park | J106: Fairmont Park
A107: Falcon Park | B107: 9150 S Peruvian Dr (1700 E) | C107: Sandy | D107: UT | I107: Farmington JHS | J107: Falcon Park
A108: Farmington JHS | B108: 150 South 200 West | C108: Farmington | D108: UT | I108: Farr West ES | J108: Farmington JHS
A109: Farr West ES | B109: 2190 West 2700 North | C109: Farr West | D109: UT | I109: Fillmore School | J109: Farr West ES
A110: Fillmore School | B110: 435 South 500 West | C110: Fillmore | D110: UT | I110: Flat Iron Mesa | J110: Fillmore School
A111: Flat Iron Mesa | B111: 8600 South 1800 East | C111: Sandy | D111: UT | I111: Footprinters Park | J111: Flat Iron Mesa
A112: Footprinters Park | B112: 1150 South 1350 West | C112: Provo | D112: UT | I112: Forrester Acres | J112: Footprinters Park
A113: Forrester Acres | B113: 800 W Center Street | C113: Smithfield | D113: UT | I113: Fort Herrimans Middle School | J113: Forrester Acres
A114: Fort Herrimans Middle School | B114: 14058 S. Mirabella Drive (6200 W | C114: Herriman | D114: UT | I114: Forza FC Soccer Complex east | J114: Fort Herrimans Middle School
A115: Forza FC Soccer Complex east | B115: 1262 S 650 W | C115: Farmington | D115: UT | I115: Fox Hollow ES | J115: Forza FC Soccer Complex east
A116: Fox Hollow ES | B116: 1450 West 3200 North | C116: Lehi | D116: UT | I116: Freedom Hills ES | J116: Fox Hollow ES
A117: Freedom Hills ES | B117: 2250 N Park Hills Drive (150 E) | C117: Centerville | D117: UT | I117: Freedom Hills Park | J117: Freedom Hills ES
A118: Freedom Hills Park | B118: 2150 North Park Hills Dr (150 E) | C118: Centerville | D118: UT | I118: Friendship Park | J118: Freedom Hills Park
A119: Friendship Park | B119: 655 East 5500 South | C119: South Ogden | D119: UT | I119: Gailey Park | J119: Friendship Park
A120: Gailey Park | B120: 150 South 300 West | C120: Kaysville | D120: UT | I120: Galena Park | J120: Gailey Park
A121: Galena Park | B121: 12500 S Galena Park Blvd (550W) | C121: Draper | D121: UT | I121: George Wahlen North Park | J121: Galena Park
A122: George Wahlen North Park | B122: 4125 South 2175 West | C122: Roy | D122: UT | I122: Germania Park | J122: George Wahlen North Park
A123: Germania Park | B123: 5400 South Murray Parkway | C123: Salt Lake City | D123: UT | I123: Glendale MS | J123: Germania Park
A124: Glendale MS | B124: 1430 W. Andrew Avenue | C124: Salt Lake City | D124: UT | I124: Grandview ES | J124: Glendale MS
A125: Grandview ES | B125: 1591 Jordan Avenue | C125: Provo | D125: UT | I125: Grandview Park | J125: Grandview ES
A126: Grandview Park | B126: 3850 Jackson Avenue | C126: Ogden | D126: UT | I126: Granite Park | J126: Grandview Park
A127: Granite Park | B127: 3700 South 300 East | C127: Salt Lake City | D127: UT | I127: Granite Park JHS | J127: Granite Park
A128: Granite Park JHS | B128: 3031 South 200 East | C128: Salt Lake City | D128: UT | I128: Grant ES | J128: Granite Park JHS
A129: Grant ES | B129: 662 W Bulldog Circle | C129: Murray | D129: UT | I129: Grantsville ES | J129: Grant ES
A130: Grantsville ES | B130: 175 W Main St | C130: Grantsville | D130: UT | I130: Grantsville HS | J130: Grantsville ES
A131: Grantsville HS | B131: 155 E Cowboy Drive | C131: Grantsville | D131: UT | I131: Grantsville Park | J131: Grantsville HS
A132: Grantsville Park | B132: 160 East Cherry St | C132: Grantsville | D132: UT | I132: Green Acres | J132: Grantsville Park
A133: Green Acres | B133: 2050 North 600 East | C133: N. Ogden | D133: UT | I133: Green Acres/Orton Park | J133: Green Acres
A134: Green Acres/Orton Park | B134: 600 East 2050 North | C134: North Ogden | D134: UT | I134: Green Park | J134: Green Acres/Orton Park
A135: Green Park | B135: 1700 North 1900 West | C135: Lehi | D135: UT | I135: Harrisville Interm. School U11-U12 | J135: Green Park
A136: Harrisville Interm. School U11-U12 | B136: 515 North 800 West | C136: Tremonton | D136: UT | I136: Harrisville Millenium Pk 1 | J136: Harrisville Interm. School U11-U12
A137: Harrisville Millenium Pk 1 | B137: 200 North 550 West | C137: Harrisville | D137: UT | I137: Harrisville Millenium Pk 2 | J137: Harrisville Millenium Pk 1
A138: Harrisville Millenium Pk 2 | B138: 2000 North 550 West | C138: Harrisville | D138: UT | I138: Heber Valley ES | J138: Harrisville Millenium Pk 2
A139: Heber Valley ES | B139: 600 West 730 South | C139: Heber City | D139: UT | I139: Heritage Park | J139: Heber Valley ES
A140: Heritage Park | B140: 2456 South 800 West | C140: Nibley | D140: UT | I140: Herriman Elementary | J140: Heritage Park
A141: Herriman Elementary | B141: 13170 S. 6000 W. | C141: Herriman | D141: UT | I141: Hidden Village | J141: Herriman Elementary
A142: Hidden Village | B142: 5430 South 555 West | C142: Salt Lake City | D142: UT | I142: Highland ES | J142: Hidden Village
A143: Highland ES | B143: 10865 North 6000 West | C143: Highland | D143: UT | I143: Highland MS | J143: Highland ES
A144: Highland MS | B144: 325 Gramarcy Avenue | C144: Ogden | D144: UT | I144: Highland Park ES | J144: Highland MS
A145: Highland Park ES | B145: 1738 East 2700 South | C145: Salt Lake City | D145: UT | I145: Hillcrest ES | J145: Highland Park ES
A146: Hillcrest ES | B146: 130 North Eccles Avenue | C146: Ogden | D146: UT | I146: Hillcrest HS | J146: Hillcrest ES
A147: Hillcrest ES | B147: 960 North 1400 East | C147: Logan | D147: UT | I147: Hillman U13-U19 | J147: Hillcrest ES
A148: Hillcrest HS | B148: 7350 South 900 East | C148: Midvale | D148: UT | I148: Hillview ES | J148: Hillcrest HS
A149: Hillman U13-U19 | B149: 800 South 800 West | C149: Payson | D149: UT | I149: Hobble Creek ES | J149: Hillman U13-U19
A150: Hillview ES | B150: 1000 East 4500 South | C150: Salt Lake City | D150: UT | I150: Holdaway Park | J150: Hillview ES
A151: Hobble Creek ES | B151: 1145 East 1200 North | C151: Mapleton | D151: UT | I151: Holladay City Building | J151: Hobble Creek ES
A152: Holdaway Park | B152: 550 East 400 North | C152: Springville | D152: UT | I152: Holt ES | J152: Holdaway Park
A153: Holladay City Building | B153: 4580 South 2300 East | C153: Holladay | D153: UT | I153: Hooper LDS Church | J153: Holladay City Building
A154: Holt ES | B154: 525 North 1000 West | C154: Clearfield | D154: UT | I154: Hooper Park New | J154: Holt ES
A155: Hooper Park New | B155: 5580 West 4600 South | C155: Hooper | D155: UT | I155: Horizon Ele | J155: Hooper LDS Church
A156: Horizon Ele | B156: 5180 S Glendon St (700 W) | C156: Salt Lake City | D156: UT | I156: Hunter JHS | J156: Hooper Park New
A157: Hunter JHS | B157: 6131 W Wendling (3785 S) | C157: West Valley | D157: UT | I157: Hyrum | J157: Horizon Ele
A158: Hyrum | B158: 100 South 800 East | C158: Hyrum | D158: UT | I158: IHC Hopsital | J158: Hunter JHS
A159: Indian Hills ES | B159: 2496 St Mary's Drive | C159: Salt Lake City | D159: UT | I159: Indian Hills ES | J159: Hyrum
A160: Ira Allen Field | B160: 1750 South 800 West | C160: Mapleton | D160: UT | I160: Ira Allen Field | J160: IHC Hopsital
A161: Jackson Elementary | B161: 750 W 200 N | C161: Salt Lake City | D161: UT | I161: Jackson Elementary | J161: Indian Hills ES
A162: James E. Moss | B162: 4400 South 500 East | C162: Salt Lake City | D162: UT | I162: James E. Moss | J162: Ira Allen Field
A163: Jefferson JHS | B163: 5850 South 5600 West | C163: Kearns | D163: UT | I163: Jefferson JHS | J163: Jackson Elementary
A164: Jordan HS | B164: 95 Beetdigger Blvd | C164: Sandy | D164: UT | I164: Jordan HS | J164: James E. Moss
A165: Jordan Ridge Park | B165: 9500 South 2500 West | C165: South Jordan | D165: UT | I165: Jordan Ridge Park | J165: Jefferson JHS
A166: Jordan River Park | B166: 1200 West 1700 South | C166: Salt Lake City | D166: UT | I166: Jordan River Park | J166: Jordan HS
A167: JR Smith ES | B167: 235 East 500 North | C167: Heber City | D167: UT | I167: JR Smith ES | J167: Jordan Ridge Park
A168: Kanesville ES | B168: 3112 South 3500 West | C168: West Haven | D168: UT | I168: Kanesville ES | J168: Jordan River Park
A169: Kaysville JHS | B169: 350 S Main Street | C169: Kaysville | D169: UT | I169: Kaysville JHS | J169: JR Smith ES
A170: Kearns JHS | B170: 5305 South 4040 West | C170: Kearns | D170: UT | I170: Kearns JHS | J170: Kanesville ES
A171: Kennedy JHS | B171: 4495 South 4800 West | C171: West Valley | D171: UT | I171: Kennedy JHS | J171: Kaysville JHS
A172: Kent Smith Park | B172: Old Hwy Rd & Highland Dr | C172: Morgan | D172: UT | I172: Kent Smith Park | J172: Kearns JHS
A173: Lake Side ES | B173: 2941 West 800 North | C173: West Point | D173: UT | I173: Lake Side ES | J173: Kennedy JHS
A174: Lakeside Sports Park | B174: 1850 West 400 South | C174: Orem | D174: UT | I174: Lakeside Sports Park | J174: Kent Smith Park
A175: Layton HS | B175: 440 Lancer Way | C175: Layton | D175: UT | I175: Layton HS | J175: Lake Side ES
A176: Hooper LDS Church | B176: 5900 West 5100 South | C176: Hooper | D176: UT | I176: Lees Olsen Park | J176: Lakeside Sports Park
A177: Lees Olsen Park | B177: 2200 North 4100 West | C177: Plain City | D177: UT | I177: Lewis Park | J177: Layton HS
A178: Lewis Park | B178: 150 Lewis Park Cir | C178: Bountiful | D178: UT | I178: Lincoln ES | J178: Lees Olsen Park
A179: Lincoln ES | B179: 450 East 3700 South | C179: Salt Lake City | D179: UT | I179: Lindon ES U9-U10 | J179: Lewis Park
A180: Lindon ES U9-U10 | B180: 30 North Main Street | C180: Lindon | D180: UT | I180: Lion Club Park | J180: Lincoln ES
A181: Lion Club Park | B181: 1250 East 22nd Street | C181: Ogden | D181: UT | I181: Lomand View Park | J181: Lindon ES U9-U10
A182: Lomand View Park | B182: 230 East Elberta Drive | C182: North Ogden | D182: UT | I182: Lone Peak HS | J182: Lion Club Park
A183: Lone Peak HS | B183: 10189 North 4800 West | C183: Highland | D183: UT | I183: Lone Peak Park | J183: Lomand View Park
A184: Lone Peak Park | B184: 10200 South 700 East | C184: Sandy | D184: UT | I184: Longview ES | J184: Lone Peak HS
A185: Longview ES | B185: 6240 S Longview Dr (560 E) | C185: Salt Lake City | D185: UT | I185: Loy Blake Park | J185: Lone Peak Park
A186: Loy Blake Park | B186: 550 North 3500 West | C186: West Point | D186: UT | I186: Lundstrom | J186: Longview ES
A187: Lundstrom | B187: 1350 North 1600 East | C187: Logan | D187: UT | I187: Majestic ES | J187: Loy Blake Park
A188: Majestic ES | B188: 425 West 2550 North | C188: N. Ogden | D188: UT | I188: Mapleton ES | J188: Lundstrom
A189: Mapleton ES | B189: 50 W Maple Street | C189: Mapleton | D189: UT | I189: Mapleton Field | J189: Majestic ES
A190: Mapleton Field | B190: 1650 South 800 West | C190: Mapleton | D190: UT | I190: Matheson JHS | J190: Mapleton ES
A191: Matheson JHS | B191: 3650 S Montclair (7730 W) | C191: Magna | D191: UT | I191: McCall Park | J191: Mapleton Field
A192: McCall Park | B192: 3275 West 5600 South | C192: Roy | D192: UT | I192: McGillis School | J192: Matheson JHS
A193: McGillis School | B193: 668 South 1300 East | C193: Salt Lake City | D193: UT | I193: McGriff | J193: McCall Park
A194: McGriff | B194: 2850 North 900 East | C194: N. Ogden | D194: UT | I194: Meadow View | J194: McGillis School
A195: Meadow View | B195: 2720 North 400 East | C195: N. Logan | D195: UT | I195: Mendon Square | J195: McGriff
A196: Mendon Square | B196: 50 West 100 North | C196: Mendon | D196: UT | I196: Mesquite Park | J196: Meadow View
A197: Mesquite Park | B197: 10400 Mesquite Way | C197: Cedar Hills | D197: UT | I197: Midas Creek Elementary | J197: Mendon Square
A198: Midas Creek Elementary | B198: 11901 S. Park Haven Lane (4510 W.) | C198: Riverton | D198: UT | I198: Midway ES | J198: Mesquite Park
A199: Midway ES | B199: 225 South 100 East | C199: Midway | D199: UT | I199: Millcreek | J199: Midas Creek Elementary
A200: Millcreek | B200: 245 East 1000 South | C200: Bountiful | D200: UT | I200: Mills Park | J200: Midway ES
... 149 more rows

Sheet Welcome
A1: Launch Reffing Pro Assistant by clicking on the appropriate button in the Ribbon.
A3: This worksheet should not be deleted or renamed.

Sheet Mileage (hidden)
A1: FROM | B1: TO | C1: MILEAGE
A2: 450 West 400 North, Orem, UT | B2: 305 East 2320 North, Provo, UT | C2: 4.9
A3: 305 East 2320 North, Provo, UT | B3: 450 West 400 North, Orem, UT | C3: 4.9
A4: 871 N 600 W APT 10, Provo, UT | B4: 400 East 2320 North, Provo, UT | C4: 2.2
A5: 400 East 2320 North, Provo, UT | B5: 871 N 600 W APT 10, Provo, UT | C5: 2.2
A6: 871 N 600 W APT 10, Provo, UT | B6: 1591 Jordan Avenue, Provo, UT | C6: 1.2
A7: 1591 Jordan Avenue, Provo, UT | B7: 871 N 600 W APT 10, Provo, UT | C7: 1.2
A8: 871 N 600 W APT 10, Provo, UT | B8: 1720 West 1460 North, Provo, UT | C8: 1.7
A9: 1720 West 1460 North, Provo, UT | B9: 871 N 600 W APT 10, Provo, UT | C9: 1.7
A10: 871 N 600 W APT 10, Provo, UT | B10: 1150 South 1350 West, Provo, UT | C10: 2.6
A11: 1150 South 1350 West, Provo, UT | B11: 871 N 600 W APT 10, Provo, UT | C11: 2.6
A12: 871 N 600 W APT 10, Provo, UT | B12: 3750 N Timpview Dr, Provo, UT | C12: 3.8
A13: 3750 N Timpview Dr, Provo, UT | B13: 871 N 600 W APT 10, Provo, UT | C13: 3.8
A14: 871 N 600 W APT 10, Provo, UT | B14: 1025 South 250 West, Salem, UT | C14: 16.4
A15: 1025 South 250 West, Salem, UT | B15: 871 N 600 W APT 10, Provo, UT | C15: 16.4
A16: 871 N 600 W APT 10, Provo, UT | B16: 800 E Galena Dr (9800 S), Sandy, UT | C16: 32
A17: 800 E Galena Dr (9800 S), Sandy, UT | B17: 871 N 600 W APT 10, Provo, UT | C17: 32
A18: 871 N 600 W APT 10, Provo, UT | B18: 1480 East 9400 South, Sandy, UT | C18: 33.5
A19: 1480 East 9400 South, Sandy, UT | B19: 871 N 600 W APT 10, Provo, UT | C19: 33.5
A20: 871 N 600 W APT 10, Provo, UT | B20: 100 East 800 South, Springville, UT | C20: 8.1
A21: 100 East 800 South, Springville, UT | B21: 871 N 600 W APT 10, Provo, UT | C21: 8.1
A22: 400 East 2320 North, Provo, UT | B22: 1591 Jordan Avenue, Provo, UT | C22: 2
A23: 1591 Jordan Avenue, Provo, UT | B23: 400 East 2320 North, Provo, UT | C23: 2
A24: 871 N 600 W APT 10, Provo, UT | B24: 11901 S. Park Haven Lane (4510 W.), Riverton, UT | C24: 33.6
A25: 11901 S. Park Haven Lane (4510 W.), Riverton, UT | B25: 871 N 600 W APT 10, Provo, UT | C25: 33.6
A26: 871 N 600 W APT 10, Provo, UT | B26: 141 W Volunteer Dr, Spanish Fork, UT | C26: 12.3
A27: 141 W Volunteer Dr, Spanish Fork, UT | B27: 871 N 600 W APT 10, Provo, UT | C27: 12.3
A28: 871 N 600 W APT 10, Provo, UT | B28: 2700 E Fort Union Blvd (6900 S), Salt Lake City, UT | C28: 40.3
A29: 2700 E Fort Union Blvd (6900 S), Salt Lake City, UT | B29: 871 N 600 W APT 10, Provo, UT | C29: 40.3

Sheet PrintMatchReports (hidden)
A1: DATE | B1: TIME | C1: LOCATION | D1: LEVEL/LEAGUE | E1: POSITION | F1: HOME TEAM | G1: AWAY TEAM | H1: HALVES (MIN) | I1: GAME NUMBER | J1: BALL SIZE | K1: REFEREE | L1: AR 1 | M1: AR 2 | N1: 4TH OFFICIAL | O1: COMMENTS
